Workbook

Sheet Info
C7: File name | D7: Front end Program Interreg V-A România-Ungaria
C8: Author | D8: Cambridge Econometrics
C9: Client | D9: Ministerul Investițiilor și Proiectelor Europene
C10: Project | D10: Evaluarea progresului în îndeplinirea indicatorilor din cadrul de performanță – Tema E
C12: Version | D12: 1
C13: Authorised for release by
C14: Last revised | D14: 2021-07-27
C15: Status | D15: Completed
C16: Source | D16: SMIS
C18: Purpose | D18: To provide forecasts on indicators relating to the CBC programme
D19: Indicator forecasts based on June 2020 eMS extract
C22: Sheets in this file:
D24: Info | F24: This documentation sheet
D26: Projections | F26: Indicator projections
D28: Achievement_finalised | F28: Data underpinning the estimates of the achievement of finalised projects
D29: Achievement_to_date_ongoing | F29: Data underpinning the estimates of the achievement of ongoing projects
D30: Achievement_forecast_ongoing | F30: Estimates of the achievemnt of ongoing projects. Can be adjusted by the user.
D31: Project_characteristics | F31: Estimates of the average project characteristics and the number of projects starting in the future. Can be adjusted by the user.
D32: Achievement_forecasts_future | F32: Estimates of the achievement of projects starting in the future. Can be adjusted by the user.

Sheet Projections
H2: As percentage of target (%) | L2: Total | P2: Finalised | T2: Ongoing | X2: New
C3: PA | D3: PI | E3: Indicator | F3: Region | G3: Target | H3: 2020 | I3: =+H3+1 -> 2021 | J3: =+I3+1 -> 2022 | K3: 2023 | L3: 2020 | M3: =+L3+1 -> 2021 | N3: =+M3+1 -> 2022 | O3: 2023 | P3: 2020 | Q3: =+P3+1 -> 2021 | R3: =+Q3+1 -> 2022 | S3: 2023 | T3: 2020 | U3: =+T3+1 -> 2021 | V3: =+U3+1 -> 2022 | W3: 2023 | X3: 2020 | Y3: =+X3+1 -> 2021 | Z3: =+Y3+1 -> 2022 | AA3: 2023
C4: 1 | D4: All | E4: CO09 | F4: All | G4: 61000 | H4: =L4/$G4*100 -> 137.4801403 | I4: =M4/$G4*100 -> 145.9875574 | J4: =N4/$G4*100 -> 356.1513875 | K4: 356.1513875 | L4: =P4+T4+X4 -> 83862.88558 | M4: =Q4+U4+Y4 -> 89052.41004 | N4: =R4+V4+Z4 -> 217252.3464 | O4: =S4+W4+AA4 -> 217252.3464 | P4: =Achievement_finalised!G4 -> 77267 | Q4: =P4 -> 77267 | R4: =Q4 -> 77267 | S4: =R4 -> 77267 | T4: =SUMIFS(Achievement_forecast_ongoing!G$6:G$110,Achievement_forecast_ongoing!$D$6:$D$110,Projections!$D4,Achievement_forecast_ongoing!$E$6:$E$110,Projections!$E4,Achievement_forecast_ongoing!$C$6:$C$110,Projections!$C4,Achievement_forecast_ongoing!$F$6:$F$110,Projections!$F4) -> 6595.885582 | U4: =SUMIFS(Achievement_forecast_ongoing!H$6:H$110,Achievement_forecast_ongoing!$D$6:$D$110,Projections!$D4,Achievement_forecast_ongoing!$E$6:$E$110,Projections!$E4,Achievement_forecast_ongoing!$C$6:$C$110,Projections!$C4,Achievement_forecast_ongoing!$F$6:$F$110,Projections!$F4) -> 11785.41004 | V4: =SUMIFS(Achievement_forecast_ongoing!I$6:I$110,Achievement_forecast_ongoing!$D$6:$D$110,Projections!$D4,Achievement_forecast_ongoing!$E$6:$E$110,Projections!$E4,Achievement_forecast_ongoing!$C$6:$C$110,Projections!$C4,Achievement_forecast_ongoing!$F$6:$F$110,Projections!$F4) -> 139985.3464 | W4: =SUMIFS(Achievement_forecast_ongoing!J$6:J$110,Achievement_forecast_ongoing!$D$6:$D$110,Projections!$D4,Achievement_forecast_ongoing!$E$6:$E$110,Projections!$E4,Achievement_forecast_ongoing!$C$6:$C$110,Projections!$C4,Achievement_forecast_ongoing!$F$6:$F$110,Projections!$F4) -> 139985.3464 | X4: =Achievement_forecasts_future!G4 -> 0 | Y4: =Achievement_forecasts_future!H4 -> 0 | Z4: =Achievement_forecasts_future!I4 -> 0 | AA4: =Achievement_forecasts_future!J4 -> 0
C5: 1 | D5: All | E5: 6/b 1 | F5: All | G5: 7 | H5: =L5/$G5*100 -> 0 | I5: 88.96327637 | J5: 88.96327637 | K5: 128.5714286 | L5: =P5+T5+X5 -> 0 | M5: =IF(Q5+U5+Y5>=9,9,SUM(Q5,U5,Y5)) -> 6.227429346 | N5: =IF(R5+V5+Z5>=9,9,SUM(R5,V5,Z5)) -> 6.227429346 | O5: =IF(S5+W5+AA5>=9,9,SUM(S5,W5,AA5)) -> 9 | P5: =Achievement_finalised!G5 -> 0 | Q5: =P5 -> 0 | R5: =Q5 -> 0 | S5: 0 | T5: =SUMIFS(Achievement_forecast_ongoing!G$6:G$110,Achievement_forecast_ongoing!$D$6:$D$110,Projections!$D5,Achievement_forecast_ongoing!$E$6:$E$110,Projections!$E5,Achievement_forecast_ongoing!$C$6:$C$110,Projections!$C5,Achievement_forecast_ongoing!$F$6:$F$110,Projections!$F5) -> 0 | U5: =IF(SUMIFS(Achievement_forecast_ongoing!H$6:H$110,Achievement_forecast_ongoing!$D$6:$D$110,Projections!$D5,Achievement_forecast_ongoing!$E$6:$E$110,Projections!$E5,Achievement_forecast_ongoing!$C$6:$C$110,Projections!$C5,Achievement_forecast_ongoing!$F$6:$F$110,Projections!$F5)>=9,9,SUMIFS(Achievement_forecast_ongoing!H$6:H$110,Achievement_forecast_ongoing!$D$6:$D$110,Projections!$D5,Achievement_forecast_ongoing!$E$6:$E$110,Projections!$E5,Achievement_forecast_ongoing!$C$6:$C$110,Projections!$C5,Achievement_forecast_ongoing!$F$6:$F$110,Projections!$F5)) -> 6.227429346 | V5: =IF(SUMIFS(Achievement_forecast_ongoing!I$6:I$110,Achievement_forecast_ongoing!$D$6:$D$110,Projections!$D5,Achievement_forecast_ongoing!$E$6:$E$110,Projections!$E5,Achievement_forecast_ongoing!$C$6:$C$110,Projections!$C5,Achievement_forecast_ongoing!$F$6:$F$110,Projections!$F5)>=9,9,SUMIFS(Achievement_forecast_ongoing!I$6:I$110,Achievement_forecast_ongoing!$D$6:$D$110,Projections!$D5,Achievement_forecast_ongoing!$E$6:$E$110,Projections!$E5,Achievement_forecast_ongoing!$C$6:$C$110,Projections!$C5,Achievement_forecast_ongoing!$F$6:$F$110,Projections!$F5)) -> 6.227429346 | W5: =IF(SUMIFS(Achievement_forecast_ongoing!J$6:J$110,Achievement_forecast_ongoing!$D$6:$D$110,Projections!$D5,Achievement_forecast_ongoing!$E$6:$E$110,Projections!$E5,Achievement_forecast_ongoing!$C$6:$C$110,Projections!$C5,Achievement_forecast_ongoing!$F$6:$F$110,Projections!$F5)>=9,9,SUMIFS(Achievement_forecast_ongoing!J$6:J$110,Achievement_forecast_ongoing!$D$6:$D$110,Projections!$D5,Achievement_forecast_ongoing!$E$6:$E$110,Projections!$E5,Achievement_forecast_ongoing!$C$6:$C$110,Projections!$C5,Achievement_forecast_ongoing!$F$6:$F$110,Projections!$F5)) -> 9 | X5: =Achievement_forecasts_future!G5 -> 0 | Y5: =Achievement_forecasts_future!H5 -> 0 | Z5: =Achievement_forecasts_future!I5 -> 0 | AA5: =Achievement_forecasts_future!J5 -> 0
C6: 1 | D6: All | E6: F.PA1 | F6: All | G6: 50667665 | H6: 37.11911693 | I6: 63.78962317 | J6: 80.07179767 | K6: 80.07179767 | L6: 18807389.82 | M6: 32320712.57 | N6: 40570510.2 | O6: 40570510.2 | P6: =Achievement_finalised!G6 -> 5523403.41 | Q6: =P6 -> 5523403.41 | R6: 5523403.41 | S6: 5523403.41 | T6: =SUMIFS(Achievement_forecast_ongoing!G$6:G$110,Achievement_forecast_ongoing!$D$6:$D$110,Projections!$D6,Achievement_forecast_ongoing!$E$6:$E$110,Projections!$E6,Achievement_forecast_ongoing!$C$6:$C$110,Projections!$C6,Achievement_forecast_ongoing!$F$6:$F$110,Projections!$F6) -> 13283986.41 | U6: =SUMIFS(Achievement_forecast_ongoing!H$6:H$110,Achievement_forecast_ongoing!$D$6:$D$110,Projections!$D6,Achievement_forecast_ongoing!$E$6:$E$110,Projections!$E6,Achievement_forecast_ongoing!$C$6:$C$110,Projections!$C6,Achievement_forecast_ongoing!$F$6:$F$110,Projections!$F6) -> 26797309.16 | V6: =SUMIFS(Achievement_forecast_ongoing!I$6:I$110,Achievement_forecast_ongoing!$D$6:$D$110,Projections!$D6,Achievement_forecast_ongoing!$E$6:$E$110,Projections!$E6,Achievement_forecast_ongoing!$C$6:$C$110,Projections!$C6,Achievement_forecast_ongoing!$F$6:$F$110,Projections!$F6) -> 35047106.79 | W6: =SUMIFS(Achievement_forecast_ongoing!J$6:J$110,Achievement_forecast_ongoing!$D$6:$D$110,Projections!$D6,Achievement_forecast_ongoing!$E$6:$E$110,Projections!$E6,Achievement_forecast_ongoing!$C$6:$C$110,Projections!$C6,Achievement_forecast_ongoing!$F$6:$F$110,Projections!$F6) -> 35047106.79 | X6: =IF(AND( X4=0, X5=0), 0, Achievement_forecasts_future!G6) -> 0 | Y6: =IF(AND( Y4=0, Y5=0), 0, Achievement_forecasts_future!H6) -> 0 | Z6: =IF(AND( Z4=0, Z5=0), 0, Achievement_forecasts_future!I6) -> 0 | AA6: =IF(AND( AA4=0, AA5=0), 0, Achievement_forecasts_future!J6) -> 0
C7: 2 | D7: All | E7: CO13a | F7: All | G7: 12 | H7: 0 | I7: 0 | J7: 0 | K7: 0 | L7: 0 | M7: 0 | N7: 0 | O7: 0 | P7: =Achievement_finalised!G7 -> 0 | Q7: 0 | R7: 0 | S7: 0 | T7: =SUMIFS(Achievement_forecast_ongoing!G$6:G$110,Achievement_forecast_ongoing!$D$6:$D$110,Projections!$D7,Achievement_forecast_ongoing!$E$6:$E$110,Projections!$E7,Achievement_forecast_ongoing!$C$6:$C$110,Projections!$C7,Achievement_forecast_ongoing!$F$6:$F$110,Projections!$F7) -> 0 | U7: =IF(SUMIFS(Achievement_forecast_ongoing!H$6:H$110,Achievement_forecast_ongoing!$D$6:$D$110,Projections!$D7,Achievement_forecast_ongoing!$E$6:$E$110,Projections!$E7,Achievement_forecast_ongoing!$C$6:$C$110,Projections!$C7,Achievement_forecast_ongoing!$F$6:$F$110,Projections!$F7)>=12,12,SUMIFS(Achievement_forecast_ongoing!H$6:H$110,Achievement_forecast_ongoing!$D$6:$D$110,Projections!$D7,Achievement_forecast_ongoing!$E$6:$E$110,Projections!$E7,Achievement_forecast_ongoing!$C$6:$C$110,Projections!$C7,Achievement_forecast_ongoing!$F$6:$F$110,Projections!$F7)) -> 0 | V7: =IF(SUMIFS(Achievement_forecast_ongoing!I$6:I$110,Achievement_forecast_ongoing!$D$6:$D$110,Projections!$D7,Achievement_forecast_ongoing!$E$6:$E$110,Projections!$E7,Achievement_forecast_ongoing!$C$6:$C$110,Projections!$C7,Achievement_forecast_ongoing!$F$6:$F$110,Projections!$F7)>=12,12,SUMIFS(Achievement_forecast_ongoing!I$6:I$110,Achievement_forecast_ongoing!$D$6:$D$110,Projections!$D7,Achievement_forecast_ongoing!$E$6:$E$110,Projections!$E7,Achievement_forecast_ongoing!$C$6:$C$110,Projections!$C7,Achievement_forecast_ongoing!$F$6:$F$110,Projections!$F7)) -> 0 | W7: =IF(SUMIFS(Achievement_forecast_ongoing!J$6:J$110,Achievement_forecast_ongoing!$D$6:$D$110,Projections!$D7,Achievement_forecast_ongoing!$E$6:$E$110,Projections!$E7,Achievement_forecast_ongoing!$C$6:$C$110,Projections!$C7,Achievement_forecast_ongoing!$F$6:$F$110,Projections!$F7)>=12,12,SUMIFS(Achievement_forecast_ongoing!J$6:J$110,Achievement_forecast_ongoing!$D$6:$D$110,Projections!$D7,Achievement_forecast_ongoing!$E$6:$E$110,Projections!$E7,Achievement_forecast_ongoing!$C$6:$C$110,Projections!$C7,Achievement_forecast_ongoing!$F$6:$F$110,Projections!$F7)) -> 0 | X7: =Achievement_forecasts_future!G7 -> 0 | Y7: =Achievement_forecasts_future!H7 -> 0 | Z7: =Achievement_forecasts_future!I7 -> 0 | AA7: =Achievement_forecasts_future!J7 -> 0
C8: 2 | D8: All | E8: 7/c 1 | F8: All | G8: 5 | H8: 320 | I8: 320 | J8: 320 | K8: 320 | L8: 16 | M8: =SUM(Q8,U8,Y8) -> 16 | N8: =SUM(R8,V8,Z8) -> 16 | O8: 16 | P8: =Achievement_finalised!G8 -> 0 | Q8: 0 | R8: 0 | S8: 0 | T8: =IF(SUMIFS(Achievement_forecast_ongoing!G$6:G$110,Achievement_forecast_ongoing!$D$6:$D$110,Projections!$D8,Achievement_forecast_ongoing!$E$6:$E$110,Projections!$E8,Achievement_forecast_ongoing!$C$6:$C$110,Projections!$C8,Achievement_forecast_ongoing!$F$6:$F$110,Projections!$F8)>=16,16,SUMIFS(Achievement_forecast_ongoing!G$6:G$110,Achievement_forecast_ongoing!$D$6:$D$110,Projections!$D8,Achievement_forecast_ongoing!$E$6:$E$110,Projections!$E8,Achievement_forecast_ongoing!$C$6:$C$110,Projections!$C8,Achievement_forecast_ongoing!$F$6:$F$110,Projections!$F8)) -> 16 | U8: =IF(SUMIFS(Achievement_forecast_ongoing!H$6:H$110,Achievement_forecast_ongoing!$D$6:$D$110,Projections!$D8,Achievement_forecast_ongoing!$E$6:$E$110,Projections!$E8,Achievement_forecast_ongoing!$C$6:$C$110,Projections!$C8,Achievement_forecast_ongoing!$F$6:$F$110,Projections!$F8)>=16,16,SUMIFS(Achievement_forecast_ongoing!H$6:H$110,Achievement_forecast_ongoing!$D$6:$D$110,Projections!$D8,Achievement_forecast_ongoing!$E$6:$E$110,Projections!$E8,Achievement_forecast_ongoing!$C$6:$C$110,Projections!$C8,Achievement_forecast_ongoing!$F$6:$F$110,Projections!$F8)) -> 16 | V8: =IF(SUMIFS(Achievement_forecast_ongoing!I$6:I$110,Achievement_forecast_ongoing!$D$6:$D$110,Projections!$D8,Achievement_forecast_ongoing!$E$6:$E$110,Projections!$E8,Achievement_forecast_ongoing!$C$6:$C$110,Projections!$C8,Achievement_forecast_ongoing!$F$6:$F$110,Projections!$F8)>=16,16,SUMIFS(Achievement_forecast_ongoing!I$6:I$110,Achievement_forecast_ongoing!$D$6:$D$110,Projections!$D8,Achievement_forecast_ongoing!$E$6:$E$110,Projections!$E8,Achievement_forecast_ongoing!$C$6:$C$110,Projections!$C8,Achievement_forecast_ongoing!$F$6:$F$110,Projections!$F8)) -> 16 | W8: =IF(SUMIFS(Achievement_forecast_ongoing!J$6:J$110,Achievement_forecast_ongoing!$D$6:$D$110,Projections!$D8,Achievement_forecast_ongoing!$E$6:$E$110,Projections!$E8,Achievement_forecast_ongoing!$C$6:$C$110,Projections!$C8,Achievement_forecast_ongoing!$F$6:$F$110,Projections!$F8)>=16,16,SUMIFS(Achievement_forecast_ongoing!J$6:J$110,Achievement_forecast_ongoing!$D$6:$D$110,Projections!$D8,Achievement_forecast_ongoing!$E$6:$E$110,Projections!$E8,Achievement_forecast_ongoing!$C$6:$C$110,Projections!$C8,Achievement_forecast_ongoing!$F$6:$F$110,Projections!$F8)) -> 16 | X8: =Achievement_forecasts_future!G8 -> 0 | Y8: =Achievement_forecasts_future!H8 -> 0 | Z8: =Achievement_forecasts_future!I8 -> 0 | AA8: =Achievement_forecasts_future!J8 -> 0
C9: 2 | D9: All | E9: F.PA2 | F9: All | G9: 20315586 | H9: 11.2828293 | I9: 72.78752311 | J9: 78.33543921 | K9: 78.33543921 | L9: 2292172.889 | M9: 14787211.86 | N9: 15914303.52 | O9: 15914303.52 | P9: =Achievement_finalised!G9 -> 48137.13 | Q9: 48137.13 | R9: 48137.13 | S9: 48137.13 | T9: =SUMIFS(Achievement_forecast_ongoing!G$6:G$110,Achievement_forecast_ongoing!$D$6:$D$110,Projections!$D9,Achievement_forecast_ongoing!$E$6:$E$110,Projections!$E9,Achievement_forecast_ongoing!$C$6:$C$110,Projections!$C9,Achievement_forecast_ongoing!$F$6:$F$110,Projections!$F9) -> 2244035.759 | U9: =SUMIFS(Achievement_forecast_ongoing!H$6:H$110,Achievement_forecast_ongoing!$D$6:$D$110,Projections!$D9,Achievement_forecast_ongoing!$E$6:$E$110,Projections!$E9,Achievement_forecast_ongoing!$C$6:$C$110,Projections!$C9,Achievement_forecast_ongoing!$F$6:$F$110,Projections!$F9) -> 14739074.73 | V9: =SUMIFS(Achievement_forecast_ongoing!I$6:I$110,Achievement_forecast_ongoing!$D$6:$D$110,Projections!$D9,Achievement_forecast_ongoing!$E$6:$E$110,Projections!$E9,Achievement_forecast_ongoing!$C$6:$C$110,Projections!$C9,Achievement_forecast_ongoing!$F$6:$F$110,Projections!$F9) -> 15866166.39 | W9: =SUMIFS(Achievement_forecast_ongoing!J$6:J$110,Achievement_forecast_ongoing!$D$6:$D$110,Projections!$D9,Achievement_forecast_ongoing!$E$6:$E$110,Projections!$E9,Achievement_forecast_ongoing!$C$6:$C$110,Projections!$C9,Achievement_forecast_ongoing!$F$6:$F$110,Projections!$F9) -> 15866166.39 | X9: =IF(AND( X7=0, X8=0), 0, Achievement_forecasts_future!G9) -> 0 | Y9: =IF(AND( Y7=0, Y8=0), 0, Achievement_forecasts_future!H9) -> 0 | Z9: =IF(AND( Z7=0, Z8=0), 0, Achievement_forecasts_future!I9) -> 0 | AA9: =IF(AND( AA7=0, AA8=0), 0, Achievement_forecasts_future!J9) -> 0
C10: 3 | D10: All | E10: CO44 | F10: All | G10: 10000 | H10: 21.84495763 | I10: 145.3941484 | J10: 304.2660374 | K10: 304.2660374 | L10: 2184.495763 | M10: 14539.41484 | N10: 30426.60374 | O10: 30426.60374 | P10: =Achievement_finalised!G10 -> 0 | Q10: 0 | R10: 0 | S10: 0 | T10: =IF(SUMIFS(Achievement_forecast_ongoing!G$6:G$110,Achievement_forecast_ongoing!$D$6:$D$110,Projections!$D10,Achievement_forecast_ongoing!$E$6:$E$110,Projections!$E10,Achievement_forecast_ongoing!$C$6:$C$110,Projections!$C10,Achievement_forecast_ongoing!$F$6:$F$110,Projections!$F10)>=30427,30427,SUMIFS(Achievement_forecast_ongoing!G$6:G$110,Achievement_forecast_ongoing!$D$6:$D$110,Projections!$D10,Achievement_forecast_ongoing!$E$6:$E$110,Projections!$E10,Achievement_forecast_ongoing!$C$6:$C$110,Projections!$C10,Achievement_forecast_ongoing!$F$6:$F$110,Projections!$F10)) -> 2184.495763 | U10: =IF(SUMIFS(Achievement_forecast_ongoing!H$6:H$110,Achievement_forecast_ongoing!$D$6:$D$110,Projections!$D10,Achievement_forecast_ongoing!$E$6:$E$110,Projections!$E10,Achievement_forecast_ongoing!$C$6:$C$110,Projections!$C10,Achievement_forecast_ongoing!$F$6:$F$110,Projections!$F10)>=30427,30427,SUMIFS(Achievement_forecast_ongoing!H$6:H$110,Achievement_forecast_ongoing!$D$6:$D$110,Projections!$D10,Achievement_forecast_ongoing!$E$6:$E$110,Projections!$E10,Achievement_forecast_ongoing!$C$6:$C$110,Projections!$C10,Achievement_forecast_ongoing!$F$6:$F$110,Projections!$F10)) -> 14539.41484 | V10: =IF(SUMIFS(Achievement_forecast_ongoing!I$6:I$110,Achievement_forecast_ongoing!$D$6:$D$110,Projections!$D10,Achievement_forecast_ongoing!$E$6:$E$110,Projections!$E10,Achievement_forecast_ongoing!$C$6:$C$110,Projections!$C10,Achievement_forecast_ongoing!$F$6:$F$110,Projections!$F10)>=30427,30427,SUMIFS(Achievement_forecast_ongoing!I$6:I$110,Achievement_forecast_ongoing!$D$6:$D$110,Projections!$D10,Achievement_forecast_ongoing!$E$6:$E$110,Projections!$E10,Achievement_forecast_ongoing!$C$6:$C$110,Projections!$C10,Achievement_forecast_ongoing!$F$6:$F$110,Projections!$F10)) -> 30426.60374 | W10: =IF(SUMIFS(Achievement_forecast_ongoing!J$6:J$110,Achievement_forecast_ongoing!$D$6:$D$110,Projections!$D10,Achievement_forecast_ongoing!$E$6:$E$110,Projections!$E10,Achievement_forecast_ongoing!$C$6:$C$110,Projections!$C10,Achievement_forecast_ongoing!$F$6:$F$110,Projections!$F10)>=30427,30427,SUMIFS(Achievement_forecast_ongoing!J$6:J$110,Achievement_forecast_ongoing!$D$6:$D$110,Projections!$D10,Achievement_forecast_ongoing!$E$6:$E$110,Projections!$E10,Achievement_forecast_ongoing!$C$6:$C$110,Projections!$C10,Achievement_forecast_ongoing!$F$6:$F$110,Projections!$F10)) -> 30426.60374 | X10: =Achievement_forecasts_future!G10 -> 0 | Y10: =Achievement_forecasts_future!H10 -> 0 | Z10: =Achievement_forecasts_future!I10 -> 0 | AA10: =Achievement_forecasts_future!J10 -> 0
C11: 3 | D11: All | E11: F.PA3 | F11: All | G11: 36086818 | H11: 23.80479048 | I11: 49.13247865 | J11: 85.95999754 | K11: 85.95999754 | L11: 8590391.416 | M11: 17730348.15 | N11: 31020227.87 | O11: 31020227.87 | P11: =Achievement_finalised!G11 -> 383161.02 | Q11: 383161.02 | R11: 383161.02 | S11: 383161.02 | T11: =SUMIFS(Achievement_forecast_ongoing!G$6:G$110,Achievement_forecast_ongoing!$D$6:$D$110,Projections!$D11,Achievement_forecast_ongoing!$E$6:$E$110,Projections!$E11,Achievement_forecast_ongoing!$C$6:$C$110,Projections!$C11,Achievement_forecast_ongoing!$F$6:$F$110,Projections!$F11) -> 8207230.396 | U11: =SUMIFS(Achievement_forecast_ongoing!H$6:H$110,Achievement_forecast_ongoing!$D$6:$D$110,Projections!$D11,Achievement_forecast_ongoing!$E$6:$E$110,Projections!$E11,Achievement_forecast_ongoing!$C$6:$C$110,Projections!$C11,Achievement_forecast_ongoing!$F$6:$F$110,Projections!$F11) -> 17347187.13 | V11: =SUMIFS(Achievement_forecast_ongoing!I$6:I$110,Achievement_forecast_ongoing!$D$6:$D$110,Projections!$D11,Achievement_forecast_ongoing!$E$6:$E$110,Projections!$E11,Achievement_forecast_ongoing!$C$6:$C$110,Projections!$C11,Achievement_forecast_ongoing!$F$6:$F$110,Projections!$F11) -> 30637066.85 | W11: =SUMIFS(Achievement_forecast_ongoing!J$6:J$110,Achievement_forecast_ongoing!$D$6:$D$110,Projections!$D11,Achievement_forecast_ongoing!$E$6:$E$110,Projections!$E11,Achievement_forecast_ongoing!$C$6:$C$110,Projections!$C11,Achievement_forecast_ongoing!$F$6:$F$110,Projections!$F11) -> 30637066.85 | X11: =IF(X10=0, 0, Achievement_forecasts_future!G11) -> 0 | Y11: =IF(Y10=0, 0, Achievement_forecasts_future!H11) -> 0 | Z11: =IF(Z10=0, 0, Achievement_forecasts_future!I11) -> 0 | AA11: =IF(AA10=0, 0, Achievement_forecasts_future!J11) -> 0
C12: 4 | D12: All | E12: 9/a 2 | F12: All | G12: 58 | H12: 12.80696263 | I12: 135.9703521 | J12: 232.7586207 | K12: 302.0689655 | L12: 7.428038323 | M12: 78.8628042 | N12: 135 | O12: 175.2 | P12: =Achievement_finalised!G12 -> 0 | Q12: 0 | R12: 0 | S12: 0 | T12: =IF(SUMIFS(Achievement_forecast_ongoing!G$6:G$110,Achievement_forecast_ongoing!$D$6:$D$110,Projections!$D12,Achievement_forecast_ongoing!$E$6:$E$110,Projections!$E12,Achievement_forecast_ongoing!$C$6:$C$110,Projections!$C12,Achievement_forecast_ongoing!$F$6:$F$110,Projections!$F12)>=135,135,SUMIFS(Achievement_forecast_ongoing!G$6:G$110,Achievement_forecast_ongoing!$D$6:$D$110,Projections!$D12,Achievement_forecast_ongoing!$E$6:$E$110,Projections!$E12,Achievement_forecast_ongoing!$C$6:$C$110,Projections!$C12,Achievement_forecast_ongoing!$F$6:$F$110,Projections!$F12)) -> 7.428038323 | U12: =IF(SUMIFS(Achievement_forecast_ongoing!H$6:H$110,Achievement_forecast_ongoing!$D$6:$D$110,Projections!$D12,Achievement_forecast_ongoing!$E$6:$E$110,Projections!$E12,Achievement_forecast_ongoing!$C$6:$C$110,Projections!$C12,Achievement_forecast_ongoing!$F$6:$F$110,Projections!$F12)>=135,135,SUMIFS(Achievement_forecast_ongoing!H$6:H$110,Achievement_forecast_ongoing!$D$6:$D$110,Projections!$D12,Achievement_forecast_ongoing!$E$6:$E$110,Projections!$E12,Achievement_forecast_ongoing!$C$6:$C$110,Projections!$C12,Achievement_forecast_ongoing!$F$6:$F$110,Projections!$F12)) -> 78.8628042 | V12: =IF(SUMIFS(Achievement_forecast_ongoing!I$6:I$110,Achievement_forecast_ongoing!$D$6:$D$110,Projections!$D12,Achievement_forecast_ongoing!$E$6:$E$110,Projections!$E12,Achievement_forecast_ongoing!$C$6:$C$110,Projections!$C12,Achievement_forecast_ongoing!$F$6:$F$110,Projections!$F12)>=135,135,SUMIFS(Achievement_forecast_ongoing!I$6:I$110,Achievement_forecast_ongoing!$D$6:$D$110,Projections!$D12,Achievement_forecast_ongoing!$E$6:$E$110,Projections!$E12,Achievement_forecast_ongoing!$C$6:$C$110,Projections!$C12,Achievement_forecast_ongoing!$F$6:$F$110,Projections!$F12)) -> 135 | W12: =IF(SUMIFS(Achievement_forecast_ongoing!J$6:J$110,Achievement_forecast_ongoing!$D$6:$D$110,Projections!$D12,Achievement_forecast_ongoing!$E$6:$E$110,Projections!$E12,Achievement_forecast_ongoing!$C$6:$C$110,Projections!$C12,Achievement_forecast_ongoing!$F$6:$F$110,Projections!$F12)>=135,135,SUMIFS(Achievement_forecast_ongoing!J$6:J$110,Achievement_forecast_ongoing!$D$6:$D$110,Projections!$D12,Achievement_forecast_ongoing!$E$6:$E$110,Projections!$E12,Achievement_forecast_ongoing!$C$6:$C$110,Projections!$C12,Achievement_forecast_ongoing!$F$6:$F$110,Projections!$F12)) -> 135 | X12: =Achievement_forecasts_future!G12 -> 0 | Y12: =Achievement_forecasts_future!H12 -> 0 | Z12: =Achievement_forecasts_future!I12 -> 0 | AA12: =Achievement_forecasts_future!J12 -> 40.2
C13: 4 | D13: All | E13: F.PA4 | F13: All | G13: 85114457 | H13: 21.80234314 | I13: 50.49475294 | J13: 66.65036018 | K13: 66.89603754 | L13: 18556945.98 | M13: 42978334.78 | N13: 56729092.15 | O13: 56938199.1 | P13: =Achievement_finalised!G13 -> 841819.68 | Q13: 841819.68 | R13: 841819.68 | S13: 841819.68 | T13: =SUMIFS(Achievement_forecast_ongoing!G$6:G$110,Achievement_forecast_ongoing!$D$6:$D$110,Projections!$D13,Achievement_forecast_ongoing!$E$6:$E$110,Projections!$E13,Achievement_forecast_ongoing!$C$6:$C$110,Projections!$C13,Achievement_forecast_ongoing!$F$6:$F$110,Projections!$F13) -> 17715126.3 | U13: =SUMIFS(Achievement_forecast_ongoing!H$6:H$110,Achievement_forecast_ongoing!$D$6:$D$110,Projections!$D13,Achievement_forecast_ongoing!$E$6:$E$110,Projections!$E13,Achievement_forecast_ongoing!$C$6:$C$110,Projections!$C13,Achievement_forecast_ongoing!$F$6:$F$110,Projections!$F13) -> 42136515.1 | V13: =SUMIFS(Achievement_forecast_ongoing!I$6:I$110,Achievement_forecast_ongoing!$D$6:$D$110,Projections!$D13,Achievement_forecast_ongoing!$E$6:$E$110,Projections!$E13,Achievement_forecast_ongoing!$C$6:$C$110,Projections!$C13,Achievement_forecast_ongoing!$F$6:$F$110,Projections!$F13) -> 55887272.47 | W13: =SUMIFS(Achievement_forecast_ongoing!J$6:J$110,Achievement_forecast_ongoing!$D$6:$D$110,Projections!$D13,Achievement_forecast_ongoing!$E$6:$E$110,Projections!$E13,Achievement_forecast_ongoing!$C$6:$C$110,Projections!$C13,Achievement_forecast_ongoing!$F$6:$F$110,Projections!$F13) -> 55887272.47 | X13: =IF(X12=0, 0, Achievement_forecasts_future!G13) -> 0 | Y13: =IF(Y12=0, 0, Achievement_forecasts_future!H13) -> 0 | Z13: =IF(Z12=0, 0, Achievement_forecasts_future!I13) -> 0 | AA13: =IF(AA12=0, 0, Achievement_forecasts_future!J13) -> 209106.9514
C14: 5 | D14: All | E14: 5/b 1 | F14: All | G14: 970000 | H14: 47.17475788 | I14: 129.2533488 | J14: 189.50913 | K14: 189.50913 | L14: 457595.1514 | M14: 1253757.483 | N14: 1838238.561 | O14: 1838238.561 | P14: =Achievement_finalised!G14 -> 111909 | Q14: 111909 | R14: 111909 | S14: 111909 | T14: =SUMIFS(Achievement_forecast_ongoing!G$6:G$110,Achievement_forecast_ongoing!$D$6:$D$110,Projections!$D14,Achievement_forecast_ongoing!$E$6:$E$110,Projections!$E14,Achievement_forecast_ongoing!$C$6:$C$110,Projections!$C14,Achievement_forecast_ongoing!$F$6:$F$110,Projections!$F14) -> 345686.1514 | U14: =SUMIFS(Achievement_forecast_ongoing!H$6:H$110,Achievement_forecast_ongoing!$D$6:$D$110,Projections!$D14,Achievement_forecast_ongoing!$E$6:$E$110,Projections!$E14,Achievement_forecast_ongoing!$C$6:$C$110,Projections!$C14,Achievement_forecast_ongoing!$F$6:$F$110,Projections!$F14) -> 1141848.483 | V14: =SUMIFS(Achievement_forecast_ongoing!I$6:I$110,Achievement_forecast_ongoing!$D$6:$D$110,Projections!$D14,Achievement_forecast_ongoing!$E$6:$E$110,Projections!$E14,Achievement_forecast_ongoing!$C$6:$C$110,Projections!$C14,Achievement_forecast_ongoing!$F$6:$F$110,Projections!$F14) -> 1726329.561 | W14: =SUMIFS(Achievement_forecast_ongoing!J$6:J$110,Achievement_forecast_ongoing!$D$6:$D$110,Projections!$D14,Achievement_forecast_ongoing!$E$6:$E$110,Projections!$E14,Achievement_forecast_ongoing!$C$6:$C$110,Projections!$C14,Achievement_forecast_ongoing!$F$6:$F$110,Projections!$F14) -> 1726329.561 | X14: =Achievement_forecasts_future!G14 -> 0 | Y14: =Achievement_forecasts_future!H14 -> 0 | Z14: =Achievement_forecasts_future!I14 -> 0 | AA14: =Achievement_forecasts_future!J14 -> 0
C15: 5 | D15: All | E15: F.PA5 | F15: All | G15: 12967218 | H15: =L15/$G15*100 -> 46.84869273 | I15: =M15/$G15*100 -> 98.71128383 | J15: =N15/$G15*100 -> 98.71128383 | K15: =O15/$G15*100 -> 98.71128383 | L15: 6074972.116 | M15: 12800107.37 | N15: 12800107.37 | O15: 12800107.37 | P15: =Achievement_finalised!G15 -> 4212819.7 | Q15: 4212819.7 | R15: 4212819.7 | S15: 4212819.7 | T15: =SUMIFS(Achievement_forecast_ongoing!G$6:G$110,Achievement_forecast_ongoing!$D$6:$D$110,Projections!$D15,Achievement_forecast_ongoing!$E$6:$E$110,Projections!$E15,Achievement_forecast_ongoing!$C$6:$C$110,Projections!$C15,Achievement_forecast_ongoing!$F$6:$F$110,Projections!$F15) -> 1862152.416 | U15: =SUMIFS(Achievement_forecast_ongoing!H$6:H$110,Achievement_forecast_ongoing!$D$6:$D$110,Projections!$D15,Achievement_forecast_ongoing!$E$6:$E$110,Projections!$E15,Achievement_forecast_ongoing!$C$6:$C$110,Projections!$C15,Achievement_forecast_ongoing!$F$6:$F$110,Projections!$F15) -> 8587287.665 | V15: =SUMIFS(Achievement_forecast_ongoing!I$6:I$110,Achievement_forecast_ongoing!$D$6:$D$110,Projections!$D15,Achievement_forecast_ongoing!$E$6:$E$110,Projections!$E15,Achievement_forecast_ongoing!$C$6:$C$110,Projections!$C15,Achievement_forecast_ongoing!$F$6:$F$110,Projections!$F15) -> 8587287.665 | W15: =SUMIFS(Achievement_forecast_ongoing!J$6:J$110,Achievement_forecast_ongoing!$D$6:$D$110,Projections!$D15,Achievement_forecast_ongoing!$E$6:$E$110,Projections!$E15,Achievement_forecast_ongoing!$C$6:$C$110,Projections!$C15,Achievement_forecast_ongoing!$F$6:$F$110,Projections!$F15) -> 8587287.665 | X15: =IF(X14=0, 0, Achievement_forecasts_future!G15) -> 0 | Y15: =IF(Y14=0, 0, Achievement_forecasts_future!H15) -> 0 | Z15: =IF(Z14=0, 0, Achievement_forecasts_future!I15) -> 0 | AA15: =IF(AA14=0, 0, Achievement_forecasts_future!J15) -> 0
C16: 6 | D16: All | E16: 11/b1 | F16: All | G16: 36 | H16: 38.88888889 | I16: 59.07037288 | J16: 64.83651116 | K16: 64.83651116 | L16: =P16+T16+X16 -> 14 | M16: =Q16+U16+Y16 -> 21.26533424 | N16: =R16+V16+Z16 -> 23.34114402 | O16: =S16+W16+AA16 -> 23.34114402 | P16: =Achievement_finalised!G16 -> 14 | Q16: =P16 -> 14 | R16: =Q16 -> 14 | S16: =R16 -> 14 | T16: =IF(SUMIFS(Achievement_forecast_ongoing!G$6:G$110,Achievement_forecast_ongoing!$D$6:$D$110,Projections!$D16,Achievement_forecast_ongoing!$E$6:$E$110,Projections!$E16,Achievement_forecast_ongoing!$C$6:$C$110,Projections!$C16,Achievement_forecast_ongoing!$F$6:$F$110,Projections!$F16)>=46,46,SUMIFS(Achievement_forecast_ongoing!G$6:G$110,Achievement_forecast_ongoing!$D$6:$D$110,Projections!$D16,Achievement_forecast_ongoing!$E$6:$E$110,Projections!$E16,Achievement_forecast_ongoing!$C$6:$C$110,Projections!$C16,Achievement_forecast_ongoing!$F$6:$F$110,Projections!$F16)) -> 0 | U16: =IF(SUMIFS(Achievement_forecast_ongoing!H$6:H$110,Achievement_forecast_ongoing!$D$6:$D$110,Projections!$D16,Achievement_forecast_ongoing!$E$6:$E$110,Projections!$E16,Achievement_forecast_ongoing!$C$6:$C$110,Projections!$C16,Achievement_forecast_ongoing!$F$6:$F$110,Projections!$F16)>=46,46,SUMIFS(Achievement_forecast_ongoing!H$6:H$110,Achievement_forecast_ongoing!$D$6:$D$110,Projections!$D16,Achievement_forecast_ongoing!$E$6:$E$110,Projections!$E16,Achievement_forecast_ongoing!$C$6:$C$110,Projections!$C16,Achievement_forecast_ongoing!$F$6:$F$110,Projections!$F16)) -> 7.265334237 | V16: =IF(SUMIFS(Achievement_forecast_ongoing!I$6:I$110,Achievement_forecast_ongoing!$D$6:$D$110,Projections!$D16,Achievement_forecast_ongoing!$E$6:$E$110,Projections!$E16,Achievement_forecast_ongoing!$C$6:$C$110,Projections!$C16,Achievement_forecast_ongoing!$F$6:$F$110,Projections!$F16)>=46,46,SUMIFS(Achievement_forecast_ongoing!I$6:I$110,Achievement_forecast_ongoing!$D$6:$D$110,Projections!$D16,Achievement_forecast_ongoing!$E$6:$E$110,Projections!$E16,Achievement_forecast_ongoing!$C$6:$C$110,Projections!$C16,Achievement_forecast_ongoing!$F$6:$F$110,Projections!$F16)) -> 9.341144019 | W16: =IF(SUMIFS(Achievement_forecast_ongoing!J$6:J$110,Achievement_forecast_ongoing!$D$6:$D$110,Projections!$D16,Achievement_forecast_ongoing!$E$6:$E$110,Projections!$E16,Achievement_forecast_ongoing!$C$6:$C$110,Projections!$C16,Achievement_forecast_ongoing!$F$6:$F$110,Projections!$F16)>=46,46,SUMIFS(Achievement_forecast_ongoing!J$6:J$110,Achievement_forecast_ongoing!$D$6:$D$110,Projections!$D16,Achievement_forecast_ongoing!$E$6:$E$110,Projections!$E16,Achievement_forecast_ongoing!$C$6:$C$110,Projections!$C16,Achievement_forecast_ongoing!$F$6:$F$110,Projections!$F16)) -> 9.341144019 | X16: =Achievement_forecasts_future!G16 -> 0 | Y16: =Achievement_forecasts_future!H16 -> 0 | Z16: =Achievement_forecasts_future!I16 -> 0 | AA16: =Achievement_forecasts_future!J16 -> 0
C17: 6 | D17: All | E17: F.PA6 | F17: All | G17: 4013379 | H17: 91.95677225 | I17: 99.07214713 | J17: 99.07214713 | K17: 99.07214713 | L17: 3690573.787 | M17: 3976140.748 | N17: 3976140.748 | O17: 3976140.748 | P17: =Achievement_finalised!G17 -> 3382212.88 | Q17: 3382212.88 | R17: 3382212.88 | S17: 3382212.88 | T17: =SUMIFS(Achievement_forecast_ongoing!G$6:G$110,Achievement_forecast_ongoing!$D$6:$D$110,Projections!$D17,Achievement_forecast_ongoing!$E$6:$E$110,Projections!$E17,Achievement_forecast_ongoing!$C$6:$C$110,Projections!$C17,Achievement_forecast_ongoing!$F$6:$F$110,Projections!$F17) -> 308360.9067 | U17: =SUMIFS(Achievement_forecast_ongoing!H$6:H$110,Achievement_forecast_ongoing!$D$6:$D$110,Projections!$D17,Achievement_forecast_ongoing!$E$6:$E$110,Projections!$E17,Achievement_forecast_ongoing!$C$6:$C$110,Projections!$C17,Achievement_forecast_ongoing!$F$6:$F$110,Projections!$F17) -> 593927.8679 | V17: =SUMIFS(Achievement_forecast_ongoing!I$6:I$110,Achievement_forecast_ongoing!$D$6:$D$110,Projections!$D17,Achievement_forecast_ongoing!$E$6:$E$110,Projections!$E17,Achievement_forecast_ongoing!$C$6:$C$110,Projections!$C17,Achievement_forecast_ongoing!$F$6:$F$110,Projections!$F17) -> 593927.8679 | W17: =SUMIFS(Achievement_forecast_ongoing!J$6:J$110,Achievement_forecast_ongoing!$D$6:$D$110,Projections!$D17,Achievement_forecast_ongoing!$E$6:$E$110,Projections!$E17,Achievement_forecast_ongoing!$C$6:$C$110,Projections!$C17,Achievement_forecast_ongoing!$F$6:$F$110,Projections!$F17) -> 593927.8679 | X17: =IF(X16=0, 0, Achievement_forecasts_future!G17) -> 0 | Y17: =IF(Y16=0, 0, Achievement_forecasts_future!H17) -> 0 | Z17: =IF(Z16=0, 0, Achievement_forecasts_future!I17) -> 0 | AA17: =IF(AA16=0, 0, Achievement_forecasts_future!J17) -> 0

Sheet Achievement_finalised
B1: Date of extraction | D1: 2021-02-16
B2: Characteristics
B3: PA | C3: PI | D3: Indicator | E3: Region | F3: Type | G3: Cumulative achievement
B4: 1 | C4: All | D4: CO09 | E4: All | F4: Physical | G4: 77267
B5: 1 | C5: All | D5: 6/b 1 | E5: All | F5: Physical | G5: 0
B6: 1 | C6: All | D6: F.PA1 | E6: All | F6: Financial | G6: 5523403.41
B7: 2 | C7: All | D7: CO13a | E7: All | F7: Physical | G7: 0
B8: 2 | C8: All | D8: 7/c 1 | E8: All | F8: Physical | G8: 0
B9: 2 | C9: All | D9: F.PA2 | E9: All | F9: Financial | G9: 48137.13
B10: 3 | C10: All | D10: CO44 | E10: All | F10: Physical | G10: 0
B11: 3 | C11: All | D11: F.PA3 | E11: All | F11: Financial | G11: 383161.02
B12: 4 | C12: All | D12: 9/a 2 | E12: All | F12: Physical | G12: 0
B13: 4 | C13: All | D13: F.PA4 | E13: All | F13: Financial | G13: 841819.68
B14: 5 | C14: All | D14: 5/b 1 | E14: All | F14: Physical | G14: 111909
B15: 5 | C15: All | D15: F.PA5 | E15: All | F15: Financial | G15: 4212819.7
B16: 6 | C16: All | D16: 11/b1 | E16: All | F16: Physical | G16: 14
B17: 6 | C17: All | D17: F.PA6 | E17: All | F17: Financial | G17: 3382212.88

Sheet Achievement_to_date_ongoing
C2: Characteristics | K2: Expected achievement | M2: % complete by the end of year
B3: SMIS CODE | C3: PA | D3: PI | E3: Indicator | F3: Region | G3: Type | H3: Value | I3: Start date | J3: End date | M3: 2020 | N3: 2021 | O3: 2022 | P3: 2023
B4: ROHU-14 | C4: 1 | D4: All | E4: CO09 | F4: All | G4: Physical | H4: 0 | I4: 2018-01-03 | J4: 2021-08-31 | K4: 6595.885582 | M4: 1 | N4: 1 | O4: 1 | P4: 1
B5: ROHU-115 | C5: 1 | D5: All | E5: CO09 | F5: All | G5: Physical | H5: 0 | I5: 2018-01-03 | J5: 2022-02-28 | K5: 5189.524455 | M5: 0 | N5: 1 | O5: 1 | P5: 1
B6: ROHU-445 | C6: 1 | D6: All | E6: CO09 | F6: All | G6: Physical | H6: 0 | I6: 2019-01-06 | J6: 2022-05-31 | K6: 19161.8001 | M6: 0 | N6: 0 | O6: 1 | P6: 1
B7: ROHU-446 | C7: 1 | D7: All | E7: CO09 | F7: All | G7: Physical | H7: 0 | I7: 2019-01-06 | J7: 2022-05-31 | K7: 26005.74495 | M7: 0 | N7: 0 | O7: 1 | P7: 1
B8: ROHU-456 | C8: 1 | D8: All | E8: CO09 | F8: All | G8: Physical | H8: 0 | I8: 2020-01-10 | J8: 2023-01-31 | K8: 31137.14673 | M8: 0 | N8: 0 | O8: 1 | P8: 1
B9: ROHU-126 | C9: 1 | D9: All | E9: CO09 | F9: All | G9: Physical | H9: 0 | I9: 2018-01-07 | J9: 2022-12-31 | K9: 51895.24455 | M9: 0 | N9: 0 | O9: 1 | P9: 1
B10: ROHU-224 | C10: 1 | D10: All | E10: 6/b 1 | F10: All | G10: Physical | H10: 0 | I10: 2019-01-04 | J10: 2021-09-30 | K10: 3.113714673 | M10: 0 | N10: 0 | O10: 0 | P10: 1
B11: ROHU-208 | C11: 1 | D11: All | E11: 6/b 1 | F11: All | G11: Physical | H11: 0 | I11: 2018-01-12 | J11: 2023-09-30 | K11: 6.227429346 | M11: 0 | N11: 1 | O11: 1 | P11: 1
B12: ROHU-14 | C12: 1 | D12: All | E12: F.PA1 | F12: All | G12: Financial | H12: 948529.49 | I12: 2018-01-03 | J12: 2021-08-31 | K12: 2194518.205 | M12: 0 | N12: 1 | O12: 1 | P12: 1
B13: ROHU-115 | C13: 1 | D13: All | E13: F.PA1 | F13: All | G13: Financial | H13: 454027.02 | I13: 2018-01-03 | J13: 2022-02-28 | K13: 1179883.941 | M13: 1 | N13: 1 | O13: 1 | P13: 1
B14: ROHU-224 | C14: 1 | D14: All | E14: F.PA1 | F14: All | G14: Financial | H14: 125952.02 | I14: 2019-01-04 | J14: 2021-09-30 | K14: 1383764.169 | M14: 0.4869997411 | N14: 1 | O14: 1 | P14: 1
B15: ROHU-53 | C15: 1 | D15: All | E15: F.PA1 | F15: All | G15: Financial | H15: 714650.17 | I15: 2018-01-05 | J15: 2022-04-30 | K15: 2075785.562 | M15: 0.3236799187 | N15: 0.8532986972 | O15: 1 | P15: 1
B16: ROHU-68 | C16: 1 | D16: All | E16: F.PA1 | F16: All | G16: Financial | H16: 419640.92 | I16: 2018-01-04 | J16: 2021-06-30 | K16: 662520.7083 | M16: 1 | N16: 1 | O16: 1 | P16: 1
B17: ROHU-445 | C17: 1 | D17: All | E17: F.PA1 | F17: All | G17: Financial | H17: 1132766.65 | I17: 2019-01-06 | J17: 2022-05-31 | K17: 5487845.717 | M17: 1 | N17: 1 | O17: 1 | P17: 1
B18: ROHU-446 | C18: 1 | D18: All | E18: F.PA1 | F18: All | G18: Financial | H18: 899043.29 | I18: 2019-01-06 | J18: 2022-05-31 | K18: 7447905.477 | M18: 0.1792350621 | N18: 0.6200952053 | O18: 1 | P18: 1
B19: ROHU-208 | C19: 1 | D19: All | E19: F.PA1 | F19: All | G19: Financial | H19: 898470.02 | I19: 2018-01-12 | J19: 2023-09-30 | K19: 2972742.422 | M19: 0.1953920541 | N19: 0.4490842828 | O19: 1 | P19: 1
B20: ROHU-456 | C20: 1 | D20: All | E20: F.PA1 | F20: All | G20: Financial | H20: 88137.55 | I20: 2020-01-10 | J20: 2023-01-31 | K20: 9155061.232 | M20: 0.1792350621 | N20: 0.6200952053 | O20: 1 | P20: 1
B21: ROHU-62 | C21: 1 | D21: All | E21: F.PA1 | F21: All | G21: Financial | H21: 695926.23 | I21: 2018-01-04 | J21: 2021-08-31 | K21: 750917.1806 | M21: 0.6200952053 | N21: 1 | O21: 1 | P21: 1
B22: ROHU-126 | C22: 1 | D22: All | E22: F.PA1 | F22: All | G22: Financial | H22: 432061.06 | I22: 2018-01-07 | J22: 2022-12-31 | K22: 1736162.178 | M22: 0.3373123733 | N22: 1 | O22: 1 | P22: 1
B23: ROHU-422 | C23: 2 | D23: All | E23: 7/c 1 | F23: All | G23: Physical | H23: 0 | I23: 2019-01-03 | J23: 2022-10-31 | K23: 1.037904891 | M23: 0.5722487564 | N23: 1 | O23: 1 | P23: 1
B24: ROHU-390 | C24: 2 | D24: All | E24: 7/c 1 | F24: All | G24: Physical | H24: 0 | I24: 2019-01-02 | J24: 2021-12-31 | K24: 15.56857337 | M24: 1 | N24: 1 | O24: 1 | P24: 1
B25: ROHU-422 | C25: 2 | D25: All | E25: F.PA2 | F25: All | G25: Financial | H25: 308243.81 | I25: 2019-01-03 | J25: 2022-10-31 | K25: 610793.9079 | M25: 0.2858151667 | N25: 0.7276730331 | O25: 1 | P25: 1
B26: ROHU-390 | C26: 2 | D26: All | E26: F.PA2 | F26: All | G26: Financial | H26: 1975346.36 | I26: 2019-01-02 | J26: 2021-12-31 | K26: 2295698.506 | M26: 0.4869997411 | N26: 1 | O26: 1 | P26: 1
B27: ROHU-128 | C27: 2 | D27: All | E27: F.PA2 | F27: All | G27: Financial | H27: 491814.84 | I27: 2018-01-11 | J27: 2021-12-31 | K27: 1160252.887 | M27: 0.8200427933 | N27: 1 | O27: 1 | P27: 1
B28: ROHU-444 | C28: 2 | D28: All | E28: F.PA2 | F28: All | G28: Financial | H28: 2411819.01 | I28: 2019-01-07 | J28: 2022-06-30 | K28: 10838665.08 | M28: 0 | N28: 1 | O28: 1 | P28: 1
B29: ROHU-140 | C29: 2 | D29: All | E29: F.PA2 | F29: All | G29: Financial | H29: 84825.76 | I29: 2018-01-12 | J29: 2022-03-31 | K29: 960756.0132 | M29: 0 | N29: 0 | O29: 1 | P29: 1
B30: ROHU-385 | C30: 3 | D30: All | E30: CO44 | F30: All | G30: Physical | H30: 1084 | I30: 2019-01-03 | J30: 2021-08-31 | K30: 1168.217536 | M30: 0.6717996061 | N30: 1 | O30: 1 | P30: 1
B31: ROHU-421 | C31: 3 | D31: All | E31: CO44 | F31: All | G31: Physical | H31: 0 | I31: 2020-01-05 | J31: 2022-08-31 | K31: 2667.41557 | M31: 0.1716144376 | N31: 0.5722487564 | O31: 1 | P31: 1
B32: ROHU-380 | C32: 3 | D32: All | E32: CO44 | F32: All | G32: Physical | H32: 74 | I32: 2019-01-03 | J32: 2021-08-31 | K32: 79.74916759 | M32: 0.2629112049 | N32: 1 | O32: 1 | P32: 1
B33: ROHU-359 | C33: 3 | D33: All | E33: CO44 | F33: All | G33: Physical | H33: 0 | I33: 2020-01-05 | J33: 2022-07-31 | K33: 1287.002065 | M33: 0.1376443595 | N33: 0.413997907 | O33: 1 | P33: 1
B34: ROHU-374 | C34: 3 | D34: All | E34: CO44 | F34: All | G34: Physical | H34: 0 | I34: 2019-01-03 | J34: 2022-02-28 | K34: 446.2991031 | M34: 0.6200952053 | N34: 1 | O34: 1 | P34: 1
B35: ROHU-452 | C35: 3 | D35: All | E35: CO44 | F35: All | G35: Physical | H35: 0 | I35: 2020-01-02 | J35: 2022-10-31 | K35: 2786.774632 | M35: 0 | N35: 1 | O35: 1 | P35: 1
B36: ROHU-388 | C36: 3 | D36: All | E36: CO44 | F36: All | G36: Physical | H36: 0 | I36: 2020-01-03 | J36: 2022-08-31 | K36: 625.8566493 | M36: 0 | N36: 1 | O36: 1 | P36: 1
B37: ROHU-370 | C37: 3 | D37: All | E37: CO44 | F37: All | G37: Physical | H37: 0 | I37: 2020-01-02 | J37: 2022-01-31 | K37: 589.5299781 | M37: 0 | N37: 0 | O37: 1 | P37: 1
B38: ROHU-399 | C38: 3 | D38: All | E38: CO44 | F38: All | G38: Physical | H38: 203 | I38: 2019-01-03 | J38: 2021-10-31 | K38: 232.5149834 | M38: 0 | N38: 0 | O38: 1 | P38: 1
B39: ROHU-395 | C39: 3 | D39: All | E39: CO44 | F39: All | G39: Physical | H39: 0 | I39: 2020-01-02 | J39: 2022-01-31 | K39: 1002.616125 | M39: 0 | N39: 1 | O39: 1 | P39: 1
B40: ROHU-426 | C40: 3 | D40: All | E40: CO44 | F40: All | G40: Physical | H40: 0 | I40: 2021-01-05 | J40: 2023-04-30 | K40: 1193.590625 | M40: 0 | N40: 0 | O40: 1 | P40: 1
B41: ROHU-391 | C41: 3 | D41: All | E41: CO44 | F41: All | G41: Physical | H41: 0 | I41: 2020-01-02 | J41: 2022-01-31 | K41: 788.8077172 | M41: 0 | N41: 0 | O41: 1 | P41: 1
B42: ROHU-420 | C42: 3 | D42: All | E42: CO44 | F42: All | G42: Physical | H42: 0 | I42: 2019-01-12 | J42: 2022-08-31 | K42: 415.1619564 | M42: 0 | N42: 1 | O42: 1 | P42: 1
B43: ROHU-398 | C43: 3 | D43: All | E43: CO44 | F43: All | G43: Physical | H43: 230 | I43: 2019-01-03 | J43: 2022-02-28 | K43: 294.0732519 | M43: 0 | N43: 0 | O43: 1 | P43: 1
B44: ROHU-331 | C44: 3 | D44: All | E44: CO44 | F44: All | G44: Physical | H44: 8520 | I44: 2019-01-03 | J44: 2022-02-28 | K44: 10893.49612 | M44: 0 | N44: 0 | O44: 1 | P44: 1
B45: ROHU-406 | C45: 3 | D45: All | E45: CO44 | F45: All | G45: Physical | H45: 0 | I45: 2019-01-03 | J45: 2021-08-31 | K45: 5397.105433 | M45: 0 | N45: 1 | O45: 1 | P45: 1
B46: ROHU-348 | C46: 3 | D46: All | E46: CO44 | F46: All | G46: Physical | H46: 0 | I46: 2019-01-03 | J46: 2021-06-30 | K46: 91.33563041 | M46: 0 | N46: 1 | O46: 1 | P46: 1
B47: ROHU-425 | C47: 3 | D47: All | E47: CO44 | F47: All | G47: Physical | H47: 0 | I47: 2020-01-03 | J47: 2022-02-28 | K47: 467.057201 | M47: 1 | N47: 1 | O47: 1 | P47: 1
B48: ROHU-385 | C48: 3 | D48: All | E48: F.PA3 | F48: All | G48: Financial | H48: 288184.4 | I48: 2019-01-03 | J48: 2021-08-31 | K48: 355967.1492 | M48: 0 | N48: 1 | O48: 1 | P48: 1
B49: ROHU-421 | C49: 3 | D49: All | E49: F.PA3 | F49: All | G49: Financial | H49: 8691.3 | I49: 2020-01-05 | J49: 2022-08-31 | K49: 5988535.03 | M49: 0 | N49: 0 | O49: 1 | P49: 1
B50: ROHU-380 | C50: 3 | D50: All | E50: F.PA3 | F50: All | G50: Financial | H50: 1663193.94 | I50: 2019-01-03 | J50: 2021-08-31 | K50: 2382933.203 | M50: 0 | N50: 0 | O50: 1 | P50: 1
B51: ROHU-359 | C51: 3 | D51: All | E51: F.PA3 | F51: All | G51: Financial | H51: 29897.66 | I51: 2020-01-05 | J51: 2022-07-31 | K51: 2085945.074 | M51: 0 | N51: 0 | O51: 1 | P51: 1
B52: ROHU-374 | C52: 3 | D52: All | E52: F.PA3 | F52: All | G52: Financial | H52: 280940.61 | I52: 2019-01-03 | J52: 2022-02-28 | K52: 1012327.439 | M52: 0 | N52: 0 | O52: 1 | P52: 1
B53: ROHU-452 | C53: 3 | D53: All | E53: F.PA3 | F53: All | G53: Financial | H53: 678253.13 | I53: 2020-01-02 | J53: 2022-10-31 | K53: 5209840.663 | M53: 0.7572771464 | N53: 1 | O53: 1 | P53: 1
B54: ROHU-388 | C54: 3 | D54: All | E54: F.PA3 | F54: All | G54: Financial | H54: 32755.9 | I54: 2020-01-03 | J54: 2022-08-31 | K54: 706969.3458 | M54: 0.3662154457 | N54: 1 | O54: 1 | P54: 1
B55: ROHU-370 | C55: 3 | D55: All | E55: F.PA3 | F55: All | G55: Financial | H55: 296299.35 | I55: 2020-01-02 | J55: 2022-01-31 | K55: 1127829.765 | M55: 0.06761943628 | N55: 0.3662154457 | O55: 1 | P55: 1
B56: ROHU-399 | C56: 3 | D56: All | E56: F.PA3 | F56: All | G56: Financial | H56: 290255.71 | I56: 2019-01-03 | J56: 2021-10-31 | K56: 290255.71 | M56: 0.1504478125 | N56: 0.4869997411 | O56: 1 | P56: 1
B57: ROHU-395 | C57: 3 | D57: All | E57: F.PA3 | F57: All | G57: Financial | H57: 69295.28 | I57: 2020-01-02 | J57: 2022-01-31 | K57: 2309545.29 | M57: 0.3662154457 | N57: 1 | O57: 1 | P57: 1
B58: ROHU-391 | C58: 3 | D58: All | E58: F.PA3 | F58: All | G58: Financial | H58: 150567.94 | I58: 2020-01-02 | J58: 2022-01-31 | K58: 1879705.905 | M58: 0.1046862072 | N58: 0.7572771464 | O58: 1 | P58: 1
B59: ROHU-420 | C59: 3 | D59: All | E59: F.PA3 | F59: All | G59: Financial | H59: 142427.68 | I59: 2019-01-12 | J59: 2022-08-31 | K59: 903669.7614 | M59: 0.1148321804 | N59: 0.8532986972 | O59: 1 | P59: 1
B60: ROHU-398 | C60: 3 | D60: All | E60: F.PA3 | F60: All | G60: Financial | H60: 1161502.49 | I60: 2019-01-03 | J60: 2022-02-28 | K60: 2168053.631 | M60: 0.3662154457 | N60: 1 | O60: 1 | P60: 1
B61: ROHU-331 | C61: 3 | D61: All | E61: F.PA3 | F61: All | G61: Financial | H61: 1049026.99 | I61: 2019-01-03 | J61: 2022-02-28 | K61: 2042816.318 | M61: 0.2221027386 | N61: 0.8200427933 | O61: 1 | P61: 1
B62: ROHU-406 | C62: 3 | D62: All | E62: F.PA3 | F62: All | G62: Financial | H62: 748779.18 | I62: 2019-01-03 | J62: 2021-08-31 | K62: 897947.6546 | M62: 0.3662154457 | N62: 1 | O62: 1 | P62: 1
B63: ROHU-348 | C63: 3 | D63: All | E63: F.PA3 | F63: All | G63: Financial | H63: 144515.12 | I63: 2019-01-03 | J63: 2021-06-30 | K63: 207827.3622 | M63: 0.4490842828 | N63: 1 | O63: 1 | P63: 1
B64: ROHU-425 | C64: 3 | D64: All | E64: F.PA3 | F64: All | G64: Financial | H64: 116084.77 | I64: 2020-01-03 | J64: 2022-02-28 | K64: 1066897.545 | M64: 1 | N64: 1 | O64: 1 | P64: 1
B65: ROHU-396 | C65: 4 | D65: All | E65: 9/a 2 | F65: All | G65: Physical | H65: 0 | I65: 2019-01-01 | J65: 2021-06-30 | K65: 6.227429346 | M65: 0.5722487564 | N65: 1 | O65: 1 | P65: 1
B66: ROHU-361 | C66: 4 | D66: All | E66: 9/a 2 | F66: All | G66: Physical | H66: 0 | I66: 2019-01-11 | J66: 2022-04-30 | K66: 2.075809782 | M66: 0.07112867215 | N66: 0.3974490289 | O66: 1 | P66: 1
B67: ROHU-357 | C67: 4 | D67: All | E67: 9/a 2 | F67: All | G67: Physical | H67: 0 | I67: 2019-01-11 | J67: 2022-01-31 | K67: 39.44038586 | M67: 0.06099626765 | N67: 0.3105659194 | O67: 1 | P67: 1
B68: ROHU-386 | C68: 4 | D68: All | E68: 9/a 2 | F68: All | G68: Physical | H68: 0 | I68: 2019-01-11 | J68: 2021-06-30 | K68: 6.227429346 | M68: 0.1148321804 | N68: 0.8532986972 | O68: 1 | P68: 1
B69: ROHU-400 | C69: 4 | D69: All | E69: 9/a 2 | F69: All | G69: Physical | H69: 0 | I69: 2020-01-01 | J69: 2022-06-30 | K69: 5.189524455 | M69: 0.1148321804 | N69: 0.8532986972 | O69: 1 | P69: 1
B70: ROHU-407 | C70: 4 | D70: All | E70: 9/a 2 | F70: All | G70: Physical | H70: 0 | I70: 2019-01-11 | J70: 2021-10-31 | K70: 3.113714673 | M70: 0 | N70: 0 | O70: 1 | P70: 1
B71: ROHU-450 | C71: 4 | D71: All | E71: 9/a 2 | F71: All | G71: Physical | H71: 0 | I71: 2019-01-08 | J71: 2022-07-31 | K71: 13.49276358 | M71: 0 | N71: 0 | O71: 1 | P71: 1
B72: ROHU-392 | C72: 4 | D72: All | E72: 9/a 2 | F72: All | G72: Physical | H72: 0 | I72: 2019-01-11 | J72: 2022-02-28 | K72: 7.265334237 | M72: 0 | N72: 1 | O72: 1 | P72: 1
B73: ROHU-401 | C73: 4 | D73: All | E73: 9/a 2 | F73: All | G73: Physical | H73: 0 | I73: 2019-01-03 | J73: 2021-07-31 | K73: 7.265334237 | M73: 0 | N73: 0 | O73: 1 | P73: 1
B74: ROHU-449 | C74: 4 | D74: All | E74: 9/a 2 | F74: All | G74: Physical | H74: 0 | I74: 2019-01-08 | J74: 2022-07-31 | K74: 9.341144019 | M74: 0 | N74: 1 | O74: 1 | P74: 1
B75: ROHU-457 | C75: 4 | D75: All | E75: 9/a 2 | F75: All | G75: Physical | H75: 0 | I75: 2020-01-08 | J75: 2022-10-31 | K75: 17.64438315 | M75: 0 | N75: 1 | O75: 1 | P75: 1
B76: ROHU-397 | C76: 4 | D76: All | E76: 9/a 2 | F76: All | G76: Physical | H76: 4 | I76: 2019-01-03 | J76: 2021-08-31 | K76: 4.310765816 | M76: 0 | N76: 0 | O76: 1 | P76: 1
B77: ROHU-443 | C77: 4 | D77: All | E77: 9/a 2 | F77: All | G77: Physical | H77: 0 | I77: 2019-01-12 | J77: 2023-02-28 | K77: 15.56857337 | M77: 0 | N77: 1 | O77: 1 | P77: 1
B78: ROHU-396 | C78: 4 | D78: All | E78: F.PA4 | F78: All | G78: Financial | H78: 1887280.73 | I78: 2019-01-01 | J78: 2021-06-30 | K78: 1887280.73 | M78: 0 | N78: 0 | O78: 1 | P78: 1
B79: ROHU-361 | C79: 4 | D79: All | E79: F.PA4 | F79: All | G79: Financial | H79: 148489.47 | I79: 2019-01-11 | J79: 2022-04-30 | K79: 2067593.667 | M79: 0 | N79: 0 | O79: 1 | P79: 1
B80: ROHU-357 | C80: 4 | D80: All | E80: F.PA4 | F80: All | G80: Financial | H80: 63481.72 | I80: 2019-01-11 | J80: 2022-01-31 | K80: 2067595.769 | M80: 0 | N80: 0 | O80: 1 | P80: 1
B81: ROHU-386 | C81: 4 | D81: All | E81: F.PA4 | F81: All | G81: Financial | H81: 2541787.69 | I81: 2019-01-11 | J81: 2021-06-30 | K81: 2541787.69 | M81: 0 | N81: 1 | O81: 1 | P81: 1
B82: ROHU-400 | C82: 4 | D82: All | E82: F.PA4 | F82: All | G82: Financial | H82: 773596.16 | I82: 2020-01-01 | J82: 2022-06-30 | K82: 2022866.78 | M82: 0 | N82: 0 | O82: 1 | P82: 1
B83: ROHU-407 | C83: 4 | D83: All | E83: F.PA4 | F83: All | G83: Financial | H83: 132711.89 | I83: 2019-01-11 | J83: 2021-10-31 | K83: 375683.6054 | M83: 1 | N83: 1 | O83: 1 | P83: 1
B84: ROHU-450 | C84: 4 | D84: All | E84: F.PA4 | F84: All | G84: Financial | H84: 1815841.26 | I84: 2019-01-08 | J84: 2022-07-31 | K84: 6386233.06 | M84: 0.1642836328 | N84: 0.5279723964 | O84: 1 | P84: 1
B85: ROHU-392 | C85: 4 | D85: All | E85: F.PA4 | F85: All | G85: Financial | H85: 180678.16 | I85: 2019-01-11 | J85: 2022-02-28 | K85: 862855.2691 | M85: 0.5722487564 | N85: 1 | O85: 1 | P85: 1
B86: ROHU-401 | C86: 4 | D86: All | E86: F.PA4 | F86: All | G86: Financial | H86: 2524698.09 | I86: 2019-01-03 | J86: 2021-07-31 | K86: 2524698.09 | M86: 0.1376443595 | N86: 0.413997907 | O86: 1 | P86: 1
B87: ROHU-449 | C87: 4 | D87: All | E87: F.PA4 | F87: All | G87: Financial | H87: 397562.72 | I87: 2019-01-08 | J87: 2022-07-31 | K87: 6697206.7 | M87: 0.3662154457 | N87: 1 | O87: 1 | P87: 1
B88: ROHU-457 | C88: 4 | D88: All | E88: F.PA4 | F88: All | G88: Financial | H88: 1310167 | I88: 2020-01-08 | J88: 2022-10-31 | K88: 16366394.9 | M88: 0.5070889603 | N88: 1 | O88: 1 | P88: 1
B89: ROHU-397 | C89: 4 | D89: All | E89: F.PA4 | F89: All | G89: Financial | H89: 2566510.44 | I89: 2019-01-03 | J89: 2021-08-31 | K89: 2566510.44 | M89: 0.1642836328 | N89: 0.5279723964 | O89: 1 | P89: 1
B90: ROHU-443 | C90: 4 | D90: All | E90: F.PA4 | F90: All | G90: Financial | H90: 72493.8 | I90: 2019-01-12 | J90: 2023-02-28 | K90: 9520565.774 | M90: 0.4490842828 | N90: 1 | O90: 1 | P90: 1
B91: ROHU-102 | C91: 5 | D91: All | E91: 5/b 1 | F91: All | G91: Physical | H91: 0 | I91: 2018-01-03 | J91: 2021-12-31 | K91: 363266.7119 | M91: 0.1953920541 | N91: 0.6717996061 | O91: 1 | P91: 1
B92: ROHU-72 | C92: 5 | D92: All | E92: 5/b 1 | F92: All | G92: Physical | H92: 0 | I92: 2019-01-05 | J92: 2021-06-30 | K92: 800127.1079 | M92: 0.07856883622 | N92: 0.4490842828 | O92: 1 | P92: 1
B93: ROHU-28 | C93: 5 | D93: All | E93: 5/b 1 | F93: All | G93: Physical | H93: 0 | I93: 2018-01-07 | J93: 2021-09-30 | K93: 153474.9962 | M93: 0.2417162346 | N93: 0.8878693561 | O93: 1 | P93: 1
B94: ROHU-11 | C94: 5 | D94: All | E94: 5/b 1 | F94: All | G94: Physical | H94: 0 | I94: 2018-01-04 | J94: 2022-05-31 | K94: 369201.452 | M94: 0.4490842828 | N94: 1 | O94: 1 | P94: 1
B95: ROHU-48 | C95: 5 | D95: All | E95: 5/b 1 | F95: All | G95: Physical | H95: 0 | I95: 2019-01-10 | J95: 2021-06-30 | K95: 40259.29282 | M95: 0.2221027386 | N95: 0.8200427933 | O95: 1 | P95: 1
B96: ROHU-102 | C96: 5 | D96: All | E96: F.PA5 | F96: All | G96: Financial | H96: 682768.65 | I96: 2018-01-03 | J96: 2021-12-31 | K96: 1416800.349 | M96: 1 | N96: 1 | O96: 1 | P96: 1
B97: ROHU-72 | C97: 5 | D97: All | E97: F.PA5 | F97: All | G97: Financial | H97: 1204882.02 | I97: 2019-01-05 | J97: 2021-06-30 | K97: 2461439.499 | M97: 0 | N97: 1 | O97: 1 | P97: 1
B98: ROHU-28 | C98: 5 | D98: All | E98: F.PA5 | F98: All | G98: Financial | H98: 1576070.9 | I98: 2018-01-07 | J98: 2021-09-30 | K98: 1799708.827 | M98: 0 | N98: 1 | O98: 1 | P98: 1
B99: ROHU-11 | C99: 5 | D99: All | E99: F.PA5 | F99: All | G99: Financial | H99: 2334277.27 | I99: 2018-01-04 | J99: 2022-05-31 | K99: 2463986.924 | M99: 0 | N99: 1 | O99: 1 | P99: 1
B100: ROHU-48 | C100: 5 | D100: All | E100: F.PA5 | F100: All | G100: Financial | H100: 384587.37 | I100: 2019-01-10 | J100: 2021-06-30 | K100: 445352.0674 | M100: 1 | N100: 1 | O100: 1 | P100: 1
B101: ROHU-319 | C101: 6 | D101: All | E101: 11/b1 | F101: All | G101: Physical | H101: 0 | I101: 2020-01-12 | J101: 2021-11-30 | K101: 4.151619564 | M101: 0 | N101: 1 | O101: 1 | P101: 1
B102: ROHU-281 | C102: 6 | D102: All | E102: 11/b1 | F102: All | G102: Physical | H102: 0 | I102: 2020-01-01 | J102: 2021-12-31 | K102: 2.075809782 | M102: 0 | N102: 0 | O102: 1 | P102: 1
B103: ROHU-204 | C103: 6 | D103: All | E103: 11/b1 | F103: All | G103: Physical | H103: 0 | I103: 2018-01-12 | J103: 2022-05-31 | K103: 3.113714673 | M103: 0 | N103: 1 | O103: 1 | P103: 1
B104: ROHU-122 | C104: 6 | D104: All | E104: F.PA6 | F104: All | G104: Financial | H104: 22446.8 | I104: 2019-01-06 | J104: 2022-02-28 | K104: 74592.92663 | M104: 0 | N104: 1 | O104: 1 | P104: 1
B105: ROHU-285 | C105: 6 | D105: All | E105: F.PA6 | F105: All | G105: Financial | H105: 14157.64 | I105: 2018-01-12 | J105: 2021-08-31 | K105: 63206.7348 | M105: 1 | N105: 1 | O105: 1 | P105: 1
B106: ROHU-281 | C106: 6 | D106: All | E106: F.PA6 | F106: All | G106: Financial | H106: 13731.8 | I106: 2020-01-01 | J106: 2021-12-31 | K106: 196472.9202 | M106: 0.3662154457 | N106: 1 | O106: 1 | P106: 1
B107: ROHU-202 | C107: 6 | D107: All | E107: F.PA6 | F107: All | G107: Financial | H107: 13017.34 | I107: 2019-01-08 | J107: 2021-10-31 | K107: 56504.06136 | M107: 0.4490842828 | N107: 1 | O107: 1 | P107: 1
B108: ROHU-204 | C108: 6 | D108: All | E108: F.PA6 | F108: All | G108: Financial | H108: 126796.82 | I108: 2018-01-12 | J108: 2022-05-31 | K108: 203151.2248 | M108: 0.7276730331 | N108: 1 | O108: 1 | P108: 1

Sheet Achievement_forecast_ongoing
G2: User calibrations | L2: Statistical projections
C4: Characteristics | G4: Year | L4: Year
B5: SMIS_CODE | C5: PA | D5: PI | E5: Indicator | F5: Region | G5: 2020 | H5: 2021 | I5: 2022 | J5: 2024 | L5: 2020 | M5: 2021 | N5: 2022 | O5: 2024
B6: =Achievement_to_date_ongoing!B4 -> ROHU-14 | C6: =IF($B6>0, Achievement_to_date_ongoing!C4, "") -> 1 | D6: =IF($B6>0, Achievement_to_date_ongoing!D4, "") -> All | E6: =IF($B6>0, Achievement_to_date_ongoing!E4, "") -> CO09 | F6: =IF($B6>0, Achievement_to_date_ongoing!F4, "") -> All | G6: 6595.885582 | H6: 6595.885582 | I6: 6595.885582 | J6: 6595.885582 | L6: =IF($B6>0,Achievement_to_date_ongoing!$K4*Achievement_to_date_ongoing!M4,"") -> 6595.885582 | M6: =IF($B6>0,Achievement_to_date_ongoing!$K4*Achievement_to_date_ongoing!N4,"") -> 6595.885582 | N6: =IF($B6>0,Achievement_to_date_ongoing!$K4*Achievement_to_date_ongoing!O4,"") -> 6595.885582 | O6: =IF($B6>0,Achievement_to_date_ongoing!$K4*Achievement_to_date_ongoing!P4,"") -> 6595.885582
B7: =Achievement_to_date_ongoing!B5 -> ROHU-115 | C7: =IF($B7>0, Achievement_to_date_ongoing!C5, "") -> 1 | D7: =IF($B7>0, Achievement_to_date_ongoing!D5, "") -> All | E7: =IF($B7>0, Achievement_to_date_ongoing!E5, "") -> CO09 | F7: =IF($B7>0, Achievement_to_date_ongoing!F5, "") -> All | G7: 0 | H7: 5189.524455 | I7: 5189.524455 | J7: 5189.524455 | L7: =IF($B7>0,Achievement_to_date_ongoing!$K5*Achievement_to_date_ongoing!M5,"") -> 0 | M7: =IF($B7>0,Achievement_to_date_ongoing!$K5*Achievement_to_date_ongoing!N5,"") -> 5189.524455 | N7: =IF($B7>0,Achievement_to_date_ongoing!$K5*Achievement_to_date_ongoing!O5,"") -> 5189.524455 | O7: =IF($B7>0,Achievement_to_date_ongoing!$K5*Achievement_to_date_ongoing!P5,"") -> 5189.524455
B8: =Achievement_to_date_ongoing!B6 -> ROHU-445 | C8: =IF($B8>0, Achievement_to_date_ongoing!C6, "") -> 1 | D8: =IF($B8>0, Achievement_to_date_ongoing!D6, "") -> All | E8: =IF($B8>0, Achievement_to_date_ongoing!E6, "") -> CO09 | F8: =IF($B8>0, Achievement_to_date_ongoing!F6, "") -> All | G8: 0 | H8: 0 | I8: 19161.8001 | J8: 19161.8001 | L8: =IF($B8>0,Achievement_to_date_ongoing!$K6*Achievement_to_date_ongoing!M6,"") -> 0 | M8: =IF($B8>0,Achievement_to_date_ongoing!$K6*Achievement_to_date_ongoing!N6,"") -> 0 | N8: =IF($B8>0,Achievement_to_date_ongoing!$K6*Achievement_to_date_ongoing!O6,"") -> 19161.8001 | O8: =IF($B8>0,Achievement_to_date_ongoing!$K6*Achievement_to_date_ongoing!P6,"") -> 19161.8001
B9: =Achievement_to_date_ongoing!B7 -> ROHU-446 | C9: =IF($B9>0, Achievement_to_date_ongoing!C7, "") -> 1 | D9: =IF($B9>0, Achievement_to_date_ongoing!D7, "") -> All | E9: =IF($B9>0, Achievement_to_date_ongoing!E7, "") -> CO09 | F9: =IF($B9>0, Achievement_to_date_ongoing!F7, "") -> All | G9: 0 | H9: 0 | I9: 26005.74495 | J9: 26005.74495 | L9: =IF($B9>0,Achievement_to_date_ongoing!$K7*Achievement_to_date_ongoing!M7,"") -> 0 | M9: =IF($B9>0,Achievement_to_date_ongoing!$K7*Achievement_to_date_ongoing!N7,"") -> 0 | N9: =IF($B9>0,Achievement_to_date_ongoing!$K7*Achievement_to_date_ongoing!O7,"") -> 26005.74495 | O9: =IF($B9>0,Achievement_to_date_ongoing!$K7*Achievement_to_date_ongoing!P7,"") -> 26005.74495
B10: =Achievement_to_date_ongoing!B8 -> ROHU-456 | C10: =IF($B10>0, Achievement_to_date_ongoing!C8, "") -> 1 | D10: =IF($B10>0, Achievement_to_date_ongoing!D8, "") -> All | E10: =IF($B10>0, Achievement_to_date_ongoing!E8, "") -> CO09 | F10: =IF($B10>0, Achievement_to_date_ongoing!F8, "") -> All | G10: 0 | H10: 0 | I10: 31137.14673 | J10: 31137.14673 | L10: =IF($B10>0,Achievement_to_date_ongoing!$K8*Achievement_to_date_ongoing!M8,"") -> 0 | M10: =IF($B10>0,Achievement_to_date_ongoing!$K8*Achievement_to_date_ongoing!N8,"") -> 0 | N10: =IF($B10>0,Achievement_to_date_ongoing!$K8*Achievement_to_date_ongoing!O8,"") -> 31137.14673 | O10: =IF($B10>0,Achievement_to_date_ongoing!$K8*Achievement_to_date_ongoing!P8,"") -> 31137.14673
B11: =Achievement_to_date_ongoing!B9 -> ROHU-126 | C11: =IF($B11>0, Achievement_to_date_ongoing!C9, "") -> 1 | D11: =IF($B11>0, Achievement_to_date_ongoing!D9, "") -> All | E11: =IF($B11>0, Achievement_to_date_ongoing!E9, "") -> CO09 | F11: =IF($B11>0, Achievement_to_date_ongoing!F9, "") -> All | G11: 0 | H11: 0 | I11: 51895.24455 | J11: 51895.24455 | L11: =IF($B11>0,Achievement_to_date_ongoing!$K9*Achievement_to_date_ongoing!M9,"") -> 0 | M11: =IF($B11>0,Achievement_to_date_ongoing!$K9*Achievement_to_date_ongoing!N9,"") -> 0 | N11: =IF($B11>0,Achievement_to_date_ongoing!$K9*Achievement_to_date_ongoing!O9,"") -> 51895.24455 | O11: =IF($B11>0,Achievement_to_date_ongoing!$K9*Achievement_to_date_ongoing!P9,"") -> 51895.24455
B12: =Achievement_to_date_ongoing!B10 -> ROHU-224 | C12: =IF($B12>0, Achievement_to_date_ongoing!C10, "") -> 1 | D12: =IF($B12>0, Achievement_to_date_ongoing!D10, "") -> All | E12: =IF($B12>0, Achievement_to_date_ongoing!E10, "") -> 6/b 1 | F12: =IF($B12>0, Achievement_to_date_ongoing!F10, "") -> All | G12: 0 | H12: 0 | I12: 0 | J12: 3.113714673 | L12: =IF($B12>0,Achievement_to_date_ongoing!$K10*Achievement_to_date_ongoing!M10,"") -> 0 | M12: =IF($B12>0,Achievement_to_date_ongoing!$K10*Achievement_to_date_ongoing!N10,"") -> 0 | N12: =IF($B12>0,Achievement_to_date_ongoing!$K10*Achievement_to_date_ongoing!O10,"") -> 0 | O12: =IF($B12>0,Achievement_to_date_ongoing!$K10*Achievement_to_date_ongoing!P10,"") -> 3.113714673
B13: =Achievement_to_date_ongoing!B11 -> ROHU-208 | C13: =IF($B13>0, Achievement_to_date_ongoing!C11, "") -> 1 | D13: =IF($B13>0, Achievement_to_date_ongoing!D11, "") -> All | E13: =IF($B13>0, Achievement_to_date_ongoing!E11, "") -> 6/b 1 | F13: =IF($B13>0, Achievement_to_date_ongoing!F11, "") -> All | G13: 0 | H13: 6.227429346 | I13: 6.227429346 | J13: 6.227429346 | L13: =IF($B13>0,Achievement_to_date_ongoing!$K11*Achievement_to_date_ongoing!M11,"") -> 0 | M13: =IF($B13>0,Achievement_to_date_ongoing!$K11*Achievement_to_date_ongoing!N11,"") -> 6.227429346 | N13: =IF($B13>0,Achievement_to_date_ongoing!$K11*Achievement_to_date_ongoing!O11,"") -> 6.227429346 | O13: =IF($B13>0,Achievement_to_date_ongoing!$K11*Achievement_to_date_ongoing!P11,"") -> 6.227429346
B14: =Achievement_to_date_ongoing!B12 -> ROHU-14 | C14: =IF($B14>0, Achievement_to_date_ongoing!C12, "") -> 1 | D14: =IF($B14>0, Achievement_to_date_ongoing!D12, "") -> All | E14: =IF($B14>0, Achievement_to_date_ongoing!E12, "") -> F.PA1 | F14: =IF($B14>0, Achievement_to_date_ongoing!F12, "") -> All | G14: 0 | H14: 2194518.205 | I14: 2194518.205 | J14: 2194518.205 | L14: =IF($B14>0,Achievement_to_date_ongoing!$K12*Achievement_to_date_ongoing!M12,"") -> 0 | M14: =IF($B14>0,Achievement_to_date_ongoing!$K12*Achievement_to_date_ongoing!N12,"") -> 2194518.205 | N14: =IF($B14>0,Achievement_to_date_ongoing!$K12*Achievement_to_date_ongoing!O12,"") -> 2194518.205 | O14: =IF($B14>0,Achievement_to_date_ongoing!$K12*Achievement_to_date_ongoing!P12,"") -> 2194518.205
B15: =Achievement_to_date_ongoing!B13 -> ROHU-115 | C15: =IF($B15>0, Achievement_to_date_ongoing!C13, "") -> 1 | D15: =IF($B15>0, Achievement_to_date_ongoing!D13, "") -> All | E15: =IF($B15>0, Achievement_to_date_ongoing!E13, "") -> F.PA1 | F15: =IF($B15>0, Achievement_to_date_ongoing!F13, "") -> All | G15: 1179883.941 | H15: 1179883.941 | I15: 1179883.941 | J15: 1179883.941 | L15: =IF($B15>0,Achievement_to_date_ongoing!$K13*Achievement_to_date_ongoing!M13,"") -> 1179883.941 | M15: =IF($B15>0,Achievement_to_date_ongoing!$K13*Achievement_to_date_ongoing!N13,"") -> 1179883.941 | N15: =IF($B15>0,Achievement_to_date_ongoing!$K13*Achievement_to_date_ongoing!O13,"") -> 1179883.941 | O15: =IF($B15>0,Achievement_to_date_ongoing!$K13*Achievement_to_date_ongoing!P13,"") -> 1179883.941
B16: =Achievement_to_date_ongoing!B14 -> ROHU-224 | C16: =IF($B16>0, Achievement_to_date_ongoing!C14, "") -> 1 | D16: =IF($B16>0, Achievement_to_date_ongoing!D14, "") -> All | E16: =IF($B16>0, Achievement_to_date_ongoing!E14, "") -> F.PA1 | F16: =IF($B16>0, Achievement_to_date_ongoing!F14, "") -> All | G16: 673892.7921 | H16: 1383764.169 | I16: 1383764.169 | J16: 1383764.169 | L16: =IF($B16>0,Achievement_to_date_ongoing!$K14*Achievement_to_date_ongoing!M14,"") -> 673892.7921 | M16: =IF($B16>0,Achievement_to_date_ongoing!$K14*Achievement_to_date_ongoing!N14,"") -> 1383764.169 | N16: =IF($B16>0,Achievement_to_date_ongoing!$K14*Achievement_to_date_ongoing!O14,"") -> 1383764.169 | O16: =IF($B16>0,Achievement_to_date_ongoing!$K14*Achievement_to_date_ongoing!P14,"") -> 1383764.169
B17: =Achievement_to_date_ongoing!B15 -> ROHU-53 | C17: =IF($B17>0, Achievement_to_date_ongoing!C15, "") -> 1 | D17: =IF($B17>0, Achievement_to_date_ongoing!D15, "") -> All | E17: =IF($B17>0, Achievement_to_date_ongoing!E15, "") -> F.PA1 | F17: =IF($B17>0, Achievement_to_date_ongoing!F15, "") -> All | G17: 671890.1021 | H17: 1771265.116 | I17: 2075785.562 | J17: 2075785.562 | L17: =IF($B17>0,Achievement_to_date_ongoing!$K15*Achievement_to_date_ongoing!M15,"") -> 671890.1021 | M17: =IF($B17>0,Achievement_to_date_ongoing!$K15*Achievement_to_date_ongoing!N15,"") -> 1771265.116 | N17: =IF($B17>0,Achievement_to_date_ongoing!$K15*Achievement_to_date_ongoing!O15,"") -> 2075785.562 | O17: =IF($B17>0,Achievement_to_date_ongoing!$K15*Achievement_to_date_ongoing!P15,"") -> 2075785.562
B18: =Achievement_to_date_ongoing!B16 -> ROHU-68 | C18: =IF($B18>0, Achievement_to_date_ongoing!C16, "") -> 1 | D18: =IF($B18>0, Achievement_to_date_ongoing!D16, "") -> All | E18: =IF($B18>0, Achievement_to_date_ongoing!E16, "") -> F.PA1 | F18: =IF($B18>0, Achievement_to_date_ongoing!F16, "") -> All | G18: 662520.7083 | H18: 662520.7083 | I18: 662520.7083 | J18: 662520.7083 | L18: =IF($B18>0,Achievement_to_date_ongoing!$K16*Achievement_to_date_ongoing!M16,"") -> 662520.7083 | M18: =IF($B18>0,Achievement_to_date_ongoing!$K16*Achievement_to_date_ongoing!N16,"") -> 662520.7083 | N18: =IF($B18>0,Achievement_to_date_ongoing!$K16*Achievement_to_date_ongoing!O16,"") -> 662520.7083 | O18: =IF($B18>0,Achievement_to_date_ongoing!$K16*Achievement_to_date_ongoing!P16,"") -> 662520.7083
B19: =Achievement_to_date_ongoing!B17 -> ROHU-445 | C19: =IF($B19>0, Achievement_to_date_ongoing!C17, "") -> 1 | D19: =IF($B19>0, Achievement_to_date_ongoing!D17, "") -> All | E19: =IF($B19>0, Achievement_to_date_ongoing!E17, "") -> F.PA1 | F19: =IF($B19>0, Achievement_to_date_ongoing!F17, "") -> All | G19: 5487845.717 | H19: 5487845.717 | I19: 5487845.717 | J19: 5487845.717 | L19: =IF($B19>0,Achievement_to_date_ongoing!$K17*Achievement_to_date_ongoing!M17,"") -> 5487845.717 | M19: =IF($B19>0,Achievement_to_date_ongoing!$K17*Achievement_to_date_ongoing!N17,"") -> 5487845.717 | N19: =IF($B19>0,Achievement_to_date_ongoing!$K17*Achievement_to_date_ongoing!O17,"") -> 5487845.717 | O19: =IF($B19>0,Achievement_to_date_ongoing!$K17*Achievement_to_date_ongoing!P17,"") -> 5487845.717
B20: =Achievement_to_date_ongoing!B18 -> ROHU-446 | C20: =IF($B20>0, Achievement_to_date_ongoing!C18, "") -> 1 | D20: =IF($B20>0, Achievement_to_date_ongoing!D18, "") -> All | E20: =IF($B20>0, Achievement_to_date_ongoing!E18, "") -> F.PA1 | F20: =IF($B20>0, Achievement_to_date_ongoing!F18, "") -> All | G20: 1334925.801 | H20: 4618410.476 | I20: 7447905.477 | J20: 7447905.477 | L20: =IF($B20>0,Achievement_to_date_ongoing!$K18*Achievement_to_date_ongoing!M18,"") -> 1334925.801 | M20: =IF($B20>0,Achievement_to_date_ongoing!$K18*Achievement_to_date_ongoing!N18,"") -> 4618410.476 | N20: =IF($B20>0,Achievement_to_date_ongoing!$K18*Achievement_to_date_ongoing!O18,"") -> 7447905.477 | O20: =IF($B20>0,Achievement_to_date_ongoing!$K18*Achievement_to_date_ongoing!P18,"") -> 7447905.477
B21: =Achievement_to_date_ongoing!B19 -> ROHU-208 | C21: =IF($B21>0, Achievement_to_date_ongoing!C19, "") -> 1 | D21: =IF($B21>0, Achievement_to_date_ongoing!D19, "") -> All | E21: =IF($B21>0, Achievement_to_date_ongoing!E19, "") -> F.PA1 | F21: =IF($B21>0, Achievement_to_date_ongoing!F19, "") -> All | G21: 580850.2483 | H21: 1335011.899 | I21: 2972742.422 | J21: 2972742.422 | L21: =IF($B21>0,Achievement_to_date_ongoing!$K19*Achievement_to_date_ongoing!M19,"") -> 580850.2483 | M21: =IF($B21>0,Achievement_to_date_ongoing!$K19*Achievement_to_date_ongoing!N19,"") -> 1335011.899 | N21: =IF($B21>0,Achievement_to_date_ongoing!$K19*Achievement_to_date_ongoing!O19,"") -> 2972742.422 | O21: =IF($B21>0,Achievement_to_date_ongoing!$K19*Achievement_to_date_ongoing!P19,"") -> 2972742.422
B22: =Achievement_to_date_ongoing!B20 -> ROHU-456 | C22: =IF($B22>0, Achievement_to_date_ongoing!C20, "") -> 1 | D22: =IF($B22>0, Achievement_to_date_ongoing!D20, "") -> All | E22: =IF($B22>0, Achievement_to_date_ongoing!E20, "") -> F.PA1 | F22: =IF($B22>0, Achievement_to_date_ongoing!F20, "") -> All | G22: 1640907.968 | H22: 5677009.574 | I22: 9155061.232 | J22: 9155061.232 | L22: =IF($B22>0,Achievement_to_date_ongoing!$K20*Achievement_to_date_ongoing!M20,"") -> 1640907.968 | M22: =IF($B22>0,Achievement_to_date_ongoing!$K20*Achievement_to_date_ongoing!N20,"") -> 5677009.574 | N22: =IF($B22>0,Achievement_to_date_ongoing!$K20*Achievement_to_date_ongoing!O20,"") -> 9155061.232 | O22: =IF($B22>0,Achievement_to_date_ongoing!$K20*Achievement_to_date_ongoing!P20,"") -> 9155061.232
B23: =Achievement_to_date_ongoing!B21 -> ROHU-62 | C23: =IF($B23>0, Achievement_to_date_ongoing!C21, "") -> 1 | D23: =IF($B23>0, Achievement_to_date_ongoing!D21, "") -> All | E23: =IF($B23>0, Achievement_to_date_ongoing!E21, "") -> F.PA1 | F23: =IF($B23>0, Achievement_to_date_ongoing!F21, "") -> All | G23: 465640.1432 | H23: 750917.1806 | I23: 750917.1806 | J23: 750917.1806 | L23: =IF($B23>0,Achievement_to_date_ongoing!$K21*Achievement_to_date_ongoing!M21,"") -> 465640.1432 | M23: =IF($B23>0,Achievement_to_date_ongoing!$K21*Achievement_to_date_ongoing!N21,"") -> 750917.1806 | N23: =IF($B23>0,Achievement_to_date_ongoing!$K21*Achievement_to_date_ongoing!O21,"") -> 750917.1806 | O23: =IF($B23>0,Achievement_to_date_ongoing!$K21*Achievement_to_date_ongoing!P21,"") -> 750917.1806
B24: =Achievement_to_date_ongoing!B22 -> ROHU-126 | C24: =IF($B24>0, Achievement_to_date_ongoing!C22, "") -> 1 | D24: =IF($B24>0, Achievement_to_date_ongoing!D22, "") -> All | E24: =IF($B24>0, Achievement_to_date_ongoing!E22, "") -> F.PA1 | F24: =IF($B24>0, Achievement_to_date_ongoing!F22, "") -> All | G24: 585628.9846 | H24: 1736162.178 | I24: 1736162.178 | J24: 1736162.178 | L24: =IF($B24>0,Achievement_to_date_ongoing!$K22*Achievement_to_date_ongoing!M22,"") -> 585628.9846 | M24: =IF($B24>0,Achievement_to_date_ongoing!$K22*Achievement_to_date_ongoing!N22,"") -> 1736162.178 | N24: =IF($B24>0,Achievement_to_date_ongoing!$K22*Achievement_to_date_ongoing!O22,"") -> 1736162.178 | O24: =IF($B24>0,Achievement_to_date_ongoing!$K22*Achievement_to_date_ongoing!P22,"") -> 1736162.178
B25: =Achievement_to_date_ongoing!B23 -> ROHU-422 | C25: =IF($B25>0, Achievement_to_date_ongoing!C23, "") -> 2 | D25: =IF($B25>0, Achievement_to_date_ongoing!D23, "") -> All | E25: =IF($B25>0, Achievement_to_date_ongoing!E23, "") -> 7/c 1 | F25: =IF($B25>0, Achievement_to_date_ongoing!F23, "") -> All | G25: 0.5939397832 | H25: 1.037904891 | I25: 1.037904891 | J25: 1.037904891 | L25: =IF($B25>0,Achievement_to_date_ongoing!$K23*Achievement_to_date_ongoing!M23,"") -> 0.5939397832 | M25: =IF($B25>0,Achievement_to_date_ongoing!$K23*Achievement_to_date_ongoing!N23,"") -> 1.037904891 | N25: =IF($B25>0,Achievement_to_date_ongoing!$K23*Achievement_to_date_ongoing!O23,"") -> 1.037904891 | O25: =IF($B25>0,Achievement_to_date_ongoing!$K23*Achievement_to_date_ongoing!P23,"") -> 1.037904891
B26: =Achievement_to_date_ongoing!B24 -> ROHU-390 | C26: =IF($B26>0, Achievement_to_date_ongoing!C24, "") -> 2 | D26: =IF($B26>0, Achievement_to_date_ongoing!D24, "") -> All | E26: =IF($B26>0, Achievement_to_date_ongoing!E24, "") -> 7/c 1 | F26: =IF($B26>0, Achievement_to_date_ongoing!F24, "") -> All | G26: 15.56857337 | H26: 15.56857337 | I26: 15.56857337 | J26: 15.56857337 | L26: =IF($B26>0,Achievement_to_date_ongoing!$K24*Achievement_to_date_ongoing!M24,"") -> 15.56857337 | M26: =IF($B26>0,Achievement_to_date_ongoing!$K24*Achievement_to_date_ongoing!N24,"") -> 15.56857337 | N26: =IF($B26>0,Achievement_to_date_ongoing!$K24*Achievement_to_date_ongoing!O24,"") -> 15.56857337 | O26: =IF($B26>0,Achievement_to_date_ongoing!$K24*Achievement_to_date_ongoing!P24,"") -> 15.56857337
B27: =Achievement_to_date_ongoing!B25 -> ROHU-422 | C27: =IF($B27>0, Achievement_to_date_ongoing!C25, "") -> 2 | D27: =IF($B27>0, Achievement_to_date_ongoing!D25, "") -> All | E27: =IF($B27>0, Achievement_to_date_ongoing!E25, "") -> F.PA2 | F27: =IF($B27>0, Achievement_to_date_ongoing!F25, "") -> All | G27: 174574.1626 | H27: 444458.2556 | I27: 610793.9079 | J27: 610793.9079 | L27: =IF($B27>0,Achievement_to_date_ongoing!$K25*Achievement_to_date_ongoing!M25,"") -> 174574.1626 | M27: =IF($B27>0,Achievement_to_date_ongoing!$K25*Achievement_to_date_ongoing!N25,"") -> 444458.2556 | N27: =IF($B27>0,Achievement_to_date_ongoing!$K25*Achievement_to_date_ongoing!O25,"") -> 610793.9079 | O27: =IF($B27>0,Achievement_to_date_ongoing!$K25*Achievement_to_date_ongoing!P25,"") -> 610793.9079
B28: =Achievement_to_date_ongoing!B26 -> ROHU-390 | C28: =IF($B28>0, Achievement_to_date_ongoing!C26, "") -> 2 | D28: =IF($B28>0, Achievement_to_date_ongoing!D26, "") -> All | E28: =IF($B28>0, Achievement_to_date_ongoing!E26, "") -> F.PA2 | F28: =IF($B28>0, Achievement_to_date_ongoing!F26, "") -> All | G28: 1118004.578 | H28: 2295698.506 | I28: 2295698.506 | J28: 2295698.506 | L28: =IF($B28>0,Achievement_to_date_ongoing!$K26*Achievement_to_date_ongoing!M26,"") -> 1118004.578 | M28: =IF($B28>0,Achievement_to_date_ongoing!$K26*Achievement_to_date_ongoing!N26,"") -> 2295698.506 | N28: =IF($B28>0,Achievement_to_date_ongoing!$K26*Achievement_to_date_ongoing!O26,"") -> 2295698.506 | O28: =IF($B28>0,Achievement_to_date_ongoing!$K26*Achievement_to_date_ongoing!P26,"") -> 2295698.506
B29: =Achievement_to_date_ongoing!B27 -> ROHU-128 | C29: =IF($B29>0, Achievement_to_date_ongoing!C27, "") -> 2 | D29: =IF($B29>0, Achievement_to_date_ongoing!D27, "") -> All | E29: =IF($B29>0, Achievement_to_date_ongoing!E27, "") -> F.PA2 | F29: =IF($B29>0, Achievement_to_date_ongoing!F27, "") -> All | G29: 951457.0184 | H29: 1160252.887 | I29: 1160252.887 | J29: 1160252.887 | L29: =IF($B29>0,Achievement_to_date_ongoing!$K27*Achievement_to_date_ongoing!M27,"") -> 951457.0184 | M29: =IF($B29>0,Achievement_to_date_ongoing!$K27*Achievement_to_date_ongoing!N27,"") -> 1160252.887 | N29: =IF($B29>0,Achievement_to_date_ongoing!$K27*Achievement_to_date_ongoing!O27,"") -> 1160252.887 | O29: =IF($B29>0,Achievement_to_date_ongoing!$K27*Achievement_to_date_ongoing!P27,"") -> 1160252.887
B30: =Achievement_to_date_ongoing!B28 -> ROHU-444 | C30: =IF($B30>0, Achievement_to_date_ongoing!C28, "") -> 2 | D30: =IF($B30>0, Achievement_to_date_ongoing!D28, "") -> All | E30: =IF($B30>0, Achievement_to_date_ongoing!E28, "") -> F.PA2 | F30: =IF($B30>0, Achievement_to_date_ongoing!F28, "") -> All | G30: 0 | H30: 10838665.08 | I30: 10838665.08 | J30: 10838665.08 | L30: =IF($B30>0,Achievement_to_date_ongoing!$K28*Achievement_to_date_ongoing!M28,"") -> 0 | M30: =IF($B30>0,Achievement_to_date_ongoing!$K28*Achievement_to_date_ongoing!N28,"") -> 10838665.08 | N30: =IF($B30>0,Achievement_to_date_ongoing!$K28*Achievement_to_date_ongoing!O28,"") -> 10838665.08 | O30: =IF($B30>0,Achievement_to_date_ongoing!$K28*Achievement_to_date_ongoing!P28,"") -> 10838665.08
B31: =Achievement_to_date_ongoing!B29 -> ROHU-140 | C31: =IF($B31>0, Achievement_to_date_ongoing!C29, "") -> 2 | D31: =IF($B31>0, Achievement_to_date_ongoing!D29, "") -> All | E31: =IF($B31>0, Achievement_to_date_ongoing!E29, "") -> F.PA2 | F31: =IF($B31>0, Achievement_to_date_ongoing!F29, "") -> All | G31: 0 | H31: 0 | I31: 960756.0132 | J31: 960756.0132 | L31: =IF($B31>0,Achievement_to_date_ongoing!$K29*Achievement_to_date_ongoing!M29,"") -> 0 | M31: =IF($B31>0,Achievement_to_date_ongoing!$K29*Achievement_to_date_ongoing!N29,"") -> 0 | N31: =IF($B31>0,Achievement_to_date_ongoing!$K29*Achievement_to_date_ongoing!O29,"") -> 960756.0132 | O31: =IF($B31>0,Achievement_to_date_ongoing!$K29*Achievement_to_date_ongoing!P29,"") -> 960756.0132
B32: =Achievement_to_date_ongoing!B30 -> ROHU-385 | C32: =IF($B32>0, Achievement_to_date_ongoing!C30, "") -> 3 | D32: =IF($B32>0, Achievement_to_date_ongoing!D30, "") -> All | E32: =IF($B32>0, Achievement_to_date_ongoing!E30, "") -> CO44 | F32: =IF($B32>0, Achievement_to_date_ongoing!F30, "") -> All | G32: 784.8080806 | H32: 1168.217536 | I32: 1168.217536 | J32: 1168.217536 | L32: =IF($B32>0,Achievement_to_date_ongoing!$K30*Achievement_to_date_ongoing!M30,"") -> 784.8080806 | M32: =IF($B32>0,Achievement_to_date_ongoing!$K30*Achievement_to_date_ongoing!N30,"") -> 1168.217536 | N32: =IF($B32>0,Achievement_to_date_ongoing!$K30*Achievement_to_date_ongoing!O30,"") -> 1168.217536 | O32: =IF($B32>0,Achievement_to_date_ongoing!$K30*Achievement_to_date_ongoing!P30,"") -> 1168.217536
B33: =Achievement_to_date_ongoing!B31 -> ROHU-421 | C33: =IF($B33>0, Achievement_to_date_ongoing!C31, "") -> 3 | D33: =IF($B33>0, Achievement_to_date_ongoing!D31, "") -> All | E33: =IF($B33>0, Achievement_to_date_ongoing!E31, "") -> CO44 | F33: =IF($B33>0, Achievement_to_date_ongoing!F31, "") -> All | G33: 457.767023 | H33: 1526.425243 | I33: 2667.41557 | J33: 2667.41557 | L33: =IF($B33>0,Achievement_to_date_ongoing!$K31*Achievement_to_date_ongoing!M31,"") -> 457.767023 | M33: =IF($B33>0,Achievement_to_date_ongoing!$K31*Achievement_to_date_ongoing!N31,"") -> 1526.425243 | N33: =IF($B33>0,Achievement_to_date_ongoing!$K31*Achievement_to_date_ongoing!O31,"") -> 2667.41557 | O33: =IF($B33>0,Achievement_to_date_ongoing!$K31*Achievement_to_date_ongoing!P31,"") -> 2667.41557
B34: =Achievement_to_date_ongoing!B32 -> ROHU-380 | C34: =IF($B34>0, Achievement_to_date_ongoing!C32, "") -> 3 | D34: =IF($B34>0, Achievement_to_date_ongoing!D32, "") -> All | E34: =IF($B34>0, Achievement_to_date_ongoing!E32, "") -> CO44 | F34: =IF($B34>0, Achievement_to_date_ongoing!F32, "") -> All | G34: 20.96694974 | H34: 79.74916759 | I34: 79.74916759 | J34: 79.74916759 | L34: =IF($B34>0,Achievement_to_date_ongoing!$K32*Achievement_to_date_ongoing!M32,"") -> 20.96694974 | M34: =IF($B34>0,Achievement_to_date_ongoing!$K32*Achievement_to_date_ongoing!N32,"") -> 79.74916759 | N34: =IF($B34>0,Achievement_to_date_ongoing!$K32*Achievement_to_date_ongoing!O32,"") -> 79.74916759 | O34: =IF($B34>0,Achievement_to_date_ongoing!$K32*Achievement_to_date_ongoing!P32,"") -> 79.74916759
B35: =Achievement_to_date_ongoing!B33 -> ROHU-359 | C35: =IF($B35>0, Achievement_to_date_ongoing!C33, "") -> 3 | D35: =IF($B35>0, Achievement_to_date_ongoing!D33, "") -> All | E35: =IF($B35>0, Achievement_to_date_ongoing!E33, "") -> CO44 | F35: =IF($B35>0, Achievement_to_date_ongoing!F33, "") -> All | G35: 177.1485749 | H35: 532.8161612 | I35: 1287.002065 | J35: 1287.002065 | L35: =IF($B35>0,Achievement_to_date_ongoing!$K33*Achievement_to_date_ongoing!M33,"") -> 177.1485749 | M35: =IF($B35>0,Achievement_to_date_ongoing!$K33*Achievement_to_date_ongoing!N33,"") -> 532.8161612 | N35: =IF($B35>0,Achievement_to_date_ongoing!$K33*Achievement_to_date_ongoing!O33,"") -> 1287.002065 | O35: =IF($B35>0,Achievement_to_date_ongoing!$K33*Achievement_to_date_ongoing!P33,"") -> 1287.002065
B36: =Achievement_to_date_ongoing!B34 -> ROHU-374 | C36: =IF($B36>0, Achievement_to_date_ongoing!C34, "") -> 3 | D36: =IF($B36>0, Achievement_to_date_ongoing!D34, "") -> All | E36: =IF($B36>0, Achievement_to_date_ongoing!E34, "") -> CO44 | F36: =IF($B36>0, Achievement_to_date_ongoing!F34, "") -> All | G36: 276.747934 | H36: 446.2991031 | I36: 446.2991031 | J36: 446.2991031 | L36: =IF($B36>0,Achievement_to_date_ongoing!$K34*Achievement_to_date_ongoing!M34,"") -> 276.747934 | M36: =IF($B36>0,Achievement_to_date_ongoing!$K34*Achievement_to_date_ongoing!N34,"") -> 446.2991031 | N36: =IF($B36>0,Achievement_to_date_ongoing!$K34*Achievement_to_date_ongoing!O34,"") -> 446.2991031 | O36: =IF($B36>0,Achievement_to_date_ongoing!$K34*Achievement_to_date_ongoing!P34,"") -> 446.2991031
B37: =Achievement_to_date_ongoing!B35 -> ROHU-452 | C37: =IF($B37>0, Achievement_to_date_ongoing!C35, "") -> 3 | D37: =IF($B37>0, Achievement_to_date_ongoing!D35, "") -> All | E37: =IF($B37>0, Achievement_to_date_ongoing!E35, "") -> CO44 | F37: =IF($B37>0, Achievement_to_date_ongoing!F35, "") -> All | G37: 0 | H37: 2786.774632 | I37: 2786.774632 | J37: 2786.774632 | L37: =IF($B37>0,Achievement_to_date_ongoing!$K35*Achievement_to_date_ongoing!M35,"") -> 0 | M37: =IF($B37>0,Achievement_to_date_ongoing!$K35*Achievement_to_date_ongoing!N35,"") -> 2786.774632 | N37: =IF($B37>0,Achievement_to_date_ongoing!$K35*Achievement_to_date_ongoing!O35,"") -> 2786.774632 | O37: =IF($B37>0,Achievement_to_date_ongoing!$K35*Achievement_to_date_ongoing!P35,"") -> 2786.774632
B38: =Achievement_to_date_ongoing!B36 -> ROHU-388 | C38: =IF($B38>0, Achievement_to_date_ongoing!C36, "") -> 3 | D38: =IF($B38>0, Achievement_to_date_ongoing!D36, "") -> All | E38: =IF($B38>0, Achievement_to_date_ongoing!E36, "") -> CO44 | F38: =IF($B38>0, Achievement_to_date_ongoing!F36, "") -> All | G38: 0 | H38: 625.8566493 | I38: 625.8566493 | J38: 625.8566493 | L38: =IF($B38>0,Achievement_to_date_ongoing!$K36*Achievement_to_date_ongoing!M36,"") -> 0 | M38: =IF($B38>0,Achievement_to_date_ongoing!$K36*Achievement_to_date_ongoing!N36,"") -> 625.8566493 | N38: =IF($B38>0,Achievement_to_date_ongoing!$K36*Achievement_to_date_ongoing!O36,"") -> 625.8566493 | O38: =IF($B38>0,Achievement_to_date_ongoing!$K36*Achievement_to_date_ongoing!P36,"") -> 625.8566493
B39: =Achievement_to_date_ongoing!B37 -> ROHU-370 | C39: =IF($B39>0, Achievement_to_date_ongoing!C37, "") -> 3 | D39: =IF($B39>0, Achievement_to_date_ongoing!D37, "") -> All | E39: =IF($B39>0, Achievement_to_date_ongoing!E37, "") -> CO44 | F39: =IF($B39>0, Achievement_to_date_ongoing!F37, "") -> All | G39: 0 | H39: 0 | I39: 589.5299781 | J39: 589.5299781 | L39: =IF($B39>0,Achievement_to_date_ongoing!$K37*Achievement_to_date_ongoing!M37,"") -> 0 | M39: =IF($B39>0,Achievement_to_date_ongoing!$K37*Achievement_to_date_ongoing!N37,"") -> 0 | N39: =IF($B39>0,Achievement_to_date_ongoing!$K37*Achievement_to_date_ongoing!O37,"") -> 589.5299781 | O39: =IF($B39>0,Achievement_to_date_ongoing!$K37*Achievement_to_date_ongoing!P37,"") -> 589.5299781
B40: =Achievement_to_date_ongoing!B38 -> ROHU-399 | C40: =IF($B40>0, Achievement_to_date_ongoing!C38, "") -> 3 | D40: =IF($B40>0, Achievement_to_date_ongoing!D38, "") -> All | E40: =IF($B40>0, Achievement_to_date_ongoing!E38, "") -> CO44 | F40: =IF($B40>0, Achievement_to_date_ongoing!F38, "") -> All | G40: 0 | H40: 0 | I40: 232.5149834 | J40: 232.5149834 | L40: =IF($B40>0,Achievement_to_date_ongoing!$K38*Achievement_to_date_ongoing!M38,"") -> 0 | M40: =IF($B40>0,Achievement_to_date_ongoing!$K38*Achievement_to_date_ongoing!N38,"") -> 0 | N40: =IF($B40>0,Achievement_to_date_ongoing!$K38*Achievement_to_date_ongoing!O38,"") -> 232.5149834 | O40: =IF($B40>0,Achievement_to_date_ongoing!$K38*Achievement_to_date_ongoing!P38,"") -> 232.5149834
B41: =Achievement_to_date_ongoing!B39 -> ROHU-395 | C41: =IF($B41>0, Achievement_to_date_ongoing!C39, "") -> 3 | D41: =IF($B41>0, Achievement_to_date_ongoing!D39, "") -> All | E41: =IF($B41>0, Achievement_to_date_ongoing!E39, "") -> CO44 | F41: =IF($B41>0, Achievement_to_date_ongoing!F39, "") -> All | G41: 0 | H41: 1002.616125 | I41: 1002.616125 | J41: 1002.616125 | L41: =IF($B41>0,Achievement_to_date_ongoing!$K39*Achievement_to_date_ongoing!M39,"") -> 0 | M41: =IF($B41>0,Achievement_to_date_ongoing!$K39*Achievement_to_date_ongoing!N39,"") -> 1002.616125 | N41: =IF($B41>0,Achievement_to_date_ongoing!$K39*Achievement_to_date_ongoing!O39,"") -> 1002.616125 | O41: =IF($B41>0,Achievement_to_date_ongoing!$K39*Achievement_to_date_ongoing!P39,"") -> 1002.616125
B42: =Achievement_to_date_ongoing!B40 -> ROHU-426 | C42: =IF($B42>0, Achievement_to_date_ongoing!C40, "") -> 3 | D42: =IF($B42>0, Achievement_to_date_ongoing!D40, "") -> All | E42: =IF($B42>0, Achievement_to_date_ongoing!E40, "") -> CO44 | F42: =IF($B42>0, Achievement_to_date_ongoing!F40, "") -> All | G42: 0 | H42: 0 | I42: 1193.590625 | J42: 1193.590625 | L42: =IF($B42>0,Achievement_to_date_ongoing!$K40*Achievement_to_date_ongoing!M40,"") -> 0 | M42: =IF($B42>0,Achievement_to_date_ongoing!$K40*Achievement_to_date_ongoing!N40,"") -> 0 | N42: =IF($B42>0,Achievement_to_date_ongoing!$K40*Achievement_to_date_ongoing!O40,"") -> 1193.590625 | O42: =IF($B42>0,Achievement_to_date_ongoing!$K40*Achievement_to_date_ongoing!P40,"") -> 1193.590625
B43: =Achievement_to_date_ongoing!B41 -> ROHU-391 | C43: =IF($B43>0, Achievement_to_date_ongoing!C41, "") -> 3 | D43: =IF($B43>0, Achievement_to_date_ongoing!D41, "") -> All | E43: =IF($B43>0, Achievement_to_date_ongoing!E41, "") -> CO44 | F43: =IF($B43>0, Achievement_to_date_ongoing!F41, "") -> All | G43: 0 | H43: 0 | I43: 788.8077172 | J43: 788.8077172 | L43: =IF($B43>0,Achievement_to_date_ongoing!$K41*Achievement_to_date_ongoing!M41,"") -> 0 | M43: =IF($B43>0,Achievement_to_date_ongoing!$K41*Achievement_to_date_ongoing!N41,"") -> 0 | N43: =IF($B43>0,Achievement_to_date_ongoing!$K41*Achievement_to_date_ongoing!O41,"") -> 788.8077172 | O43: =IF($B43>0,Achievement_to_date_ongoing!$K41*Achievement_to_date_ongoing!P41,"") -> 788.8077172
B44: =Achievement_to_date_ongoing!B42 -> ROHU-420 | C44: =IF($B44>0, Achievement_to_date_ongoing!C42, "") -> 3 | D44: =IF($B44>0, Achievement_to_date_ongoing!D42, "") -> All | E44: =IF($B44>0, Achievement_to_date_ongoing!E42, "") -> CO44 | F44: =IF($B44>0, Achievement_to_date_ongoing!F42, "") -> All | G44: 0 | H44: 415.1619564 | I44: 415.1619564 | J44: 415.1619564 | L44: =IF($B44>0,Achievement_to_date_ongoing!$K42*Achievement_to_date_ongoing!M42,"") -> 0 | M44: =IF($B44>0,Achievement_to_date_ongoing!$K42*Achievement_to_date_ongoing!N42,"") -> 415.1619564 | N44: =IF($B44>0,Achievement_to_date_ongoing!$K42*Achievement_to_date_ongoing!O42,"") -> 415.1619564 | O44: =IF($B44>0,Achievement_to_date_ongoing!$K42*Achievement_to_date_ongoing!P42,"") -> 415.1619564
B45: =Achievement_to_date_ongoing!B43 -> ROHU-398 | C45: =IF($B45>0, Achievement_to_date_ongoing!C43, "") -> 3 | D45: =IF($B45>0, Achievement_to_date_ongoing!D43, "") -> All | E45: =IF($B45>0, Achievement_to_date_ongoing!E43, "") -> CO44 | F45: =IF($B45>0, Achievement_to_date_ongoing!F43, "") -> All | G45: 0 | H45: 0 | I45: 294.0732519 | J45: 294.0732519 | L45: =IF($B45>0,Achievement_to_date_ongoing!$K43*Achievement_to_date_ongoing!M43,"") -> 0 | M45: =IF($B45>0,Achievement_to_date_ongoing!$K43*Achievement_to_date_ongoing!N43,"") -> 0 | N45: =IF($B45>0,Achievement_to_date_ongoing!$K43*Achievement_to_date_ongoing!O43,"") -> 294.0732519 | O45: =IF($B45>0,Achievement_to_date_ongoing!$K43*Achievement_to_date_ongoing!P43,"") -> 294.0732519
B46: =Achievement_to_date_ongoing!B44 -> ROHU-331 | C46: =IF($B46>0, Achievement_to_date_ongoing!C44, "") -> 3 | D46: =IF($B46>0, Achievement_to_date_ongoing!D44, "") -> All | E46: =IF($B46>0, Achievement_to_date_ongoing!E44, "") -> CO44 | F46: =IF($B46>0, Achievement_to_date_ongoing!F44, "") -> All | G46: 0 | H46: 0 | I46: 10893.49612 | J46: 10893.49612 | L46: =IF($B46>0,Achievement_to_date_ongoing!$K44*Achievement_to_date_ongoing!M44,"") -> 0 | M46: =IF($B46>0,Achievement_to_date_ongoing!$K44*Achievement_to_date_ongoing!N44,"") -> 0 | N46: =IF($B46>0,Achievement_to_date_ongoing!$K44*Achievement_to_date_ongoing!O44,"") -> 10893.49612 | O46: =IF($B46>0,Achievement_to_date_ongoing!$K44*Achievement_to_date_ongoing!P44,"") -> 10893.49612
B47: =Achievement_to_date_ongoing!B45 -> ROHU-406 | C47: =IF($B47>0, Achievement_to_date_ongoing!C45, "") -> 3 | D47: =IF($B47>0, Achievement_to_date_ongoing!D45, "") -> All | E47: =IF($B47>0, Achievement_to_date_ongoing!E45, "") -> CO44 | F47: =IF($B47>0, Achievement_to_date_ongoing!F45, "") -> All | G47: 0 | H47: 5397.105433 | I47: 5397.105433 | J47: 5397.105433 | L47: =IF($B47>0,Achievement_to_date_ongoing!$K45*Achievement_to_date_ongoing!M45,"") -> 0 | M47: =IF($B47>0,Achievement_to_date_ongoing!$K45*Achievement_to_date_ongoing!N45,"") -> 5397.105433 | N47: =IF($B47>0,Achievement_to_date_ongoing!$K45*Achievement_to_date_ongoing!O45,"") -> 5397.105433 | O47: =IF($B47>0,Achievement_to_date_ongoing!$K45*Achievement_to_date_ongoing!P45,"") -> 5397.105433
B48: =Achievement_to_date_ongoing!B46 -> ROHU-348 | C48: =IF($B48>0, Achievement_to_date_ongoing!C46, "") -> 3 | D48: =IF($B48>0, Achievement_to_date_ongoing!D46, "") -> All | E48: =IF($B48>0, Achievement_to_date_ongoing!E46, "") -> CO44 | F48: =IF($B48>0, Achievement_to_date_ongoing!F46, "") -> All | G48: 0 | H48: 91.33563041 | I48: 91.33563041 | J48: 91.33563041 | L48: =IF($B48>0,Achievement_to_date_ongoing!$K46*Achievement_to_date_ongoing!M46,"") -> 0 | M48: =IF($B48>0,Achievement_to_date_ongoing!$K46*Achievement_to_date_ongoing!N46,"") -> 91.33563041 | N48: =IF($B48>0,Achievement_to_date_ongoing!$K46*Achievement_to_date_ongoing!O46,"") -> 91.33563041 | O48: =IF($B48>0,Achievement_to_date_ongoing!$K46*Achievement_to_date_ongoing!P46,"") -> 91.33563041
B49: =Achievement_to_date_ongoing!B47 -> ROHU-425 | C49: =IF($B49>0, Achievement_to_date_ongoing!C47, "") -> 3 | D49: =IF($B49>0, Achievement_to_date_ongoing!D47, "") -> All | E49: =IF($B49>0, Achievement_to_date_ongoing!E47, "") -> CO44 | F49: =IF($B49>0, Achievement_to_date_ongoing!F47, "") -> All | G49: 467.057201 | H49: 467.057201 | I49: 467.057201 | J49: 467.057201 | L49: =IF($B49>0,Achievement_to_date_ongoing!$K47*Achievement_to_date_ongoing!M47,"") -> 467.057201 | M49: =IF($B49>0,Achievement_to_date_ongoing!$K47*Achievement_to_date_ongoing!N47,"") -> 467.057201 | N49: =IF($B49>0,Achievement_to_date_ongoing!$K47*Achievement_to_date_ongoing!O47,"") -> 467.057201 | O49: =IF($B49>0,Achievement_to_date_ongoing!$K47*Achievement_to_date_ongoing!P47,"") -> 467.057201
B50: =Achievement_to_date_ongoing!B48 -> ROHU-385 | C50: =IF($B50>0, Achievement_to_date_ongoing!C48, "") -> 3 | D50: =IF($B50>0, Achievement_to_date_ongoing!D48, "") -> All | E50: =IF($B50>0, Achievement_to_date_ongoing!E48, "") -> F.PA3 | F50: =IF($B50>0, Achievement_to_date_ongoing!F48, "") -> All | G50: 0 | H50: 355967.1492 | I50: 355967.1492 | J50: 355967.1492 | L50: =IF($B50>0,Achievement_to_date_ongoing!$K48*Achievement_to_date_ongoing!M48,"") -> 0 | M50: =IF($B50>0,Achievement_to_date_ongoing!$K48*Achievement_to_date_ongoing!N48,"") -> 355967.1492 | N50: =IF($B50>0,Achievement_to_date_ongoing!$K48*Achievement_to_date_ongoing!O48,"") -> 355967.1492 | O50: =IF($B50>0,Achievement_to_date_ongoing!$K48*Achievement_to_date_ongoing!P48,"") -> 355967.1492
B51: =Achievement_to_date_ongoing!B49 -> ROHU-421 | C51: =IF($B51>0, Achievement_to_date_ongoing!C49, "") -> 3 | D51: =IF($B51>0, Achievement_to_date_ongoing!D49, "") -> All | E51: =IF($B51>0, Achievement_to_date_ongoing!E49, "") -> F.PA3 | F51: =IF($B51>0, Achievement_to_date_ongoing!F49, "") -> All | G51: 0 | H51: 0 | I51: 5988535.03 | J51: 5988535.03 | L51: =IF($B51>0,Achievement_to_date_ongoing!$K49*Achievement_to_date_ongoing!M49,"") -> 0 | M51: =IF($B51>0,Achievement_to_date_ongoing!$K49*Achievement_to_date_ongoing!N49,"") -> 0 | N51: =IF($B51>0,Achievement_to_date_ongoing!$K49*Achievement_to_date_ongoing!O49,"") -> 5988535.03 | O51: =IF($B51>0,Achievement_to_date_ongoing!$K49*Achievement_to_date_ongoing!P49,"") -> 5988535.03
B52: =Achievement_to_date_ongoing!B50 -> ROHU-380 | C52: =IF($B52>0, Achievement_to_date_ongoing!C50, "") -> 3 | D52: =IF($B52>0, Achievement_to_date_ongoing!D50, "") -> All | E52: =IF($B52>0, Achievement_to_date_ongoing!E50, "") -> F.PA3 | F52: =IF($B52>0, Achievement_to_date_ongoing!F50, "") -> All | G52: 0 | H52: 0 | I52: 2382933.203 | J52: 2382933.203 | L52: =IF($B52>0,Achievement_to_date_ongoing!$K50*Achievement_to_date_ongoing!M50,"") -> 0 | M52: =IF($B52>0,Achievement_to_date_ongoing!$K50*Achievement_to_date_ongoing!N50,"") -> 0 | N52: =IF($B52>0,Achievement_to_date_ongoing!$K50*Achievement_to_date_ongoing!O50,"") -> 2382933.203 | O52: =IF($B52>0,Achievement_to_date_ongoing!$K50*Achievement_to_date_ongoing!P50,"") -> 2382933.203
B53: =Achievement_to_date_ongoing!B51 -> ROHU-359 | C53: =IF($B53>0, Achievement_to_date_ongoing!C51, "") -> 3 | D53: =IF($B53>0, Achievement_to_date_ongoing!D51, "") -> All | E53: =IF($B53>0, Achievement_to_date_ongoing!E51, "") -> F.PA3 | F53: =IF($B53>0, Achievement_to_date_ongoing!F51, "") -> All | G53: 0 | H53: 0 | I53: 2085945.074 | J53: 2085945.074 | L53: =IF($B53>0,Achievement_to_date_ongoing!$K51*Achievement_to_date_ongoing!M51,"") -> 0 | M53: =IF($B53>0,Achievement_to_date_ongoing!$K51*Achievement_to_date_ongoing!N51,"") -> 0 | N53: =IF($B53>0,Achievement_to_date_ongoing!$K51*Achievement_to_date_ongoing!O51,"") -> 2085945.074 | O53: =IF($B53>0,Achievement_to_date_ongoing!$K51*Achievement_to_date_ongoing!P51,"") -> 2085945.074
B54: =Achievement_to_date_ongoing!B52 -> ROHU-374 | C54: =IF($B54>0, Achievement_to_date_ongoing!C52, "") -> 3 | D54: =IF($B54>0, Achievement_to_date_ongoing!D52, "") -> All | E54: =IF($B54>0, Achievement_to_date_ongoing!E52, "") -> F.PA3 | F54: =IF($B54>0, Achievement_to_date_ongoing!F52, "") -> All | G54: 0 | H54: 0 | I54: 1012327.439 | J54: 1012327.439 | L54: =IF($B54>0,Achievement_to_date_ongoing!$K52*Achievement_to_date_ongoing!M52,"") -> 0 | M54: =IF($B54>0,Achievement_to_date_ongoing!$K52*Achievement_to_date_ongoing!N52,"") -> 0 | N54: =IF($B54>0,Achievement_to_date_ongoing!$K52*Achievement_to_date_ongoing!O52,"") -> 1012327.439 | O54: =IF($B54>0,Achievement_to_date_ongoing!$K52*Achievement_to_date_ongoing!P52,"") -> 1012327.439
B55: =Achievement_to_date_ongoing!B53 -> ROHU-452 | C55: =IF($B55>0, Achievement_to_date_ongoing!C53, "") -> 3 | D55: =IF($B55>0, Achievement_to_date_ongoing!D53, "") -> All | E55: =IF($B55>0, Achievement_to_date_ongoing!E53, "") -> F.PA3 | F55: =IF($B55>0, Achievement_to_date_ongoing!F53, "") -> All | G55: 3945293.27 | H55: 5209840.663 | I55: 5209840.663 | J55: 5209840.663 | L55: =IF($B55>0,Achievement_to_date_ongoing!$K53*Achievement_to_date_ongoing!M53,"") -> 3945293.27 | M55: =IF($B55>0,Achievement_to_date_ongoing!$K53*Achievement_to_date_ongoing!N53,"") -> 5209840.663 | N55: =IF($B55>0,Achievement_to_date_ongoing!$K53*Achievement_to_date_ongoing!O53,"") -> 5209840.663 | O55: =IF($B55>0,Achievement_to_date_ongoing!$K53*Achievement_to_date_ongoing!P53,"") -> 5209840.663
B56: =Achievement_to_date_ongoing!B54 -> ROHU-388 | C56: =IF($B56>0, Achievement_to_date_ongoing!C54, "") -> 3 | D56: =IF($B56>0, Achievement_to_date_ongoing!D54, "") -> All | E56: =IF($B56>0, Achievement_to_date_ongoing!E54, "") -> F.PA3 | F56: =IF($B56>0, Achievement_to_date_ongoing!F54, "") -> All | G56: 258903.094 | H56: 706969.3458 | I56: 706969.3458 | J56: 706969.3458 | L56: =IF($B56>0,Achievement_to_date_ongoing!$K54*Achievement_to_date_ongoing!M54,"") -> 258903.094 | M56: =IF($B56>0,Achievement_to_date_ongoing!$K54*Achievement_to_date_ongoing!N54,"") -> 706969.3458 | N56: =IF($B56>0,Achievement_to_date_ongoing!$K54*Achievement_to_date_ongoing!O54,"") -> 706969.3458 | O56: =IF($B56>0,Achievement_to_date_ongoing!$K54*Achievement_to_date_ongoing!P54,"") -> 706969.3458
B57: =Achievement_to_date_ongoing!B55 -> ROHU-370 | C57: =IF($B57>0, Achievement_to_date_ongoing!C55, "") -> 3 | D57: =IF($B57>0, Achievement_to_date_ongoing!D55, "") -> All | E57: =IF($B57>0, Achievement_to_date_ongoing!E55, "") -> F.PA3 | F57: =IF($B57>0, Achievement_to_date_ongoing!F55, "") -> All | G57: 76263.21291 | H57: 413028.6799 | I57: 1127829.765 | J57: 1127829.765 | L57: =IF($B57>0,Achievement_to_date_ongoing!$K55*Achievement_to_date_ongoing!M55,"") -> 76263.21291 | M57: =IF($B57>0,Achievement_to_date_ongoing!$K55*Achievement_to_date_ongoing!N55,"") -> 413028.6799 | N57: =IF($B57>0,Achievement_to_date_ongoing!$K55*Achievement_to_date_ongoing!O55,"") -> 1127829.765 | O57: =IF($B57>0,Achievement_to_date_ongoing!$K55*Achievement_to_date_ongoing!P55,"") -> 1127829.765
B58: =Achievement_to_date_ongoing!B56 -> ROHU-399 | C58: =IF($B58>0, Achievement_to_date_ongoing!C56, "") -> 3 | D58: =IF($B58>0, Achievement_to_date_ongoing!D56, "") -> All | E58: =IF($B58>0, Achievement_to_date_ongoing!E56, "") -> F.PA3 | F58: =IF($B58>0, Achievement_to_date_ongoing!F56, "") -> All | G58: 43668.33664 | H58: 141354.4556 | I58: 290255.71 | J58: 290255.71 | L58: =IF($B58>0,Achievement_to_date_ongoing!$K56*Achievement_to_date_ongoing!M56,"") -> 43668.33664 | M58: =IF($B58>0,Achievement_to_date_ongoing!$K56*Achievement_to_date_ongoing!N56,"") -> 141354.4556 | N58: =IF($B58>0,Achievement_to_date_ongoing!$K56*Achievement_to_date_ongoing!O56,"") -> 290255.71 | O58: =IF($B58>0,Achievement_to_date_ongoing!$K56*Achievement_to_date_ongoing!P56,"") -> 290255.71
B59: =Achievement_to_date_ongoing!B57 -> ROHU-395 | C59: =IF($B59>0, Achievement_to_date_ongoing!C57, "") -> 3 | D59: =IF($B59>0, Achievement_to_date_ongoing!D57, "") -> All | E59: =IF($B59>0, Achievement_to_date_ongoing!E57, "") -> F.PA3 | F59: =IF($B59>0, Achievement_to_date_ongoing!F57, "") -> All | G59: 845791.1578 | H59: 2309545.29 | I59: 2309545.29 | J59: 2309545.29 | L59: =IF($B59>0,Achievement_to_date_ongoing!$K57*Achievement_to_date_ongoing!M57,"") -> 845791.1578 | M59: =IF($B59>0,Achievement_to_date_ongoing!$K57*Achievement_to_date_ongoing!N57,"") -> 2309545.29 | N59: =IF($B59>0,Achievement_to_date_ongoing!$K57*Achievement_to_date_ongoing!O57,"") -> 2309545.29 | O59: =IF($B59>0,Achievement_to_date_ongoing!$K57*Achievement_to_date_ongoing!P57,"") -> 2309545.29
B60: =Achievement_to_date_ongoing!B58 -> ROHU-391 | C60: =IF($B60>0, Achievement_to_date_ongoing!C58, "") -> 3 | D60: =IF($B60>0, Achievement_to_date_ongoing!D58, "") -> All | E60: =IF($B60>0, Achievement_to_date_ongoing!E58, "") -> F.PA3 | F60: =IF($B60>0, Achievement_to_date_ongoing!F58, "") -> All | G60: 196779.2818 | H60: 1423458.324 | I60: 1879705.905 | J60: 1879705.905 | L60: =IF($B60>0,Achievement_to_date_ongoing!$K58*Achievement_to_date_ongoing!M58,"") -> 196779.2818 | M60: =IF($B60>0,Achievement_to_date_ongoing!$K58*Achievement_to_date_ongoing!N58,"") -> 1423458.324 | N60: =IF($B60>0,Achievement_to_date_ongoing!$K58*Achievement_to_date_ongoing!O58,"") -> 1879705.905 | O60: =IF($B60>0,Achievement_to_date_ongoing!$K58*Achievement_to_date_ongoing!P58,"") -> 1879705.905
B61: =Achievement_to_date_ongoing!B59 -> ROHU-420 | C61: =IF($B61>0, Achievement_to_date_ongoing!C59, "") -> 3 | D61: =IF($B61>0, Achievement_to_date_ongoing!D59, "") -> All | E61: =IF($B61>0, Achievement_to_date_ongoing!E59, "") -> F.PA3 | F61: =IF($B61>0, Achievement_to_date_ongoing!F59, "") -> All | G61: 103770.369 | H61: 771100.2301 | I61: 903669.7614 | J61: 903669.7614 | L61: =IF($B61>0,Achievement_to_date_ongoing!$K59*Achievement_to_date_ongoing!M59,"") -> 103770.369 | M61: =IF($B61>0,Achievement_to_date_ongoing!$K59*Achievement_to_date_ongoing!N59,"") -> 771100.2301 | N61: =IF($B61>0,Achievement_to_date_ongoing!$K59*Achievement_to_date_ongoing!O59,"") -> 903669.7614 | O61: =IF($B61>0,Achievement_to_date_ongoing!$K59*Achievement_to_date_ongoing!P59,"") -> 903669.7614
B62: =Achievement_to_date_ongoing!B60 -> ROHU-398 | C62: =IF($B62>0, Achievement_to_date_ongoing!C60, "") -> 3 | D62: =IF($B62>0, Achievement_to_date_ongoing!D60, "") -> All | E62: =IF($B62>0, Achievement_to_date_ongoing!E60, "") -> F.PA3 | F62: =IF($B62>0, Achievement_to_date_ongoing!F60, "") -> All | G62: 793974.7268 | H62: 2168053.631 | I62: 2168053.631 | J62: 2168053.631 | L62: =IF($B62>0,Achievement_to_date_ongoing!$K60*Achievement_to_date_ongoing!M60,"") -> 793974.7268 | M62: =IF($B62>0,Achievement_to_date_ongoing!$K60*Achievement_to_date_ongoing!N60,"") -> 2168053.631 | N62: =IF($B62>0,Achievement_to_date_ongoing!$K60*Achievement_to_date_ongoing!O60,"") -> 2168053.631 | O62: =IF($B62>0,Achievement_to_date_ongoing!$K60*Achievement_to_date_ongoing!P60,"") -> 2168053.631
B63: =Achievement_to_date_ongoing!B61 -> ROHU-331 | C63: =IF($B63>0, Achievement_to_date_ongoing!C61, "") -> 3 | D63: =IF($B63>0, Achievement_to_date_ongoing!D61, "") -> All | E63: =IF($B63>0, Achievement_to_date_ongoing!E61, "") -> F.PA3 | F63: =IF($B63>0, Achievement_to_date_ongoing!F61, "") -> All | G63: 453715.0987 | H63: 1675196.799 | I63: 2042816.318 | J63: 2042816.318 | L63: =IF($B63>0,Achievement_to_date_ongoing!$K61*Achievement_to_date_ongoing!M61,"") -> 453715.0987 | M63: =IF($B63>0,Achievement_to_date_ongoing!$K61*Achievement_to_date_ongoing!N61,"") -> 1675196.799 | N63: =IF($B63>0,Achievement_to_date_ongoing!$K61*Achievement_to_date_ongoing!O61,"") -> 2042816.318 | O63: =IF($B63>0,Achievement_to_date_ongoing!$K61*Achievement_to_date_ongoing!P61,"") -> 2042816.318
B64: =Achievement_to_date_ongoing!B62 -> ROHU-406 | C64: =IF($B64>0, Achievement_to_date_ongoing!C62, "") -> 3 | D64: =IF($B64>0, Achievement_to_date_ongoing!D62, "") -> All | E64: =IF($B64>0, Achievement_to_date_ongoing!E62, "") -> F.PA3 | F64: =IF($B64>0, Achievement_to_date_ongoing!F62, "") -> All | G64: 328842.3005 | H64: 897947.6546 | I64: 897947.6546 | J64: 897947.6546 | L64: =IF($B64>0,Achievement_to_date_ongoing!$K62*Achievement_to_date_ongoing!M62,"") -> 328842.3005 | M64: =IF($B64>0,Achievement_to_date_ongoing!$K62*Achievement_to_date_ongoing!N62,"") -> 897947.6546 | N64: =IF($B64>0,Achievement_to_date_ongoing!$K62*Achievement_to_date_ongoing!O62,"") -> 897947.6546 | O64: =IF($B64>0,Achievement_to_date_ongoing!$K62*Achievement_to_date_ongoing!P62,"") -> 897947.6546
B65: =Achievement_to_date_ongoing!B63 -> ROHU-348 | C65: =IF($B65>0, Achievement_to_date_ongoing!C63, "") -> 3 | D65: =IF($B65>0, Achievement_to_date_ongoing!D63, "") -> All | E65: =IF($B65>0, Achievement_to_date_ongoing!E63, "") -> F.PA3 | F65: =IF($B65>0, Achievement_to_date_ongoing!F63, "") -> All | G65: 93332.0019 | H65: 207827.3622 | I65: 207827.3622 | J65: 207827.3622 | L65: =IF($B65>0,Achievement_to_date_ongoing!$K63*Achievement_to_date_ongoing!M63,"") -> 93332.0019 | M65: =IF($B65>0,Achievement_to_date_ongoing!$K63*Achievement_to_date_ongoing!N63,"") -> 207827.3622 | N65: =IF($B65>0,Achievement_to_date_ongoing!$K63*Achievement_to_date_ongoing!O63,"") -> 207827.3622 | O65: =IF($B65>0,Achievement_to_date_ongoing!$K63*Achievement_to_date_ongoing!P63,"") -> 207827.3622
B66: =Achievement_to_date_ongoing!B64 -> ROHU-425 | C66: =IF($B66>0, Achievement_to_date_ongoing!C64, "") -> 3 | D66: =IF($B66>0, Achievement_to_date_ongoing!D64, "") -> All | E66: =IF($B66>0, Achievement_to_date_ongoing!E64, "") -> F.PA3 | F66: =IF($B66>0, Achievement_to_date_ongoing!F64, "") -> All | G66: 1066897.545 | H66: 1066897.545 | I66: 1066897.545 | J66: 1066897.545 | L66: =IF($B66>0,Achievement_to_date_ongoing!$K64*Achievement_to_date_ongoing!M64,"") -> 1066897.545 | M66: =IF($B66>0,Achievement_to_date_ongoing!$K64*Achievement_to_date_ongoing!N64,"") -> 1066897.545 | N66: =IF($B66>0,Achievement_to_date_ongoing!$K64*Achievement_to_date_ongoing!O64,"") -> 1066897.545 | O66: =IF($B66>0,Achievement_to_date_ongoing!$K64*Achievement_to_date_ongoing!P64,"") -> 1066897.545
B67: =Achievement_to_date_ongoing!B65 -> ROHU-396 | C67: =IF($B67>0, Achievement_to_date_ongoing!C65, "") -> 4 | D67: =IF($B67>0, Achievement_to_date_ongoing!D65, "") -> All | E67: =IF($B67>0, Achievement_to_date_ongoing!E65, "") -> 9/a 2 | F67: =IF($B67>0, Achievement_to_date_ongoing!F65, "") -> All | G67: 3.563638699 | H67: 6.227429346 | I67: 6.227429346 | J67: 6.227429346 | L67: =IF($B67>0,Achievement_to_date_ongoing!$K65*Achievement_to_date_ongoing!M65,"") -> 3.563638699 | M67: =IF($B67>0,Achievement_to_date_ongoing!$K65*Achievement_to_date_ongoing!N65,"") -> 6.227429346 | N67: =IF($B67>0,Achievement_to_date_ongoing!$K65*Achievement_to_date_ongoing!O65,"") -> 6.227429346 | O67: =IF($B67>0,Achievement_to_date_ongoing!$K65*Achievement_to_date_ongoing!P65,"") -> 6.227429346
B68: =Achievement_to_date_ongoing!B66 -> ROHU-361 | C68: =IF($B68>0, Achievement_to_date_ongoing!C66, "") -> 4 | D68: =IF($B68>0, Achievement_to_date_ongoing!D66, "") -> All | E68: =IF($B68>0, Achievement_to_date_ongoing!E66, "") -> 9/a 2 | F68: =IF($B68>0, Achievement_to_date_ongoing!F66, "") -> All | G68: 0.1476495934 | H68: 0.825028582 | I68: 2.075809782 | J68: 2.075809782 | L68: =IF($B68>0,Achievement_to_date_ongoing!$K66*Achievement_to_date_ongoing!M66,"") -> 0.1476495934 | M68: =IF($B68>0,Achievement_to_date_ongoing!$K66*Achievement_to_date_ongoing!N66,"") -> 0.825028582 | N68: =IF($B68>0,Achievement_to_date_ongoing!$K66*Achievement_to_date_ongoing!O66,"") -> 2.075809782 | O68: =IF($B68>0,Achievement_to_date_ongoing!$K66*Achievement_to_date_ongoing!P66,"") -> 2.075809782
B69: =Achievement_to_date_ongoing!B67 -> ROHU-357 | C69: =IF($B69>0, Achievement_to_date_ongoing!C67, "") -> 4 | D69: =IF($B69>0, Achievement_to_date_ongoing!D67, "") -> All | E69: =IF($B69>0, Achievement_to_date_ongoing!E67, "") -> 9/a 2 | F69: =IF($B69>0, Achievement_to_date_ongoing!F67, "") -> All | G69: 2.405716332 | H69: 12.24883969 | I69: 39.44038586 | J69: 39.44038586 | L69: =IF($B69>0,Achievement_to_date_ongoing!$K67*Achievement_to_date_ongoing!M67,"") -> 2.405716332 | M69: =IF($B69>0,Achievement_to_date_ongoing!$K67*Achievement_to_date_ongoing!N67,"") -> 12.24883969 | N69: =IF($B69>0,Achievement_to_date_ongoing!$K67*Achievement_to_date_ongoing!O67,"") -> 39.44038586 | O69: =IF($B69>0,Achievement_to_date_ongoing!$K67*Achievement_to_date_ongoing!P67,"") -> 39.44038586
B70: =Achievement_to_date_ongoing!B68 -> ROHU-386 | C70: =IF($B70>0, Achievement_to_date_ongoing!C68, "") -> 4 | D70: =IF($B70>0, Achievement_to_date_ongoing!D68, "") -> All | E70: =IF($B70>0, Achievement_to_date_ongoing!E68, "") -> 9/a 2 | F70: =IF($B70>0, Achievement_to_date_ongoing!F68, "") -> All | G70: 0.71510929 | H70: 5.313857348 | I70: 6.227429346 | J70: 6.227429346 | L70: =IF($B70>0,Achievement_to_date_ongoing!$K68*Achievement_to_date_ongoing!M68,"") -> 0.71510929 | M70: =IF($B70>0,Achievement_to_date_ongoing!$K68*Achievement_to_date_ongoing!N68,"") -> 5.313857348 | N70: =IF($B70>0,Achievement_to_date_ongoing!$K68*Achievement_to_date_ongoing!O68,"") -> 6.227429346 | O70: =IF($B70>0,Achievement_to_date_ongoing!$K68*Achievement_to_date_ongoing!P68,"") -> 6.227429346
B71: =Achievement_to_date_ongoing!B69 -> ROHU-400 | C71: =IF($B71>0, Achievement_to_date_ongoing!C69, "") -> 4 | D71: =IF($B71>0, Achievement_to_date_ongoing!D69, "") -> All | E71: =IF($B71>0, Achievement_to_date_ongoing!E69, "") -> 9/a 2 | F71: =IF($B71>0, Achievement_to_date_ongoing!F69, "") -> All | G71: 0.5959244083 | H71: 4.428214457 | I71: 5.189524455 | J71: 5.189524455 | L71: =IF($B71>0,Achievement_to_date_ongoing!$K69*Achievement_to_date_ongoing!M69,"") -> 0.5959244083 | M71: =IF($B71>0,Achievement_to_date_ongoing!$K69*Achievement_to_date_ongoing!N69,"") -> 4.428214457 | N71: =IF($B71>0,Achievement_to_date_ongoing!$K69*Achievement_to_date_ongoing!O69,"") -> 5.189524455 | O71: =IF($B71>0,Achievement_to_date_ongoing!$K69*Achievement_to_date_ongoing!P69,"") -> 5.189524455
B72: =Achievement_to_date_ongoing!B70 -> ROHU-407 | C72: =IF($B72>0, Achievement_to_date_ongoing!C70, "") -> 4 | D72: =IF($B72>0, Achievement_to_date_ongoing!D70, "") -> All | E72: =IF($B72>0, Achievement_to_date_ongoing!E70, "") -> 9/a 2 | F72: =IF($B72>0, Achievement_to_date_ongoing!F70, "") -> All | G72: 0 | H72: 0 | I72: 3.113714673 | J72: 3.113714673 | L72: =IF($B72>0,Achievement_to_date_ongoing!$K70*Achievement_to_date_ongoing!M70,"") -> 0 | M72: =IF($B72>0,Achievement_to_date_ongoing!$K70*Achievement_to_date_ongoing!N70,"") -> 0 | N72: =IF($B72>0,Achievement_to_date_ongoing!$K70*Achievement_to_date_ongoing!O70,"") -> 3.113714673 | O72: =IF($B72>0,Achievement_to_date_ongoing!$K70*Achievement_to_date_ongoing!P70,"") -> 3.113714673
B73: =Achievement_to_date_ongoing!B71 -> ROHU-450 | C73: =IF($B73>0, Achievement_to_date_ongoing!C71, "") -> 4 | D73: =IF($B73>0, Achievement_to_date_ongoing!D71, "") -> All | E73: =IF($B73>0, Achievement_to_date_ongoing!E71, "") -> 9/a 2 | F73: =IF($B73>0, Achievement_to_date_ongoing!F71, "") -> All | G73: 0 | H73: 0 | I73: 13.49276358 | J73: 13.49276358 | L73: =IF($B73>0,Achievement_to_date_ongoing!$K71*Achievement_to_date_ongoing!M71,"") -> 0 | M73: =IF($B73>0,Achievement_to_date_ongoing!$K71*Achievement_to_date_ongoing!N71,"") -> 0 | N73: =IF($B73>0,Achievement_to_date_ongoing!$K71*Achievement_to_date_ongoing!O71,"") -> 13.49276358 | O73: =IF($B73>0,Achievement_to_date_ongoing!$K71*Achievement_to_date_ongoing!P71,"") -> 13.49276358
B74: =Achievement_to_date_ongoing!B72 -> ROHU-392 | C74: =IF($B74>0, Achievement_to_date_ongoing!C72, "") -> 4 | D74: =IF($B74>0, Achievement_to_date_ongoing!D72, "") -> All | E74: =IF($B74>0, Achievement_to_date_ongoing!E72, "") -> 9/a 2 | F74: =IF($B74>0, Achievement_to_date_ongoing!F72, "") -> All | G74: 0 | H74: 7.265334237 | I74: 7.265334237 | J74: 7.265334237 | L74: =IF($B74>0,Achievement_to_date_ongoing!$K72*Achievement_to_date_ongoing!M72,"") -> 0 | M74: =IF($B74>0,Achievement_to_date_ongoing!$K72*Achievement_to_date_ongoing!N72,"") -> 7.265334237 | N74: =IF($B74>0,Achievement_to_date_ongoing!$K72*Achievement_to_date_ongoing!O72,"") -> 7.265334237 | O74: =IF($B74>0,Achievement_to_date_ongoing!$K72*Achievement_to_date_ongoing!P72,"") -> 7.265334237
B75: =Achievement_to_date_ongoing!B73 -> ROHU-401 | C75: =IF($B75>0, Achievement_to_date_ongoing!C73, "") -> 4 | D75: =IF($B75>0, Achievement_to_date_ongoing!D73, "") -> All | E75: =IF($B75>0, Achievement_to_date_ongoing!E73, "") -> 9/a 2 | F75: =IF($B75>0, Achievement_to_date_ongoing!F73, "") -> All | G75: 0 | H75: 0 | I75: 7.265334237 | J75: 7.265334237 | L75: =IF($B75>0,Achievement_to_date_ongoing!$K73*Achievement_to_date_ongoing!M73,"") -> 0 | M75: =IF($B75>0,Achievement_to_date_ongoing!$K73*Achievement_to_date_ongoing!N73,"") -> 0 | N75: =IF($B75>0,Achievement_to_date_ongoing!$K73*Achievement_to_date_ongoing!O73,"") -> 7.265334237 | O75: =IF($B75>0,Achievement_to_date_ongoing!$K73*Achievement_to_date_ongoing!P73,"") -> 7.265334237
B76: =Achievement_to_date_ongoing!B74 -> ROHU-449 | C76: =IF($B76>0, Achievement_to_date_ongoing!C74, "") -> 4 | D76: =IF($B76>0, Achievement_to_date_ongoing!D74, "") -> All | E76: =IF($B76>0, Achievement_to_date_ongoing!E74, "") -> 9/a 2 | F76: =IF($B76>0, Achievement_to_date_ongoing!F74, "") -> All | G76: 0 | H76: 9.341144019 | I76: 9.341144019 | J76: 9.341144019 | L76: =IF($B76>0,Achievement_to_date_ongoing!$K74*Achievement_to_date_ongoing!M74,"") -> 0 | M76: =IF($B76>0,Achievement_to_date_ongoing!$K74*Achievement_to_date_ongoing!N74,"") -> 9.341144019 | N76: =IF($B76>0,Achievement_to_date_ongoing!$K74*Achievement_to_date_ongoing!O74,"") -> 9.341144019 | O76: =IF($B76>0,Achievement_to_date_ongoing!$K74*Achievement_to_date_ongoing!P74,"") -> 9.341144019
B77: =Achievement_to_date_ongoing!B75 -> ROHU-457 | C77: =IF($B77>0, Achievement_to_date_ongoing!C75, "") -> 4 | D77: =IF($B77>0, Achievement_to_date_ongoing!D75, "") -> All | E77: =IF($B77>0, Achievement_to_date_ongoing!E75, "") -> 9/a 2 | F77: =IF($B77>0, Achievement_to_date_ongoing!F75, "") -> All | G77: 0 | H77: 17.64438315 | I77: 17.64438315 | J77: 17.64438315 | L77: =IF($B77>0,Achievement_to_date_ongoing!$K75*Achievement_to_date_ongoing!M75,"") -> 0 | M77: =IF($B77>0,Achievement_to_date_ongoing!$K75*Achievement_to_date_ongoing!N75,"") -> 17.64438315 | N77: =IF($B77>0,Achievement_to_date_ongoing!$K75*Achievement_to_date_ongoing!O75,"") -> 17.64438315 | O77: =IF($B77>0,Achievement_to_date_ongoing!$K75*Achievement_to_date_ongoing!P75,"") -> 17.64438315
B78: =Achievement_to_date_ongoing!B76 -> ROHU-397 | C78: =IF($B78>0, Achievement_to_date_ongoing!C76, "") -> 4 | D78: =IF($B78>0, Achievement_to_date_ongoing!D76, "") -> All | E78: =IF($B78>0, Achievement_to_date_ongoing!E76, "") -> 9/a 2 | F78: =IF($B78>0, Achievement_to_date_ongoing!F76, "") -> All | G78: 0 | H78: 0 | I78: 4.310765816 | J78: 4.310765816 | L78: =IF($B78>0,Achievement_to_date_ongoing!$K76*Achievement_to_date_ongoing!M76,"") -> 0 | M78: =IF($B78>0,Achievement_to_date_ongoing!$K76*Achievement_to_date_ongoing!N76,"") -> 0 | N78: =IF($B78>0,Achievement_to_date_ongoing!$K76*Achievement_to_date_ongoing!O76,"") -> 4.310765816 | O78: =IF($B78>0,Achievement_to_date_ongoing!$K76*Achievement_to_date_ongoing!P76,"") -> 4.310765816
B79: =Achievement_to_date_ongoing!B77 -> ROHU-443 | C79: =IF($B79>0, Achievement_to_date_ongoing!C77, "") -> 4 | D79: =IF($B79>0, Achievement_to_date_ongoing!D77, "") -> All | E79: =IF($B79>0, Achievement_to_date_ongoing!E77, "") -> 9/a 2 | F79: =IF($B79>0, Achievement_to_date_ongoing!F77, "") -> All | G79: 0 | H79: 15.56857337 | I79: 15.56857337 | J79: 15.56857337 | L79: =IF($B79>0,Achievement_to_date_ongoing!$K77*Achievement_to_date_ongoing!M77,"") -> 0 | M79: =IF($B79>0,Achievement_to_date_ongoing!$K77*Achievement_to_date_ongoing!N77,"") -> 15.56857337 | N79: =IF($B79>0,Achievement_to_date_ongoing!$K77*Achievement_to_date_ongoing!O77,"") -> 15.56857337 | O79: =IF($B79>0,Achievement_to_date_ongoing!$K77*Achievement_to_date_ongoing!P77,"") -> 15.56857337
B80: =Achievement_to_date_ongoing!B78 -> ROHU-396 | C80: =IF($B80>0, Achievement_to_date_ongoing!C78, "") -> 4 | D80: =IF($B80>0, Achievement_to_date_ongoing!D78, "") -> All | E80: =IF($B80>0, Achievement_to_date_ongoing!E78, "") -> F.PA4 | F80: =IF($B80>0, Achievement_to_date_ongoing!F78, "") -> All | G80: 0 | H80: 0 | I80: 1887280.73 | J80: 1887280.73 | L80: =IF($B80>0,Achievement_to_date_ongoing!$K78*Achievement_to_date_ongoing!M78,"") -> 0 | M80: =IF($B80>0,Achievement_to_date_ongoing!$K78*Achievement_to_date_ongoing!N78,"") -> 0 | N80: =IF($B80>0,Achievement_to_date_ongoing!$K78*Achievement_to_date_ongoing!O78,"") -> 1887280.73 | O80: =IF($B80>0,Achievement_to_date_ongoing!$K78*Achievement_to_date_ongoing!P78,"") -> 1887280.73
B81: =Achievement_to_date_ongoing!B79 -> ROHU-361 | C81: =IF($B81>0, Achievement_to_date_ongoing!C79, "") -> 4 | D81: =IF($B81>0, Achievement_to_date_ongoing!D79, "") -> All | E81: =IF($B81>0, Achievement_to_date_ongoing!E79, "") -> F.PA4 | F81: =IF($B81>0, Achievement_to_date_ongoing!F79, "") -> All | G81: 0 | H81: 0 | I81: 2067593.667 | J81: 2067593.667 | L81: =IF($B81>0,Achievement_to_date_ongoing!$K79*Achievement_to_date_ongoing!M79,"") -> 0 | M81: =IF($B81>0,Achievement_to_date_ongoing!$K79*Achievement_to_date_ongoing!N79,"") -> 0 | N81: =IF($B81>0,Achievement_to_date_ongoing!$K79*Achievement_to_date_ongoing!O79,"") -> 2067593.667 | O81: =IF($B81>0,Achievement_to_date_ongoing!$K79*Achievement_to_date_ongoing!P79,"") -> 2067593.667
B82: =Achievement_to_date_ongoing!B80 -> ROHU-357 | C82: =IF($B82>0, Achievement_to_date_ongoing!C80, "") -> 4 | D82: =IF($B82>0, Achievement_to_date_ongoing!D80, "") -> All | E82: =IF($B82>0, Achievement_to_date_ongoing!E80, "") -> F.PA4 | F82: =IF($B82>0, Achievement_to_date_ongoing!F80, "") -> All | G82: 0 | H82: 0 | I82: 2067595.769 | J82: 2067595.769 | L82: =IF($B82>0,Achievement_to_date_ongoing!$K80*Achievement_to_date_ongoing!M80,"") -> 0 | M82: =IF($B82>0,Achievement_to_date_ongoing!$K80*Achievement_to_date_ongoing!N80,"") -> 0 | N82: =IF($B82>0,Achievement_to_date_ongoing!$K80*Achievement_to_date_ongoing!O80,"") -> 2067595.769 | O82: =IF($B82>0,Achievement_to_date_ongoing!$K80*Achievement_to_date_ongoing!P80,"") -> 2067595.769
B83: =Achievement_to_date_ongoing!B81 -> ROHU-386 | C83: =IF($B83>0, Achievement_to_date_ongoing!C81, "") -> 4 | D83: =IF($B83>0, Achievement_to_date_ongoing!D81, "") -> All | E83: =IF($B83>0, Achievement_to_date_ongoing!E81, "") -> F.PA4 | F83: =IF($B83>0, Achievement_to_date_ongoing!F81, "") -> All | G83: 0 | H83: 2541787.69 | I83: 2541787.69 | J83: 2541787.69 | L83: =IF($B83>0,Achievement_to_date_ongoing!$K81*Achievement_to_date_ongoing!M81,"") -> 0 | M83: =IF($B83>0,Achievement_to_date_ongoing!$K81*Achievement_to_date_ongoing!N81,"") -> 2541787.69 | N83: =IF($B83>0,Achievement_to_date_ongoing!$K81*Achievement_to_date_ongoing!O81,"") -> 2541787.69 | O83: =IF($B83>0,Achievement_to_date_ongoing!$K81*Achievement_to_date_ongoing!P81,"") -> 2541787.69
B84: =Achievement_to_date_ongoing!B82 -> ROHU-400 | C84: =IF($B84>0, Achievement_to_date_ongoing!C82, "") -> 4 | D84: =IF($B84>0, Achievement_to_date_ongoing!D82, "") -> All | E84: =IF($B84>0, Achievement_to_date_ongoing!E82, "") -> F.PA4 | F84: =IF($B84>0, Achievement_to_date_ongoing!F82, "") -> All | G84: 0 | H84: 0 | I84: 2022866.78 | J84: 2022866.78 | L84: =IF($B84>0,Achievement_to_date_ongoing!$K82*Achievement_to_date_ongoing!M82,"") -> 0 | M84: =IF($B84>0,Achievement_to_date_ongoing!$K82*Achievement_to_date_ongoing!N82,"") -> 0 | N84: =IF($B84>0,Achievement_to_date_ongoing!$K82*Achievement_to_date_ongoing!O82,"") -> 2022866.78 | O84: =IF($B84>0,Achievement_to_date_ongoing!$K82*Achievement_to_date_ongoing!P82,"") -> 2022866.78
B85: =Achievement_to_date_ongoing!B83 -> ROHU-407 | C85: =IF($B85>0, Achievement_to_date_ongoing!C83, "") -> 4 | D85: =IF($B85>0, Achievement_to_date_ongoing!D83, "") -> All | E85: =IF($B85>0, Achievement_to_date_ongoing!E83, "") -> F.PA4 | F85: =IF($B85>0, Achievement_to_date_ongoing!F83, "") -> All | G85: 375683.6054 | H85: 375683.6054 | I85: 375683.6054 | J85: 375683.6054 | L85: =IF($B85>0,Achievement_to_date_ongoing!$K83*Achievement_to_date_ongoing!M83,"") -> 375683.6054 | M85: =IF($B85>0,Achievement_to_date_ongoing!$K83*Achievement_to_date_ongoing!N83,"") -> 375683.6054 | N85: =IF($B85>0,Achievement_to_date_ongoing!$K83*Achievement_to_date_ongoing!O83,"") -> 375683.6054 | O85: =IF($B85>0,Achievement_to_date_ongoing!$K83*Achievement_to_date_ongoing!P83,"") -> 375683.6054
B86: =Achievement_to_date_ongoing!B84 -> ROHU-450 | C86: =IF($B86>0, Achievement_to_date_ongoing!C84, "") -> 4 | D86: =IF($B86>0, Achievement_to_date_ongoing!D84, "") -> All | E86: =IF($B86>0, Achievement_to_date_ongoing!E84, "") -> F.PA4 | F86: =IF($B86>0, Achievement_to_date_ongoing!F84, "") -> All | G86: 1049153.567 | H86: 3371754.773 | I86: 6386233.06 | J86: 6386233.06 | L86: =IF($B86>0,Achievement_to_date_ongoing!$K84*Achievement_to_date_ongoing!M84,"") -> 1049153.567 | M86: =IF($B86>0,Achievement_to_date_ongoing!$K84*Achievement_to_date_ongoing!N84,"") -> 3371754.773 | N86: =IF($B86>0,Achievement_to_date_ongoing!$K84*Achievement_to_date_ongoing!O84,"") -> 6386233.06 | O86: =IF($B86>0,Achievement_to_date_ongoing!$K84*Achievement_to_date_ongoing!P84,"") -> 6386233.06
B87: =Achievement_to_date_ongoing!B85 -> ROHU-392 | C87: =IF($B87>0, Achievement_to_date_ongoing!C85, "") -> 4 | D87: =IF($B87>0, Achievement_to_date_ongoing!D85, "") -> All | E87: =IF($B87>0, Achievement_to_date_ongoing!E85, "") -> F.PA4 | F87: =IF($B87>0, Achievement_to_date_ongoing!F85, "") -> All | G87: 493767.8547 | H87: 862855.2691 | I87: 862855.2691 | J87: 862855.2691 | L87: =IF($B87>0,Achievement_to_date_ongoing!$K85*Achievement_to_date_ongoing!M85,"") -> 493767.8547 | M87: =IF($B87>0,Achievement_to_date_ongoing!$K85*Achievement_to_date_ongoing!N85,"") -> 862855.2691 | N87: =IF($B87>0,Achievement_to_date_ongoing!$K85*Achievement_to_date_ongoing!O85,"") -> 862855.2691 | O87: =IF($B87>0,Achievement_to_date_ongoing!$K85*Achievement_to_date_ongoing!P85,"") -> 862855.2691
B88: =Achievement_to_date_ongoing!B86 -> ROHU-401 | C88: =IF($B88>0, Achievement_to_date_ongoing!C86, "") -> 4 | D88: =IF($B88>0, Achievement_to_date_ongoing!D86, "") -> All | E88: =IF($B88>0, Achievement_to_date_ongoing!E86, "") -> F.PA4 | F88: =IF($B88>0, Achievement_to_date_ongoing!F86, "") -> All | G88: 347510.4516 | H88: 1045219.725 | I88: 2524698.09 | J88: 2524698.09 | L88: =IF($B88>0,Achievement_to_date_ongoing!$K86*Achievement_to_date_ongoing!M86,"") -> 347510.4516 | M88: =IF($B88>0,Achievement_to_date_ongoing!$K86*Achievement_to_date_ongoing!N86,"") -> 1045219.725 | N88: =IF($B88>0,Achievement_to_date_ongoing!$K86*Achievement_to_date_ongoing!O86,"") -> 2524698.09 | O88: =IF($B88>0,Achievement_to_date_ongoing!$K86*Achievement_to_date_ongoing!P86,"") -> 2524698.09
B89: =Achievement_to_date_ongoing!B87 -> ROHU-449 | C89: =IF($B89>0, Achievement_to_date_ongoing!C87, "") -> 4 | D89: =IF($B89>0, Achievement_to_date_ongoing!D87, "") -> All | E89: =IF($B89>0, Achievement_to_date_ongoing!E87, "") -> F.PA4 | F89: =IF($B89>0, Achievement_to_date_ongoing!F87, "") -> All | G89: 2452620.536 | H89: 6697206.7 | I89: 6697206.7 | J89: 6697206.7 | L89: =IF($B89>0,Achievement_to_date_ongoing!$K87*Achievement_to_date_ongoing!M87,"") -> 2452620.536 | M89: =IF($B89>0,Achievement_to_date_ongoing!$K87*Achievement_to_date_ongoing!N87,"") -> 6697206.7 | N89: =IF($B89>0,Achievement_to_date_ongoing!$K87*Achievement_to_date_ongoing!O87,"") -> 6697206.7 | O89: =IF($B89>0,Achievement_to_date_ongoing!$K87*Achievement_to_date_ongoing!P87,"") -> 6697206.7
B90: =Achievement_to_date_ongoing!B88 -> ROHU-457 | C90: =IF($B90>0, Achievement_to_date_ongoing!C88, "") -> 4 | D90: =IF($B90>0, Achievement_to_date_ongoing!D88, "") -> All | E90: =IF($B90>0, Achievement_to_date_ongoing!E88, "") -> F.PA4 | F90: =IF($B90>0, Achievement_to_date_ongoing!F88, "") -> All | G90: 8299218.173 | H90: 16366394.9 | I90: 16366394.9 | J90: 16366394.9 | L90: =IF($B90>0,Achievement_to_date_ongoing!$K88*Achievement_to_date_ongoing!M88,"") -> 8299218.173 | M90: =IF($B90>0,Achievement_to_date_ongoing!$K88*Achievement_to_date_ongoing!N88,"") -> 16366394.9 | N90: =IF($B90>0,Achievement_to_date_ongoing!$K88*Achievement_to_date_ongoing!O88,"") -> 16366394.9 | O90: =IF($B90>0,Achievement_to_date_ongoing!$K88*Achievement_to_date_ongoing!P88,"") -> 16366394.9
B91: =Achievement_to_date_ongoing!B89 -> ROHU-397 | C91: =IF($B91>0, Achievement_to_date_ongoing!C89, "") -> 4 | D91: =IF($B91>0, Achievement_to_date_ongoing!D89, "") -> All | E91: =IF($B91>0, Achievement_to_date_ongoing!E89, "") -> F.PA4 | F91: =IF($B91>0, Achievement_to_date_ongoing!F89, "") -> All | G91: 421635.6586 | H91: 1355046.667 | I91: 2566510.44 | J91: 2566510.44 | L91: =IF($B91>0,Achievement_to_date_ongoing!$K89*Achievement_to_date_ongoing!M89,"") -> 421635.6586 | M91: =IF($B91>0,Achievement_to_date_ongoing!$K89*Achievement_to_date_ongoing!N89,"") -> 1355046.667 | N91: =IF($B91>0,Achievement_to_date_ongoing!$K89*Achievement_to_date_ongoing!O89,"") -> 2566510.44 | O91: =IF($B91>0,Achievement_to_date_ongoing!$K89*Achievement_to_date_ongoing!P89,"") -> 2566510.44
B92: =Achievement_to_date_ongoing!B90 -> ROHU-443 | C92: =IF($B92>0, Achievement_to_date_ongoing!C90, "") -> 4 | D92: =IF($B92>0, Achievement_to_date_ongoing!D90, "") -> All | E92: =IF($B92>0, Achievement_to_date_ongoing!E90, "") -> F.PA4 | F92: =IF($B92>0, Achievement_to_date_ongoing!F90, "") -> All | G92: 4275536.453 | H92: 9520565.774 | I92: 9520565.774 | J92: 9520565.774 | L92: =IF($B92>0,Achievement_to_date_ongoing!$K90*Achievement_to_date_ongoing!M90,"") -> 4275536.453 | M92: =IF($B92>0,Achievement_to_date_ongoing!$K90*Achievement_to_date_ongoing!N90,"") -> 9520565.774 | N92: =IF($B92>0,Achievement_to_date_ongoing!$K90*Achievement_to_date_ongoing!O90,"") -> 9520565.774 | O92: =IF($B92>0,Achievement_to_date_ongoing!$K90*Achievement_to_date_ongoing!P90,"") -> 9520565.774
B93: =Achievement_to_date_ongoing!B91 -> ROHU-102 | C93: =IF($B93>0, Achievement_to_date_ongoing!C91, "") -> 5 | D93: =IF($B93>0, Achievement_to_date_ongoing!D91, "") -> All | E93: =IF($B93>0, Achievement_to_date_ongoing!E91, "") -> 5/b 1 | F93: =IF($B93>0, Achievement_to_date_ongoing!F91, "") -> All | G93: 70979.42903 | H93: 244042.4339 | I93: 363266.7119 | J93: 363266.7119 | L93: =IF($B93>0,Achievement_to_date_ongoing!$K91*Achievement_to_date_ongoing!M91,"") -> 70979.42903 | M93: =IF($B93>0,Achievement_to_date_ongoing!$K91*Achievement_to_date_ongoing!N91,"") -> 244042.4339 | N93: =IF($B93>0,Achievement_to_date_ongoing!$K91*Achievement_to_date_ongoing!O91,"") -> 363266.7119 | O93: =IF($B93>0,Achievement_to_date_ongoing!$K91*Achievement_to_date_ongoing!P91,"") -> 363266.7119
B94: =Achievement_to_date_ongoing!B92 -> ROHU-72 | C94: =IF($B94>0, Achievement_to_date_ongoing!C92, "") -> 5 | D94: =IF($B94>0, Achievement_to_date_ongoing!D92, "") -> All | E94: =IF($B94>0, Achievement_to_date_ongoing!E92, "") -> 5/b 1 | F94: =IF($B94>0, Achievement_to_date_ongoing!F92, "") -> All | G94: 62865.05569 | H94: 359324.5084 | I94: 800127.1079 | J94: 800127.1079 | L94: =IF($B94>0,Achievement_to_date_ongoing!$K92*Achievement_to_date_ongoing!M92,"") -> 62865.05569 | M94: =IF($B94>0,Achievement_to_date_ongoing!$K92*Achievement_to_date_ongoing!N92,"") -> 359324.5084 | N94: =IF($B94>0,Achievement_to_date_ongoing!$K92*Achievement_to_date_ongoing!O92,"") -> 800127.1079 | O94: =IF($B94>0,Achievement_to_date_ongoing!$K92*Achievement_to_date_ongoing!P92,"") -> 800127.1079
B95: =Achievement_to_date_ongoing!B93 -> ROHU-28 | C95: =IF($B95>0, Achievement_to_date_ongoing!C93, "") -> 5 | D95: =IF($B95>0, Achievement_to_date_ongoing!D93, "") -> All | E95: =IF($B95>0, Achievement_to_date_ongoing!E93, "") -> 5/b 1 | F95: =IF($B95>0, Achievement_to_date_ongoing!F93, "") -> All | G95: 37097.3982 | H95: 136265.7461 | I95: 153474.9962 | J95: 153474.9962 | L95: =IF($B95>0,Achievement_to_date_ongoing!$K93*Achievement_to_date_ongoing!M93,"") -> 37097.3982 | M95: =IF($B95>0,Achievement_to_date_ongoing!$K93*Achievement_to_date_ongoing!N93,"") -> 136265.7461 | N95: =IF($B95>0,Achievement_to_date_ongoing!$K93*Achievement_to_date_ongoing!O93,"") -> 153474.9962 | O95: =IF($B95>0,Achievement_to_date_ongoing!$K93*Achievement_to_date_ongoing!P93,"") -> 153474.9962
B96: =Achievement_to_date_ongoing!B94 -> ROHU-11 | C96: =IF($B96>0, Achievement_to_date_ongoing!C94, "") -> 5 | D96: =IF($B96>0, Achievement_to_date_ongoing!D94, "") -> All | E96: =IF($B96>0, Achievement_to_date_ongoing!E94, "") -> 5/b 1 | F96: =IF($B96>0, Achievement_to_date_ongoing!F94, "") -> All | G96: 165802.5693 | H96: 369201.452 | I96: 369201.452 | J96: 369201.452 | L96: =IF($B96>0,Achievement_to_date_ongoing!$K94*Achievement_to_date_ongoing!M94,"") -> 165802.5693 | M96: =IF($B96>0,Achievement_to_date_ongoing!$K94*Achievement_to_date_ongoing!N94,"") -> 369201.452 | N96: =IF($B96>0,Achievement_to_date_ongoing!$K94*Achievement_to_date_ongoing!O94,"") -> 369201.452 | O96: =IF($B96>0,Achievement_to_date_ongoing!$K94*Achievement_to_date_ongoing!P94,"") -> 369201.452
B97: =Achievement_to_date_ongoing!B95 -> ROHU-48 | C97: =IF($B97>0, Achievement_to_date_ongoing!C95, "") -> 5 | D97: =IF($B97>0, Achievement_to_date_ongoing!D95, "") -> All | E97: =IF($B97>0, Achievement_to_date_ongoing!E95, "") -> 5/b 1 | F97: =IF($B97>0, Achievement_to_date_ongoing!F95, "") -> All | G97: 8941.699191 | H97: 33014.34294 | I97: 40259.29282 | J97: 40259.29282 | L97: =IF($B97>0,Achievement_to_date_ongoing!$K95*Achievement_to_date_ongoing!M95,"") -> 8941.699191 | M97: =IF($B97>0,Achievement_to_date_ongoing!$K95*Achievement_to_date_ongoing!N95,"") -> 33014.34294 | N97: =IF($B97>0,Achievement_to_date_ongoing!$K95*Achievement_to_date_ongoing!O95,"") -> 40259.29282 | O97: =IF($B97>0,Achievement_to_date_ongoing!$K95*Achievement_to_date_ongoing!P95,"") -> 40259.29282
B98: =Achievement_to_date_ongoing!B96 -> ROHU-102 | C98: =IF($B98>0, Achievement_to_date_ongoing!C96, "") -> 5 | D98: =IF($B98>0, Achievement_to_date_ongoing!D96, "") -> All | E98: =IF($B98>0, Achievement_to_date_ongoing!E96, "") -> F.PA5 | F98: =IF($B98>0, Achievement_to_date_ongoing!F96, "") -> All | G98: 1416800.349 | H98: 1416800.349 | I98: 1416800.349 | J98: 1416800.349 | L98: =IF($B98>0,Achievement_to_date_ongoing!$K96*Achievement_to_date_ongoing!M96,"") -> 1416800.349 | M98: =IF($B98>0,Achievement_to_date_ongoing!$K96*Achievement_to_date_ongoing!N96,"") -> 1416800.349 | N98: =IF($B98>0,Achievement_to_date_ongoing!$K96*Achievement_to_date_ongoing!O96,"") -> 1416800.349 | O98: =IF($B98>0,Achievement_to_date_ongoing!$K96*Achievement_to_date_ongoing!P96,"") -> 1416800.349
B99: =Achievement_to_date_ongoing!B97 -> ROHU-72 | C99: =IF($B99>0, Achievement_to_date_ongoing!C97, "") -> 5 | D99: =IF($B99>0, Achievement_to_date_ongoing!D97, "") -> All | E99: =IF($B99>0, Achievement_to_date_ongoing!E97, "") -> F.PA5 | F99: =IF($B99>0, Achievement_to_date_ongoing!F97, "") -> All | G99: 0 | H99: 2461439.499 | I99: 2461439.499 | J99: 2461439.499 | L99: =IF($B99>0,Achievement_to_date_ongoing!$K97*Achievement_to_date_ongoing!M97,"") -> 0 | M99: =IF($B99>0,Achievement_to_date_ongoing!$K97*Achievement_to_date_ongoing!N97,"") -> 2461439.499 | N99: =IF($B99>0,Achievement_to_date_ongoing!$K97*Achievement_to_date_ongoing!O97,"") -> 2461439.499 | O99: =IF($B99>0,Achievement_to_date_ongoing!$K97*Achievement_to_date_ongoing!P97,"") -> 2461439.499
B100: =Achievement_to_date_ongoing!B98 -> ROHU-28 | C100: =IF($B100>0, Achievement_to_date_ongoing!C98, "") -> 5 | D100: =IF($B100>0, Achievement_to_date_ongoing!D98, "") -> All | E100: =IF($B100>0, Achievement_to_date_ongoing!E98, "") -> F.PA5 | F100: =IF($B100>0, Achievement_to_date_ongoing!F98, "") -> All | G100: 0 | H100: 1799708.827 | I100: 1799708.827 | J100: 1799708.827 | L100: =IF($B100>0,Achievement_to_date_ongoing!$K98*Achievement_to_date_ongoing!M98,"") -> 0 | M100: =IF($B100>0,Achievement_to_date_ongoing!$K98*Achievement_to_date_ongoing!N98,"") -> 1799708.827 | N100: =IF($B100>0,Achievement_to_date_ongoing!$K98*Achievement_to_date_ongoing!O98,"") -> 1799708.827 | O100: =IF($B100>0,Achievement_to_date_ongoing!$K98*Achievement_to_date_ongoing!P98,"") -> 1799708.827
B101: =Achievement_to_date_ongoing!B99 -> ROHU-11 | C101: =IF($B101>0, Achievement_to_date_ongoing!C99, "") -> 5 | D101: =IF($B101>0, Achievement_to_date_ongoing!D99, "") -> All | E101: =IF($B101>0, Achievement_to_date_ongoing!E99, "") -> F.PA5 | F101: =IF($B101>0, Achievement_to_date_ongoing!F99, "") -> All | G101: 0 | H101: 2463986.924 | I101: 2463986.924 | J101: 2463986.924 | L101: =IF($B101>0,Achievement_to_date_ongoing!$K99*Achievement_to_date_ongoing!M99,"") -> 0 | M101: =IF($B101>0,Achievement_to_date_ongoing!$K99*Achievement_to_date_ongoing!N99,"") -> 2463986.924 | N101: =IF($B101>0,Achievement_to_date_ongoing!$K99*Achievement_to_date_ongoing!O99,"") -> 2463986.924 | O101: =IF($B101>0,Achievement_to_date_ongoing!$K99*Achievement_to_date_ongoing!P99,"") -> 2463986.924
B102: =Achievement_to_date_ongoing!B100 -> ROHU-48 | C102: =IF($B102>0, Achievement_to_date_ongoing!C100, "") -> 5 | D102: =IF($B102>0, Achievement_to_date_ongoing!D100, "") -> All | E102: =IF($B102>0, Achievement_to_date_ongoing!E100, "") -> F.PA5 | F102: =IF($B102>0, Achievement_to_date_ongoing!F100, "") -> All | G102: 445352.0674 | H102: 445352.0674 | I102: 445352.0674 | J102: 445352.0674 | L102: =IF($B102>0,Achievement_to_date_ongoing!$K100*Achievement_to_date_ongoing!M100,"") -> 445352.0674 | M102: =IF($B102>0,Achievement_to_date_ongoing!$K100*Achievement_to_date_ongoing!N100,"") -> 445352.0674 | N102: =IF($B102>0,Achievement_to_date_ongoing!$K100*Achievement_to_date_ongoing!O100,"") -> 445352.0674 | O102: =IF($B102>0,Achievement_to_date_ongoing!$K100*Achievement_to_date_ongoing!P100,"") -> 445352.0674
B103: =Achievement_to_date_ongoing!B101 -> ROHU-319 | C103: =IF($B103>0, Achievement_to_date_ongoing!C101, "") -> 6 | D103: =IF($B103>0, Achievement_to_date_ongoing!D101, "") -> All | E103: =IF($B103>0, Achievement_to_date_ongoing!E101, "") -> 11/b1 | F103: =IF($B103>0, Achievement_to_date_ongoing!F101, "") -> All | G103: 0 | H103: 4.151619564 | I103: 4.151619564 | J103: 4.151619564 | L103: =IF($B103>0,Achievement_to_date_ongoing!$K101*Achievement_to_date_ongoing!M101,"") -> 0 | M103: =IF($B103>0,Achievement_to_date_ongoing!$K101*Achievement_to_date_ongoing!N101,"") -> 4.151619564 | N103: =IF($B103>0,Achievement_to_date_ongoing!$K101*Achievement_to_date_ongoing!O101,"") -> 4.151619564 | O103: =IF($B103>0,Achievement_to_date_ongoing!$K101*Achievement_to_date_ongoing!P101,"") -> 4.151619564
B104: =Achievement_to_date_ongoing!B102 -> ROHU-281 | C104: =IF($B104>0, Achievement_to_date_ongoing!C102, "") -> 6 | D104: =IF($B104>0, Achievement_to_date_ongoing!D102, "") -> All | E104: =IF($B104>0, Achievement_to_date_ongoing!E102, "") -> 11/b1 | F104: =IF($B104>0, Achievement_to_date_ongoing!F102, "") -> All | G104: 0 | H104: 0 | I104: 2.075809782 | J104: 2.075809782 | L104: =IF($B104>0,Achievement_to_date_ongoing!$K102*Achievement_to_date_ongoing!M102,"") -> 0 | M104: =IF($B104>0,Achievement_to_date_ongoing!$K102*Achievement_to_date_ongoing!N102,"") -> 0 | N104: =IF($B104>0,Achievement_to_date_ongoing!$K102*Achievement_to_date_ongoing!O102,"") -> 2.075809782 | O104: =IF($B104>0,Achievement_to_date_ongoing!$K102*Achievement_to_date_ongoing!P102,"") -> 2.075809782
B105: =Achievement_to_date_ongoing!B103 -> ROHU-204 | C105: =IF($B105>0, Achievement_to_date_ongoing!C103, "") -> 6 | D105: =IF($B105>0, Achievement_to_date_ongoing!D103, "") -> All | E105: =IF($B105>0, Achievement_to_date_ongoing!E103, "") -> 11/b1 | F105: =IF($B105>0, Achievement_to_date_ongoing!F103, "") -> All | G105: 0 | H105: 3.113714673 | I105: 3.113714673 | J105: 3.113714673 | L105: =IF($B105>0,Achievement_to_date_ongoing!$K103*Achievement_to_date_ongoing!M103,"") -> 0 | M105: =IF($B105>0,Achievement_to_date_ongoing!$K103*Achievement_to_date_ongoing!N103,"") -> 3.113714673 | N105: =IF($B105>0,Achievement_to_date_ongoing!$K103*Achievement_to_date_ongoing!O103,"") -> 3.113714673 | O105: =IF($B105>0,Achievement_to_date_ongoing!$K103*Achievement_to_date_ongoing!P103,"") -> 3.113714673
B106: =Achievement_to_date_ongoing!B104 -> ROHU-122 | C106: =IF($B106>0, Achievement_to_date_ongoing!C104, "") -> 6 | D106: =IF($B106>0, Achievement_to_date_ongoing!D104, "") -> All | E106: =IF($B106>0, Achievement_to_date_ongoing!E104, "") -> F.PA6 | F106: =IF($B106>0, Achievement_to_date_ongoing!F104, "") -> All | G106: 0 | H106: 74592.92663 | I106: 74592.92663 | J106: 74592.92663 | L106: =IF($B106>0,Achievement_to_date_ongoing!$K104*Achievement_to_date_ongoing!M104,"") -> 0 | M106: =IF($B106>0,Achievement_to_date_ongoing!$K104*Achievement_to_date_ongoing!N104,"") -> 74592.92663 | N106: =IF($B106>0,Achievement_to_date_ongoing!$K104*Achievement_to_date_ongoing!O104,"") -> 74592.92663 | O106: =IF($B106>0,Achievement_to_date_ongoing!$K104*Achievement_to_date_ongoing!P104,"") -> 74592.92663
B107: =Achievement_to_date_ongoing!B105 -> ROHU-285 | C107: =IF($B107>0, Achievement_to_date_ongoing!C105, "") -> 6 | D107: =IF($B107>0, Achievement_to_date_ongoing!D105, "") -> All | E107: =IF($B107>0, Achievement_to_date_ongoing!E105, "") -> F.PA6 | F107: =IF($B107>0, Achievement_to_date_ongoing!F105, "") -> All | G107: 63206.7348 | H107: 63206.7348 | I107: 63206.7348 | J107: 63206.7348 | L107: =IF($B107>0,Achievement_to_date_ongoing!$K105*Achievement_to_date_ongoing!M105,"") -> 63206.7348 | M107: =IF($B107>0,Achievement_to_date_ongoing!$K105*Achievement_to_date_ongoing!N105,"") -> 63206.7348 | N107: =IF($B107>0,Achievement_to_date_ongoing!$K105*Achievement_to_date_ongoing!O105,"") -> 63206.7348 | O107: =IF($B107>0,Achievement_to_date_ongoing!$K105*Achievement_to_date_ongoing!P105,"") -> 63206.7348
B108: =Achievement_to_date_ongoing!B106 -> ROHU-281 | C108: =IF($B108>0, Achievement_to_date_ongoing!C106, "") -> 6 | D108: =IF($B108>0, Achievement_to_date_ongoing!D106, "") -> All | E108: =IF($B108>0, Achievement_to_date_ongoing!E106, "") -> F.PA6 | F108: =IF($B108>0, Achievement_to_date_ongoing!F106, "") -> All | G108: 71951.41804 | H108: 196472.9202 | I108: 196472.9202 | J108: 196472.9202 | L108: =IF($B108>0,Achievement_to_date_ongoing!$K106*Achievement_to_date_ongoing!M106,"") -> 71951.41804 | M108: =IF($B108>0,Achievement_to_date_ongoing!$K106*Achievement_to_date_ongoing!N106,"") -> 196472.9202 | N108: =IF($B108>0,Achievement_to_date_ongoing!$K106*Achievement_to_date_ongoing!O106,"") -> 196472.9202 | O108: =IF($B108>0,Achievement_to_date_ongoing!$K106*Achievement_to_date_ongoing!P106,"") -> 196472.9202
B109: =Achievement_to_date_ongoing!B107 -> ROHU-202 | C109: =IF($B109>0, Achievement_to_date_ongoing!C107, "") -> 6 | D109: =IF($B109>0, Achievement_to_date_ongoing!D107, "") -> All | E109: =IF($B109>0, Achievement_to_date_ongoing!E107, "") -> F.PA6 | F109: =IF($B109>0, Achievement_to_date_ongoing!F107, "") -> All | G109: 25375.08587 | H109: 56504.06136 | I109: 56504.06136 | J109: 56504.06136 | L109: =IF($B109>0,Achievement_to_date_ongoing!$K107*Achievement_to_date_ongoing!M107,"") -> 25375.08587 | M109: =IF($B109>0,Achievement_to_date_ongoing!$K107*Achievement_to_date_ongoing!N107,"") -> 56504.06136 | N109: =IF($B109>0,Achievement_to_date_ongoing!$K107*Achievement_to_date_ongoing!O107,"") -> 56504.06136 | O109: =IF($B109>0,Achievement_to_date_ongoing!$K107*Achievement_to_date_ongoing!P107,"") -> 56504.06136
B110: =Achievement_to_date_ongoing!B108 -> ROHU-204 | C110: =IF($B110>0, Achievement_to_date_ongoing!C108, "") -> 6 | D110: =IF($B110>0, Achievement_to_date_ongoing!D108, "") -> All | E110: =IF($B110>0, Achievement_to_date_ongoing!E108, "") -> F.PA6 | F110: =IF($B110>0, Achievement_to_date_ongoing!F108, "") -> All | G110: 147827.668 | H110: 203151.2248 | I110: 203151.2248 | J110: 203151.2248 | L110: =IF($B110>0,Achievement_to_date_ongoing!$K108*Achievement_to_date_ongoing!M108,"") -> 147827.668 | M110: =IF($B110>0,Achievement_to_date_ongoing!$K108*Achievement_to_date_ongoing!N108,"") -> 203151.2248 | N110: =IF($B110>0,Achievement_to_date_ongoing!$K108*Achievement_to_date_ongoing!O108,"") -> 203151.2248 | O110: =IF($B110>0,Achievement_to_date_ongoing!$K108*Achievement_to_date_ongoing!P108,"") -> 203151.2248

Sheet Project_characteristics
A1: PA1
E2: New Budget | F2: Remaining budget | G2: Add/Substract | H2: Comments
B3: Estimated budget | C3: =E3 -> 10097154.8 | E3: =F3+G3 -> 10097154.8 | F3: 10097154.8 | G3: 0
B4: Remaining projects | C4: =ROUND(C3/D19,0) -> 4 | P4: Project count CDF | W4: Financial disbursement curve | AE4: Non-cumulative new projects (Jan) | AJ4: Disbursement matrix | AQ4: Completion matrix | AW4: Time elapsed
B5: CDF | C5: 2014 | D5: 2015 | E5: 2016 | F5: 2017 | G5: 2018 | H5: 2019 | I5: 2020 | J5: 2021 | K5: Current value | L5: 2022 | M5: 2023
B6: Data | C6: 0 | D6: 0 | E6: 0 | F6: 0 | G6: 0 | H6: 15 | I6: 18 | J6: 19 | K6: 19 | AJ6: 2020* | AK6: 2021 | AL6: 2022 | AM6: 2023 | AQ6: 2020* | AR6: 2021 | AS6: 2022 | AT6: 2023 | AW6: 2020* | AX6: 2021 | AY6: 2022 | AZ6: 2023
B7: Statistical forecast | L7: =K6+($C4*0.25) -> 20 | M7: =L7+($C4*0.75) -> 23 | AE7: 2020* | AF7: 0 | AI7: 2020* | AJ7: =AW7*C13/100 -> 0.04331374188 | AK7: 0 | AL7: 0 | AM7: 0 | AP7: 2020* | AQ7: =IF($C$19/365 > AW7, 0, 1) -> 0 | AR7: 0 | AS7: 0 | AT7: 0 | AV7: 2020* | AW7: =(12 - MONTH(Achievement_finalised!$D$1))/12 -> 0.8333333333 | AX7: 0 | AY7: 0 | AZ7: 0
B8: Forecast | L8: =ROUND(L7,0) -> 20 | M8: =ROUND(M7,0) -> 23 | AE8: 2021 | AF8: =J6-I6 -> 1 | AI8: 2021 | AJ8: =D13/100 -> 0.2221027386 | AK8: =C13/100 -> 0.05197649026 | AL8: 0 | AM8: 0 | AP8: 2021 | AQ8: 0 | AR8: 0 | AS8: 0 | AT8: 0 | AV8: 2021 | AW8: =1+AW7 -> 1.833333333 | AX8: =AW7 -> 0.8333333333 | AY8: 0 | AZ8: 0
AE9: 2022 | AF9: =L8-J6 -> 1 | AI9: 2022 | AJ9: =E13/100 -> 0.8200427933 | AK9: =AJ8 -> 0.2221027386 | AL9: =AK8 -> 0.05197649026 | AM9: 0 | AP9: 2022 | AQ9: 0 | AR9: 0 | AS9: 0 | AT9: 0 | AV9: 2022 | AW9: =+AW8+1 -> 2.833333333 | AX9: =AW8 -> 1.833333333 | AY9: =AX8 -> 0.8333333333 | AZ9: 0
AE10: 2023 | AF10: =M8-L8 -> 3 | AI10: 2023 | AJ10: =F13/100 -> 1 | AK10: =AJ9 -> 0.8200427933 | AL10: =AK9 -> 0.2221027386 | AM10: =AL9 -> 0.05197649026 | AP10: 2023 | AQ10: 1 | AR10: 0 | AS10: 0 | AT10: 0 | AV10: 2023 | AW10: =+AW9+1 -> 3.833333333 | AX10: =AW9 -> 2.833333333 | AY10: =AX9 -> 1.833333333 | AZ10: =AY9 -> 0.8333333333
B11: Disbursement curve | C11: t+0 | D11: t+1 | E11: t+2 | F11: t+3 | G11: t+4 | H11: t+5 | I11: t+6
B12: Data | C12: 5.197649026 | D12: 22.21027386 | E12: 82.00427933 | F12: 100 | G12: 100 | H12: 100 | I12: 100
B13: Forecast | C13: =C12 -> 5.197649026 | D13: =D12 -> 22.21027386 | E13: 82.00427933 | F13: 100 | G13: 100 | H13: 100 | I13: 100
B16: Indicators | C16: Project length | D16: Project budget | E16: 6/b 1 | F16: CO09 | G16: F.PA1
B17: Region
B18: Average | C18: 1158 | D18: 2828995.326 | E18: 0 | F18: 9658.375 | G18: 690425.4263
B19: Forecast | C19: =C18 -> 1158 | D19: =D18 -> 2828995.326 | E19: 0 | F19: 9658.375 | G19: 690425.4263
A22: PA2
E23: New Budget | F23: Remaining budget | G23: Add/Substract | H23: Comments
B24: Estimated budget | C24: =E24 -> 4401282.479 | E24: =F24+G24 -> 4401282.479 | F24: 4401282.479 | G24: 0
B25: Remaining projects | C25: =ROUND(C24/D40,0) -> 1 | P25: Project count CDF | W25: Financial disbursement curve | AE25: Non-cumulative new projects (Jan) | AJ25: Disbursement matrix | AQ25: Completion matrix | AW25: Time elapsed
B26: CDF | C26: 2014 | D26: =+C26+1 -> 2015 | E26: =+D26+1 -> 2016 | F26: =+E26+1 -> 2017 | G26: =+F26+1 -> 2018 | H26: =+G26+1 -> 2019 | I26: =+H26+1 -> 2020 | J26: 2021 | K26: Current value | L26: 2022 | M26: 2023
B27: Data | C27: 0 | D27: 0 | E27: 0 | F27: 0 | G27: 0 | H27: 3 | I27: 6 | J27: 6 | K27: 6 | AJ27: 2020* | AK27: 2021 | AL27: 2022 | AM27: 2023 | AQ27: 2020* | AR27: 2021 | AS27: 2022 | AT27: 2023 | AW27: 2020* | AX27: 2021 | AY27: 2022 | AZ27: 2023
B28: Statistical forecast | L28: =K27+($C25*0.25) -> 6.25 | M28: =L28+($C25*0.75) -> 7 | AE28: 2020* | AF28: 0 | AI28: 2020* | AJ28: =AW28*C34/100 -> 0.04099635836 | AK28: 0 | AL28: 0 | AM28: 0 | AP28: 2020* | AQ28: =IF($C$40/365 > AW28, 0, 1) -> 0 | AR28: 0 | AS28: 0 | AT28: 0 | AV28: 2020* | AW28: =(12 - MONTH(Achievement_finalised!$D$1))/12 -> 0.8333333333 | AX28: 0 | AY28: 0 | AZ28: 0
B29: Forecast | L29: =ROUND(L28,0) -> 6 | M29: =ROUND(M28,0) -> 7 | AE29: 2021 | AF29: =J27-I27 -> 0 | AI29: 2021 | AJ29: =D34/100 -> 0.2039527143 | AK29: =C34/100 -> 0.04919563003 | AL29: 0 | AM29: 0 | AP29: 2021 | AQ29: 0 | AR29: 0 | AS29: 0 | AT29: 0 | AV29: 2021 | AW29: =1+AW28 -> 1.833333333 | AX29: =AW28 -> 0.8333333333 | AY29: 0 | AZ29: 0
AE30: 2022 | AF30: =L29-J27 -> 0 | AI30: 2022 | AJ30: =E34/100 -> 0.7276730331 | AK30: =AJ29 -> 0.2039527143 | AL30: =AK29 -> 0.04919563003 | AM30: 0 | AP30: 2022 | AQ30: 0 | AR30: 0 | AS30: 0 | AT30: 0 | AV30: 2022 | AW30: =+AW29+1 -> 2.833333333 | AX30: =AW29 -> 1.833333333 | AY30: =AX29 -> 0.8333333333 | AZ30: 0
AE31: 2023 | AF31: =M29-L29 -> 1 | AI31: 2023 | AJ31: =F34/100 -> 1 | AK31: =AJ30 -> 0.7276730331 | AL31: =AK30 -> 0.2039527143 | AM31: =AL30 -> 0.04919563003 | AP31: 2023 | AQ31: 1 | AR31: 0 | AS31: 0 | AT31: 0 | AV31: 2023 | AW31: =+AW30+1 -> 3.833333333 | AX31: =AW30 -> 2.833333333 | AY31: =AX30 -> 1.833333333 | AZ31: =AY30 -> 0.8333333333
B32: Disbursement curve | C32: t+0 | D32: t+1 | E32: t+2 | F32: t+3 | G32: t+4 | H32: t+5 | I32: t+6
B33: Data | C33: 4.919563003 | D33: 20.39527143 | E33: 72.76730331 | F33: 100 | G33: 100 | H33: 100 | I33: 100
B34: Forecast | C34: =C33 -> 4.919563003 | D34: =D33 -> 20.39527143 | E34: =E33 -> 72.76730331 | F34: =F33 -> 100 | G34: =G33 -> 100 | H34: =H33 -> 100 | I34: =I33 -> 100
B37: Indicators | C37: Project length | D37: Project budget | E37: CO13a | F37: 7/c 1 | G37: F.PA2
B38: Region
B39: Average | C39: 1194 | D39: 3385930.817 | E39: 0 | F39: 0 | G39: 48137.13
B40: Forecast | C40: =C39 -> 1194 | D40: 3385930.817 | E40: 0 | F40: 0 | G40: 48137.13
A43: PA3
E44: New Budget | F44: Remaining budget | G44: Add/Substract | H44: Comments
B45: Estimated budget | C45: =E45 -> 5066590.134 | E45: =F45+G45 -> 5066590.134 | F45: 5066590.134 | G45: 0
B46: Remaining projects | C46: =ROUND(C45/D61,0) -> 2 | P46: Project count CDF | W46: Financial disbursement curve | AE46: Non-cumulative new projects (Jan) | AJ46: Disbursement matrix | AQ46: Completion matrix | AW46: Time elapsed
B47: CDF | C47: 2014 | D47: =+C47+1 -> 2015 | E47: =+D47+1 -> 2016 | F47: =+E47+1 -> 2017 | G47: =+F47+1 -> 2018 | H47: =+G47+1 -> 2019 | I47: =+H47+1 -> 2020 | J47: 2021 | K47: Current value | L47: 2022 | M47: 2023
B48: Data | C48: 0 | D48: 0 | E48: 0 | F48: 0 | G48: 0 | H48: 1 | I48: 11 | J48: 19 | K48: 20 | AJ48: 2020* | AK48: 2021 | AL48: 2022 | AM48: 2023 | AQ48: 2020* | AR48: 2021 | AS48: 2022 | AT48: 2023 | AW48: 2020* | AX48: 2021 | AY48: 2022 | AZ48: 2023
B49: Statistical forecast | L49: =K48+($C46*0.25) -> 20.5 | M49: =L49+($C46*0.75) -> 22 | AE49: 2020* | AF49: 0 | AI49: 2020* | AJ49: =AW49*C55/100 -> 0.06231386987 | AK49: 0 | AL49: 0 | AM49: 0 | AP49: 2020* | AQ49: =IF($C$61/365 > AW49, 0, 1) -> 0 | AR49: 0 | AS49: 0 | AT49: 0 | AV49: 2020* | AW49: =(12 - MONTH(Achievement_finalised!$D$1))/12 -> 0.8333333333 | AX49: 0 | AY49: 0 | AZ49: 0
B50: Forecast | L50: =ROUND(L49,0) -> 21 | M50: =ROUND(M49,0) -> 22 | AE50: 2021 | AF50: =J48-I48 -> 8 | AI50: 2021 | AJ50: =D55/100 -> 0.413997907 | AK50: =C55/100 -> 0.07477664385 | AL50: 0 | AM50: 0 | AP50: 2021 | AQ50: 0 | AR50: 0 | AS50: 0 | AT50: 0 | AV50: 2021 | AW50: =1+AW49 -> 1.833333333 | AX50: =AW49 -> 0.8333333333 | AY50: 0 | AZ50: 0
AE51: 2022 | AF51: =L50-J48 -> 2 | AI51: 2022 | AJ51: =E55/100 -> 1 | AK51: =AJ50 -> 0.413997907 | AL51: =AK50 -> 0.07477664385 | AM51: 0 | AP51: 2022 | AQ51: 1 | AR51: 0 | AS51: 0 | AT51: 0 | AV51: 2022 | AW51: =+AW50+1 -> 2.833333333 | AX51: =AW50 -> 1.833333333 | AY51: =AX50 -> 0.8333333333 | AZ51: 0
AE52: 2023 | AF52: =M50-L50 -> 1 | AI52: 2023 | AJ52: =F55/100 -> 1 | AK52: =AJ51 -> 1 | AL52: =AK51 -> 0.413997907 | AM52: =AL51 -> 0.07477664385 | AP52: 2023 | AQ52: 1 | AR52: 1 | AS52: 0 | AT52: 0 | AV52: 2023 | AW52: =+AW51+1 -> 3.833333333 | AX52: =AW51 -> 2.833333333 | AY52: =AX51 -> 1.833333333 | AZ52: =AY51 -> 0.8333333333
B53: Disbursement curve | C53: t+0 | D53: t+1 | E53: t+2 | F53: t+3 | G53: t+4 | H53: t+5 | I53: t+6
B54: Data | C54: 7.477664385 | D54: 41.3997907 | E54: 100 | F54: 100 | G54: 100 | H54: 100 | I54: 100
B55: Forecast | C55: =C54 -> 7.477664385 | D55: =D54 -> 41.3997907 | E55: =E54 -> 100 | F55: =F54 -> 100 | G55: =G54 -> 100 | H55: =H54 -> 100 | I55: =I54 -> 100
B58: Indicators | C58: Project length | D58: Project budget | E58: CO44 | F58: F.PA3
B59: Region
B60: Average | C60: 936 | D60: 2029520.002 | E60: 0 | F60: 191580.51
B61: Forecast | C61: =C60 -> 936 | D61: 2029520.002 | E61: 0 | F61: 191580.51
A64: PA4
E65: New Budget | F65: Remaining budget | G65: Add/Substract | H65: Comments
B66: Estimated budget | C66: =E66 -> 28385364.85 | E66: =F66+G66 -> 28385364.85 | F66: 28385364.85 | G66: 0
B67: Remaining projects | C67: 3 | P67: Project count CDF | W67: Financial disbursement curve | AE67: Non-cumulative new projects (Jan) | AJ67: Disbursement matrix | AQ67: Completion matrix | AW67: Time elapsed
B68: CDF | C68: 2014 | D68: 2015 | E68: 2016 | F68: 2017 | G68: 2018 | H68: 2019 | I68: 2020 | J68: 2021 | K68: Current value | L68: 2022 | M68: 2023
B69: Data | C69: 0 | D69: 0 | E69: 0 | F69: 0 | G69: 0 | H69: 4 | I69: 16 | J69: 18 | K69: 18 | AJ69: 2020* | AK69: 2021 | AL69: 2022 | AM69: 2023 | AQ69: 2020* | AR69: 2021 | AS69: 2022 | AT69: 2023 | AW69: 2020* | AX69: 2021 | AY69: 2022 | AZ69: 2023
B70: Statistical forecast | L70: =K69+($C67*0.25) -> 18.75 | M70: =L70+($C67*0.75) -> 21 | AE70: 2020* | AF70: 0 | AI70: 2020* | AJ70: =AW70*C76/100 -> 0.06231386987 | AK70: 0 | AL70: 0 | AM70: 0 | AP70: 2020* | AQ70: =IF($C$82/365 > AW70, 0, 1) -> 0 | AR70: 0 | AS70: 0 | AT70: 0 | AV70: 2020* | AW70: =(12 - MONTH(Achievement_finalised!$D$1))/12 -> 0.8333333333 | AX70: 0 | AY70: 0 | AZ70: 0
B71: Forecast | L71: 21 | M71: 21 | AE71: 2021 | AF71: 0 | AI71: 2021 | AJ71: =D76/100 -> 0.413997907 | AK71: =C76/100 -> 0.07477664385 | AL71: 0 | AM71: 0 | AP71: 2021 | AQ71: 1 | AR71: 0 | AS71: 0 | AT71: 0 | AV71: 2021 | AW71: =1+AW70 -> 1.833333333 | AX71: =AW70 -> 0.8333333333 | AY71: 0 | AZ71: 0
AE72: 2022 | AF72: =L71-J69 -> 3 | AI72: 2022 | AJ72: =E76/100 -> 1 | AK72: =AJ71 -> 0.413997907 | AL72: =AK71 -> 0.07477664385 | AM72: 0 | AP72: 2022 | AQ72: 1 | AR72: 1 | AS72: 0 | AT72: 0 | AV72: 2022 | AW72: =+AW71+1 -> 2.833333333 | AX72: =AW71 -> 1.833333333 | AY72: =AX71 -> 0.8333333333 | AZ72: 0
AE73: 2023 | AF73: =M71-L71 -> 0 | AI73: 2023 | AJ73: =F76/100 -> 1 | AK73: =AJ72 -> 1 | AL73: =AK72 -> 0.413997907 | AM73: =AL72 -> 0.07477664385 | AP73: 2023 | AQ73: 1 | AR73: 1 | AS73: 1 | AT73: 0 | AV73: 2023 | AW73: =+AW72+1 -> 3.833333333 | AX73: =AW72 -> 2.833333333 | AY73: =AX72 -> 1.833333333 | AZ73: =AY72 -> 0.8333333333
B74: Disbursement curve | C74: t+0 | D74: t+1 | E74: t+2 | F74: t+3 | G74: t+4 | H74: t+5 | I74: t+6
B75: Data | C75: 7.477664385 | D75: 41.3997907 | E75: 100 | F75: 100 | G75: 100 | H75: 100 | I75: 100
B76: Forecast | C76: =C75 -> 7.477664385 | D76: =D75 -> 41.3997907 | E76: =E75 -> 100 | F76: =F75 -> 100 | G76: =G75 -> 100 | H76: =H75 -> 100 | I76: =I75 -> 100
B79: Indicators | C79: Project length | D79: Project budget | E79: 9/a 2 | F79: F.PA4
B80: Region
B81: Average | C81: 931 | D81: 4474282.616 | E81: 0 | F81: 168363.936
B82: Forecast | C82: 365 | D82: =D81 -> 4474282.616 | E82: 13.4 | F82: =F81 -> 168363.936
A85: PA5
E86: New Budget | F86: Remaining budget | G86: Add/Substract | H86: Comments
B87: Estimated budget | C87: =E87 -> 167110.6345 | E87: =F87+G87 -> 167110.6345 | F87: 167110.6345 | G87: 0
B88: Remaining projects | C88: =ROUND(C87/D103,0) -> 0 | P88: Project count CDF | W88: Financial disbursement curve | AE88: Non-cumulative new projects (Jan) | AJ88: Disbursement matrix | AQ88: Completion matrix
B89: CDF | C89: 2014 | D89: 2015 | E89: 2016 | F89: 2017 | G89: 2018 | H89: 2019 | I89: 2020 | J89: 2021 | K89: Current value | L89: 2022 | M89: 2023
B90: Data | C90: 0 | D90: 0 | E90: 0 | F90: 0 | G90: 0 | H90: 7 | I90: 10 | J90: 10 | K90: 10 | AJ90: 2020* | AK90: 2021 | AL90: 2022 | AM90: 2023 | AQ90: 2020* | AR90: 2021 | AS90: 2022 | AT90: 2023 | AW90: 2020* | AX90: 2021 | AY90: 2022 | AZ90: 2023
B91: Statistical forecast | L91: =K90+($C88*0.25) -> 10 | M91: =L91+($C88*0.75) -> 10 | AE91: 2020* | AF91: 0 | AI91: 2020* | AJ91: =AW91*C97/100 -> 0.04822698061 | AK91: 0 | AL91: 0 | AM91: 0 | AP91: 2020* | AQ91: =IF($C$103/365 > AW91, 0, 1) -> 0 | AR91: =IF($C$103/365 > AX91, 0, 1) -> 0 | AS91: 0 | AT91: 0 | AV91: 2020* | AW91: =(12 - MONTH(Achievement_finalised!$D$1))/12 -> 0.8333333333 | AX91: 0 | AY91: 0 | AZ91: 0
B92: Forecast | L92: =ROUND(L91,0) -> 10 | M92: =ROUND(M91,0) -> 10 | AE92: 2021 | AF92: =J90-I90 -> 0 | AI92: 2021 | AJ92: =D97/100 -> 0.2741411998 | AK92: =C97/100 -> 0.05787237673 | AL92: 0 | AM92: 0 | AP92: 2021 | AQ92: =IF($C$103/365 > AW92, 0, 1) -> 0 | AR92: 0 | AS92: 0 | AT92: 0 | AV92: 2021 | AW92: =1+AW91 -> 1.833333333 | AX92: =AW91 -> 0.8333333333 | AY92: 0 | AZ92: 0
AE93: 2022 | AF93: =L92-J90 -> 0 | AI93: 2022 | AJ93: =E97/100 -> 1 | AK93: =AJ92 -> 0.2741411998 | AL93: =AK92 -> 0.05787237673 | AM93: 0 | AP93: 2022 | AQ93: 0 | AR93: 0 | AS93: 0 | AT93: 0 | AV93: 2022 | AW93: =+AW92+1 -> 2.833333333 | AX93: =AW92 -> 1.833333333 | AY93: =AX92 -> 0.8333333333 | AZ93: 0
AE94: 2023 | AF94: =M92-L92 -> 0 | AI94: 2023 | AJ94: =F97/100 -> 1 | AK94: =AJ93 -> 1 | AL94: =AK93 -> 0.2741411998 | AM94: =AL93 -> 0.05787237673 | AP94: 2023 | AQ94: 1 | AR94: 0 | AS94: 0 | AT94: 0 | AV94: 2023 | AW94: =+AW93+1 -> 3.833333333 | AX94: =AW93 -> 2.833333333 | AY94: =AX93 -> 1.833333333 | AZ94: =AY93 -> 0.8333333333
B95: Disbursement curve | C95: t+0 | D95: t+1 | E95: t+2 | F95: t+3 | G95: t+4 | H95: t+5 | I95: t+6
B96: Data | C96: 5.787237673 | D96: 27.41411998 | E96: 100 | F96: 100 | G96: 100 | H96: 100 | I96: 100
B97: Forecast | C97: =C96 -> 5.787237673 | D97: =D96 -> 27.41411998 | E97: =E96 -> 100 | F97: =F96 -> 100 | G97: =G96 -> 100 | H97: =H96 -> 100 | I97: =I96 -> 100
B100: Indicators | C100: Project length | D100: Project budget | E100: 5/b 1 | F100: F.PA5
B101: Region
B102: Average | C102: 1080 | D102: 1393738.032 | E102: 22381.8 | F102: 842563.94
B103: Forecast | C103: =C102 -> 1080 | D103: =D102 -> 1393738.032 | E103: =E102 -> 22381.8 | F103: =F102 -> 842563.94
A106: PA6
E107: New Budget | F107: Remaining budget | G107: Add/Substract | H107: Comments
B108: Estimated budget | C108: =E108 -> 37238.25214 | E108: =F108+G108 -> 37238.25214 | F108: 37238.25214 | G108: 0
B109: Remaining projects | C109: =ROUND(C108/D124,0) -> 0 | P109: Project count CDF | W109: Financial disbursement curve | AE109: Non-cumulative new projects (Jan) | AJ109: Disbursement matrix | AQ109: Completion matrix
B110: CDF | C110: 2014 | D110: 2015 | E110: 2016 | F110: 2017 | G110: 2018 | H110: 2019 | I110: 2020 | J110: 2021 | K110: Current value | L110: 2022 | M110: 2023
B111: Data | C111: 0 | D111: 0 | E111: 0 | F111: 0 | G111: 0 | H111: 28 | I111: 31 | J111: 33 | K111: 33 | AJ111: 2020* | AK111: 2021 | AL111: 2022 | AM111: 2023 | AQ111: 2020* | AR111: 2021 | AS111: 2022 | AT111: 2023 | AW111: 2020* | AX111: 2021 | AY111: 2022 | AZ111: 2023
B112: Statistical forecast | L112: =K111+($C109*0.25) -> 33 | M112: =L112+($C109*0.75) -> 33 | AE112: 2020* | AF112: 0 | AI112: 2020* | AJ112: =AW112*C118/100 -> 0.07217409596 | AK112: 0 | AL112: 0 | AM112: 0 | AP112: 2020* | AQ112: =IF($C$103/365 > AW112, 0, 1) -> 0 | AR112: =IF($C$103/365 > AX112, 0, 1) -> 0 | AS112: =IF($C$103/365 > AY112, 0, 1) -> 0 | AT112: =IF($C$103/365 > AZ112, 0, 1) -> 0 | AV112: 2020* | AW112: =(12 - MONTH(Achievement_finalised!$D$1))/12 -> 0.8333333333 | AX112: 0 | AY112: 0 | AZ112: 0
B113: Forecast | L113: =ROUND(L112,0) -> 33 | M113: =ROUND(M112,0) -> 33 | AE113: 2021 | AF113: =J111-I111 -> 2 | AI113: 2021 | AJ113: =D118/100 -> 0.5070889603 | AK113: =C118/100 -> 0.08660891515 | AL113: 0 | AM113: 0 | AP113: 2021 | AQ113: =IF($C$103/365 > AW113, 0, 1) -> 0 | AR113: 0 | AS113: 0 | AT113: 0 | AV113: 2021 | AW113: =1+AW112 -> 1.833333333 | AX113: =AW112 -> 0.8333333333 | AY113: 0 | AZ113: 0
AE114: 2022 | AF114: =L113-J111 -> 0 | AI114: 2022 | AJ114: =E118/100 -> 1 | AK114: =AJ113 -> 0.5070889603 | AL114: =AK113 -> 0.08660891515 | AM114: 0 | AP114: 2022 | AQ114: 0 | AR114: 0 | AS114: 0 | AT114: 0 | AV114: 2022 | AW114: =+AW113+1 -> 2.833333333 | AX114: =AW113 -> 1.833333333 | AY114: =AX113 -> 0.8333333333 | AZ114: 0
AE115: 2023 | AF115: =M113-L113 -> 0 | AI115: 2023 | AJ115: =F118/100 -> 1 | AK115: =AJ114 -> 1 | AL115: =AK114 -> 0.5070889603 | AM115: =AL114 -> 0.08660891515 | AP115: 2023 | AQ115: 1 | AR115: 0 | AS115: 0 | AT115: 0 | AV115: 2023 | AW115: =+AW114+1 -> 3.833333333 | AX115: =AW114 -> 2.833333333 | AY115: =AX114 -> 1.833333333 | AZ115: =AY114 -> 0.8333333333
B116: Disbursement curve | C116: t+0 | D116: t+1 | E116: t+2 | F116: t+3 | G116: t+4 | H116: t+5 | I116: t+6
B117: Data | C117: 8.660891515 | D117: 50.70889603 | E117: 100 | F117: 100 | G117: 100 | H117: 100 | I117: 100
B118: Forecast | C118: =C117 -> 8.660891515 | D118: =D117 -> 50.70889603 | E118: =E117 -> 100 | F118: =F117 -> 100 | G118: =G117 -> 100 | H118: =H117 -> 100 | I118: =I117 -> 100
B121: Indicators | C121: Project length | D121: Project budget | E121: 11/b1 | F121: F.PA6
B122: Region
B123: Average | C123: 879 | D123: 135890.3127 | E123: 0.5185185185 | F123: 125267.1437
B124: Forecast | C124: =C123 -> 879 | D124: =D123 -> 135890.3127 | E124: =E123 -> 0.5185185185 | F124: =F123 -> 125267.1437

Sheet Achievement_forecasts_future
G2: User calibrations | L2: Statistical projections
B3: PA | C3: PI | D3: Indicator | E3: Region | F3: Type | G3: 2020 | H3: 2021 | I3: 2022 | J3: 2023 | L3: 2020 | M3: 2021 | N3: 2022 | O3: 2023
B4: 1 | C4: All | D4: CO09 | E4: All | F4: Physical | G4: 0 | H4: 0 | I4: 0 | J4: 0 | L4: =TRANSPOSE(MMULT(Project_characteristics!AQ7:AT10,Project_characteristics!AF7:AF10)*Project_characteristics!E19:F19) -> 0 | M4: 0 | N4: 0 | O4: 0
B5: 1 | C5: All | D5: 6/b 1 | E5: All | F5: Physical | G5: 0 | H5: 0 | I5: 0 | J5: 0 | L5: 0 | M5: 0 | N5: 0 | O5: 0
B6: 1 | C6: All | D6: F.PA1 | E6: All | F6: Financial | G6: 0 | H6: 35885.89044 | I6: 189231.2684 | J6: 827181.4444 | L6: =TRANSPOSE(MMULT(Project_characteristics!AJ7:AM10,Project_characteristics!AF7:AF10)*Project_characteristics!G19) -> 0 | M6: 35885.89044 | N6: 189231.2684 | O6: 827181.4444
B7: 2 | C7: All | D7: CO13a | E7: All | F7: Physical | G7: 0 | H7: 0 | I7: 0 | J7: 0 | L7: =TRANSPOSE(MMULT(Project_characteristics!AQ28:AT31,Project_characteristics!AF28:AF31)*Project_characteristics!E40:F40) -> 0 | M7: 0 | N7: 0 | O7: 0
B8: 2 | C8: All | D8: 7/c 1 | E8: All | F8: Physical | G8: 0 | H8: 0 | I8: 0 | J8: 0 | L8: 0 | M8: 0 | N8: 0 | O8: 0
B9: 2 | C9: All | D9: F.PA2 | E9: All | F9: Financial | G9: 0 | H9: 0 | I9: 0 | J9: 2368.136438 | L9: =TRANSPOSE(MMULT(Project_characteristics!AJ28:AM31,Project_characteristics!AF28:AF31)*Project_characteristics!G40) -> 0 | M9: 0 | N9: 0 | O9: 2368.136438
B10: 3 | C10: All | D10: CO44 | E10: All | F10: Physical | G10: 0 | H10: 0 | I10: 0 | J10: 0 | L10: =TRANSPOSE(MMULT(Project_characteristics!AQ49:AT52,Project_characteristics!AF49:AF52)*Project_characteristics!E61) -> 0 | M10: 0 | N10: 0 | O10: 0
B11: 3 | C11: All | D11: F.PA3 | E11: All | F11: Financial | G11: 0 | H11: 114605.9805 | I11: 663162.9365 | J11: 1705597.688 | L11: =TRANSPOSE(MMULT(Project_characteristics!AJ49:AM52,Project_characteristics!AF49:AF52)*Project_characteristics!F61) -> 0 | M11: 114605.9805 | N11: 663162.9365 | O11: 1705597.688
B12: 4 | C12: All | D12: 9/a 2 | E12: All | F12: Physical | G12: 0 | H12: 0 | I12: 0 | J12: 40.2 | L12: =TRANSPOSE(MMULT(Project_characteristics!AQ70:AT73,Project_characteristics!AF70:AF73)*Project_characteristics!E82) -> 0 | M12: 0 | N12: 0 | O12: 40.2
B13: 4 | C13: All | D13: F.PA4 | E13: All | F13: Financial | G13: 0 | H13: 0 | I13: 37769.07024 | J13: 209106.9514 | L13: =TRANSPOSE(MMULT(Project_characteristics!AJ70:AM73,Project_characteristics!AF70:AF73)*Project_characteristics!F82) -> 0 | M13: 0 | N13: 37769.07024 | O13: 209106.9514
B14: 5 | C14: All | D14: 5/b 1 | E14: All | F14: Physical | G14: 0 | H14: 0 | I14: 0 | J14: 0 | L14: =TRANSPOSE(MMULT(Project_characteristics!AQ91:AT94,Project_characteristics!AF91:AF94))*Project_characteristics!E103 -> 0 | M14: 0 | N14: 0 | O14: 0
B15: 5 | C15: All | D15: F.PA5 | E15: All | F15: Financial | G15: 0 | H15: 0 | I15: 0 | J15: 0 | L15: =TRANSPOSE(MMULT(Project_characteristics!AJ91:AM94,Project_characteristics!AF91:AF94)*Project_characteristics!F103) -> 0 | M15: 0 | N15: 0 | O15: 0
B16: 6 | C16: All | D16: 11/b1 | E16: All | F16: Physical | G16: 0 | H16: 0 | I16: 0 | J16: 0 | L16: =TRANSPOSE(MMULT(Project_characteristics!AQ112:AT115,Project_characteristics!AF112:AF115)*Project_characteristics!E124) -> 0 | M16: 0 | N16: 0 | O16: 0
B17: 6 | C17: All | D17: F.PA6 | E17: All | F17: Financial | G17: 0 | H17: 21698.50284 | I17: 127043.1713 | J17: 250534.2874 | L17: =TRANSPOSE(MMULT(Project_characteristics!AJ112:AM115,Project_characteristics!AF112:AF115)*Project_characteristics!F124) -> 0 | M17: 21698.50284 | N17: 127043.1713 | O17: 250534.2874
